Workbook

Sheet AER CF (hidden)
B1: AER CONDITIONAL FORMATTING
B4: CONDITIONAL FORMATTING MAP
F5: =INDEX(dms_CF_3.6.1, MATCH(dms_TradingName,dms_CF_TradingName))="Y" | G5: =INDEX(dms_CF_3.6.5, MATCH(dms_TradingName,dms_CF_TradingName))="Y" | H5: =INDEX(dms_CF_3.6.6, MATCH(dms_TradingName,dms_CF_TradingName))="Y" | I5: =INDEX(dms_CF_3.6.7.1, MATCH(dms_TradingName,dms_CF_TradingName))="Y" | J5: =INDEX(dms_CF_3.6.7.2, MATCH(dms_TradingName,dms_CF_TradingName))="Y" | K5: =INDEX(dms_CF_3.6.7.3, MATCH(dms_TradingName,dms_CF_TradingName))="Y" | L5: =INDEX(dms_CF_3.6.7.4, MATCH(dms_TradingName,dms_CF_TradingName))="Y" | M5: =INDEX(dms_CF_3.6.8, MATCH(dms_TradingName,dms_CF_TradingName))="Y" | N5: =INDEX(dms_CF_4.1, MATCH(dms_TradingName,dms_CF_TradingName))="Y" | O5: =INDEX(dms_CF_6.6.1, MATCH(dms_TradingName,dms_CF_TradingName))="Y" | P5: =INDEX(dms_CF_6.8, MATCH(dms_TradingName,dms_CF_TradingName))="Y" | Q5: =INDEX(dms_CF_7.12, MATCH(dms_TradingName,dms_CF_TradingName))="Y" | R5: =INDEX(dms_CF_8.1_A, MATCH(dms_TradingName,dms_CF_TradingName))="Y" | S5: =INDEX(dms_CF_8.1_B, MATCH(dms_TradingName,dms_CF_TradingName))="Y" | T5: =INDEX(dms_CF_8.1_Neg, MATCH(dms_TradingName,dms_CF_TradingName))="Y" | U5: =INDEX(dms_CF_4.4.1_Neg, MATCH(dms_TradingName,dms_CF_TradingName))="Y"
B6: dms_CF_TradingName | C6: JurisdictionList | D6: Sector | E6: Segment | F6: dms_CF_3.6.1 | G6: dms_CF_3.6.5 | H6: dms_CF_3.6.6 | I6: dms_CF_3.6.7.1 | J6: dms_CF_3.6.7.2 | K6: dms_CF_3.6.7.3 | L6: dms_CF_3.6.7.4 | M6: dms_CF_3.6.8 | N6: dms_CF_4.1 | O6: dms_CF_6.6.1 | P6: dms_CF_6.8 | Q6: dms_CF_7.12 | R6: dms_CF_8.1_A | S6: dms_CF_8.1_B | T6: dms_CF_8.1_Neg | U6: dms_CF_4.4.1 | V6: dms_CF_MAIFI_flag | W6: Spare1 | X6: Spare2
B7: ActewAGL Distribution | C7: ACT | D7: Electricity | E7: Distribution | G7: Y | I7: Y | J7: Y | K7: N | L7: Y | M7: N | N7: N | O7: N | P7: Y | Q7: Y | R7: N | S7: Y | T7: Y | U7: N | V7: N | W7: N | X7: N
B8: Ausgrid | C8: NSW | D8: Electricity | E8: Distribution | G8: Y | I8: N | J8: N | K8: N | L8: Y | M8: N | N8: N | O8: N | P8: Y | Q8: Y | R8: N | S8: Y | T8: Y | U8: N | V8: N | W8: N | X8: N
B9: AusNet (D) | C9: Vic | D9: Electricity | E9: Distribution | G9: N | I9: N | J9: N | K9: N | L9: N | M9: N | N9: Y | O9: N | P9: Y | Q9: N | R9: N | S9: N | T9: Y | U9: N | V9: N | W9: N | X9: N
B10: AusNet (T) | C10: Vic | D10: Electricity | E10: Transmission | G10: N | I10: N | J10: N | K10: N | L10: N | M10: N | N10: Y | O10: N | P10: Y | Q10: N | R10: N | S10: N | T10: Y | U10: N | V10: N | W10: N | X10: N
B11: CitiPower | C11: Vic | D11: Electricity | E11: Distribution | G11: N | I11: N | J11: N | K11: N | L11: N | M11: N | N11: Y | O11: N | P11: Y | Q11: N | R11: N | S11: N | T11: Y | U11: N | V11: N | W11: N | X11: N
B12: Directlink | C12: Qld | D12: Electricity | E12: Transmission | G12: N | I12: N | J12: N | K12: N | L12: N | M12: N | N12: Y | O12: N | P12: Y | Q12: N | R12: N | S12: Y | T12: Y | U12: N | V12: N | W12: N | X12: N
B13: ElectraNet | C13: SA | D13: Electricity | E13: Transmission | G13: N | I13: N | J13: N | K13: N | L13: N | M13: N | N13: Y | O13: N | P13: Y | Q13: N | R13: N | S13: Y | T13: Y | U13: N | V13: N | W13: N | X13: N
B14: Endeavour Energy | C14: NSW | D14: Electricity | E14: Distribution | G14: Y | I14: N | J14: N | K14: N | L14: Y | M14: N | N14: N | O14: N | P14: Y | Q14: Y | R14: N | S14: Y | T14: Y | U14: Y | V14: N | W14: N | X14: N
B15: Energex | C15: Qld | D15: Electricity | E15: Distribution | G15: Y | I15: N | J15: N | K15: N | L15: N | M15: N | N15: N | O15: N | P15: Y | Q15: Y | R15: N | S15: Y | T15: Y | U15: Y | V15: N | W15: N | X15: N
B16: Ergon Energy | C16: Qld | D16: Electricity | E16: Distribution | G16: Y | I16: N | J16: N | K16: N | L16: N | M16: N | N16: N | O16: N | P16: Y | Q16: Y | R16: N | S16: Y | T16: Y | U16: N | V16: N | W16: N | X16: N
B17: Essential Energy | C17: NSW | D17: Electricity | E17: Distribution | G17: Y | I17: N | J17: N | K17: N | L17: Y | M17: N | N17: N | O17: N | P17: Y | Q17: Y | R17: N | S17: Y | T17: Y | U17: N | V17: N | W17: N | X17: N
B18: Jemena Electricity | C18: Vic | D18: Electricity | E18: Distribution | G18: N | I18: N | J18: N | K18: N | L18: N | M18: N | N18: Y | O18: N | P18: Y | Q18: N | R18: N | S18: N | T18: Y | U18: N | V18: N | W18: N | X18: N
B19: Murraylink | C19: SA | D19: Electricity | E19: Transmission | G19: N | I19: N | J19: N | K19: N | L19: N | M19: N | N19: Y | O19: N | P19: Y | Q19: N | R19: N | S19: Y | T19: Y | U19: N | V19: N | W19: N | X19: N
B20: Power and Water | C20: NT | D20: Electricity | E20: Distribution | G20: N | I20: N | J20: Y | K20: N | L20: N | M20: Y | N20: Y | O20: Y | P20: Y | Q20: Y | R20: N | S20: Y | T20: Y | U20: N | V20: N | W20: N | X20: N
B21: Powercor Australia | C21: Vic | D21: Electricity | E21: Distribution | G21: N | I21: N | J21: N | K21: N | L21: N | M21: N | N21: Y | O21: N | P21: Y | Q21: N | R21: N | S21: N | T21: Y | U21: N | V21: N | W21: N | X21: N
B22: Powerlink | C22: Qld | D22: Electricity | E22: Transmission | G22: N | I22: N | J22: N | K22: N | L22: N | M22: N | N22: Y | O22: N | P22: Y | Q22: N | R22: N | S22: Y | T22: Y | U22: N | V22: N | W22: N | X22: N
B23: SA Power Networks | C23: SA | D23: Electricity | E23: Distribution | G23: Y | I23: N | J23: N | K23: N | L23: N | M23: N | N23: Y | O23: N | P23: Y | Q23: Y | R23: Y | S23: Y | T23: N | U23: N | V23: N | W23: N | X23: N
B24: TasNetworks (D) | C24: Tas | D24: Electricity | E24: Distribution | G24: Y | I24: N | J24: N | K24: N | L24: N | M24: N | N24: N | O24: N | P24: Y | Q24: Y | R24: N | S24: Y | T24: Y | U24: N | V24: N | W24: N | X24: N
B25: TasNetworks (T) | C25: Tas | D25: Electricity | E25: Transmission | G25: N | I25: N | J25: N | K25: N | L25: N | M25: N | N25: Y | O25: N | P25: Y | Q25: N | R25: N | S25: Y | T25: Y | U25: N | V25: N | W25: N | X25: N
B26: TransGrid | C26: NSW | D26: Electricity | E26: Transmission | G26: N | I26: N | J26: N | K26: N | L26: N | M26: N | N26: Y | O26: N | P26: Y | Q26: N | R26: N | S26: Y | T26: Y | U26: N | V26: N | W26: N | X26: N
B27: United Energy | C27: Vic | D27: Electricity | E27: Distribution | G27: N | I27: N | J27: N | K27: N | L27: N | M27: N | N27: Y | O27: N | P27: Y | Q27: N | R27: N | S27: N | T27: Y | U27: N | V27: N | W27: N | X27: N
B30: Confidential
B31: Amended
B33: Worksheet 6.2 STPIS reliability
B34: Formula | F34: Applied to:
B36: =INDEX(dms_CBD_flag,MATCH(dms_TradingName,dms_TradingName_List))="NO" | F36: $D$11,$D$17,$D$23,$D$33,$D$39,$D$45,$D$55,$D$61,$D$67,$D$77,$D$83,$D$89
B37: =INDEX(dms_Urban_flag,MATCH(dms_TradingName,dms_TradingName_List))="NO" | F37: $D$12,$D$18,$D$24,$D$56,$D$62,$D$78,$D$68,$D$84
B38: =INDEX(dms_ShortRural_flag,MATCH(dms_TradingName,dms_TradingName_List))="NO" | F38: $D$13,$D$19,$D$25,$D$57,$D$63,$D$69,$D$79,$D$85
B39: =INDEX(dms_LongRural_flag,MATCH(dms_TradingName,dms_TradingName_List))="NO" | F39: $D$14,$D$20,$D$26,$D$58,$D$64,$D$65,$D$70,$D$71,$D$80,$D$86
B40: =INDEX(dms_FeederType_5_flag,MATCH(dms_TradingName,dms_TradingName_List))="NO" | F40: $D$87,$D$81,$D$71,$D$65,$D$59,$D$49,$D$43,$D$37,$D$21,$D$15
B41: =dms_MAIFI_Flag="No" | F41: $D$55:$D$72
B44: Business & other details
B45: =(INDEX(dms_Model_Span,MATCH(dms_Model,dms_Model_List))>1)
B46: =(INDEX(dms_Model_Span,MATCH(dms_Model,dms_Model_List))=1)
B49: STYLES IN USE
C50: dms_1
C51: dms_2
C52: dms_3
C53: dms_4
C54: dms_5
C55: dms_NUM
C56: dms_NUM%
C57: dms_Row_Locked
C58: dms_Row1
C59: dms_Row2
C60: dms_T1
C61: dms_T2
C62: dms_BH
C63: dms_BY1
C64: dms_BY2
C65: dms_GH
C66: dms_GY1
C67: dms_GY2
C126: 0
C127: =IFERROR(IF(dms_Model="ARR",(MAX(0,dms_0608_LastRow-dms_0608_OffsetRows)),"not an ARR"),"0") -> 0

Sheet AER NRs (hidden)
B1: AER NAMED RANGES
B3: DROP DOWN SELECTORS USED IN WORKBOOKS
B5: COVER SHEET | C5: dms_DataQuality_List | D5: dms_Confid_status_List
C6: -- select -- | D6: -- select --
C7: Actual | D7: Public
C8: Estimate | D8: Confidential
C9: Consolidated
C12: For all files either AER or business needs to be able to specify the type of submission | D12: For PTRM & RFM templates we must provide a choice in case they change their form of control - otherwise it is drawn from the business specific lookup table above.
C13: dms_SourceList | D13: dms_FormControl_Choices
C14: -- select -- | D14: Revenue cap
C15: After appeal | D15: Revenue yield
C16: Draft decision | D16: Weighted average price cap
C17: Final decision
C18: PTRM update 1
C19: PTRM update 2
C20: PTRM update 3
C21: PTRM update 4
C22: PTRM update 5
C23: PTRM update 6
C24: PTRM update 7
C25: Regulatory proposal
C26: Reporting
C27: Revised regulatory proposal
K30: This is used to create an image to insert on 6.3 STPIS sheet - not for dropdown lists.
B31: CA & RESET RINS DNSP | C31: dms_DNSP_020301_SubstationType | D31: dms_DNSP_020301_ProjectType | E31: dms_DNSP_020301_ProjectTrigger | F31: dms_DNSP_020302_ProjectType | G31: dms_DNSP_020302_ProjectTrigger | H31: dms_STPIS_Exclusion_List | I31: dms_Reason_Interruption | J31: dms_Reason_Interruption_Detailed | K31: Reason for interruption | N31: dms_N0205_AssetType
C32: Subtransmission substation | D32: New substation establishment | E32: Demand growth | F32: New line on new route - single circuit | G32: Demand growth | H32: Weather | I32: Animal | J32: Animal impact | K32: Animal | L32: Animal impact | N32: Cast Iron
C33: Zone substation | D33: Substation upgrade - capacity | E33: Voltage issues | F33: New line on new route - dual circuit | G33: Voltage issues | H33: Equipment failure | I33: Asset failure | J33: Animal nesting/burrowing, etc and other | L33: Animal nesting/burrowing, etc and other | N33: PVC
C34: Switching station | D34: Substation upgrade - voltage | E34: Reactive power issue | F34: New line on new route - other | G34: Reactive power issue | H34: Operational error | I34: Other | J34: Other | L34: Other | N34: Polyamide
C35: Other | D35: Other | E35: Fault level issues | F35: Line rebuild over existing route - single circuit | G35: Fault level issues | H35: Vegetation | I35: Overloads | J35: LV | K35: Asset failure | L35: LV | N35: High density polyethylene (80)
E36: Safety | F36: Line rebuild over existing route - dual circuit | G36: Net market benefit | H36: Animals | I36: Planned | J36: Distribution substation | L36: Distribution substation | N36: High density polyethylene (100)
E37: Environment | F37: Reconductor - Single circuit | G37: Safety | H37: Third party impacts | I37: Network business | J37: HV | L37: HV | N37: High density polyethylene (250)
E38: Other | F38: Reconductor - Dual circuit | G38: Environment | H38: Transmission failure | I38: Third party | J38: Zone substation | L38: Zone substation | N38: High density polyethylene (575)
F39: Reconductor - Other | G39: Other | H39: Load shedding | I39: Unknown | J39: Subtransmission | L39: Subtransmission | N39: Medium density polyethylene
F40: Line upgrade - raising/retensoring | H40: Inter-distributor connection failure | I40: Vegetation | J40: insert description of 'other' | K40: Other | L40: insert description of 'other' | N40: Unprotected steel
F41: Line upgrade - voltage upgrade | H41: Other | I41: Weather | J41: Network error | K41: Overloads | N41: Protected steel
F42: Line upgrade - capacity | I42: 2 - STPIS Exclusion (3.3)(a) | J42: Switching and protection error | K42: Planned | N42: Other
F43: String spare circuit | I43: 3 - STPIS Exclusion (3.3)(a) | J43: Fire | K43: Network business | L43: Network error
F44: Other | I44: 4 - STPIS Exclusion (3.3)(a) | J44: Other | L44: Switching and protection error
I45: 5 - STPIS Exclusion (3.3)(a) | J45: Dig-in | K45: Third party | L45: Fire
I46: 6 - STPIS Exclusion (3.3)(a) | J46: Unauthorised access | L46: Other
I47: 7 - STPIS Exclusion (3.3)(a) | J47: Vehicle impact | L47: Dig-in
J48: Unknown | L48: Unauthorised access
J49: Blow-in/Fall-in - NSP responsibility | L49: Vehicle impact
J50: Grow-in - NSP responsibility | K50: Unknown | L50: Unknown
J51: Blow-in/Fall-in - Other responsible party | K51: Vegetation | L51: Blow-in/Fall-in - NSP responsibility
J52: Grow-in - Other responsible party | L52: Grow-in - NSP responsibility
L53: Blow-in/Fall-in - Other responsible party
L54: Grow-in - Other responsible party
K55: Weather
K56: 2 - STPIS Exclusion (3.3)(a)
K57: 3 - STPIS Exclusion (3.3)(a)
K58: 4 - STPIS Exclusion (3.3)(a)
K59: 5 - STPIS Exclusion (3.3)(a)
K60: 6 - STPIS Exclusion (3.3)(a)
K61: 7 - STPIS Exclusion (3.3)(a)
B64: CA & RESET RINS TNSP | C64: dms_TNSP_0203_SubstationType | D64: dms_TNSP_020301_ProjectType | E64: dms_TNSP_020301_ProjectTrigger | F64: dms_TNSP_020302_ProjectType | G64: dms_TNSP_0203_ProjectTrigger
C65: Terminal station | D65: New substation establishment | E65: Demand growth | F65: New line on new route - single circuit | G65: Demand growth
C66: Switching station | D66: Capacity upgrade | E66: Voltage issues | F66: New line on new route - dual circuit | G66: Voltage issues
C67: Transmission substation | D67: Voltage upgrade | E67: Reactive power issue | F67: New line on new route - other | G67: Reactive power issue
C68: Other | D68: Other | E68: Fault level issues | F68: Line rebuild over existing route - single circuit | G68: Fault level issues
E69: Net market benefit | F69: Line rebuild over existing route - dual circuit | G69: Net market benefit
E70: Safety | F70: Reconductor - Single circuit | G70: Safety
E71: Environment | F71: Reconductor - Dual circuit | G71: Environment
E72: Other | F72: Reconductor - Other | G72: Other
F73: Line upgrade - raising/retensoring
F74: Line upgrade - voltage upgrade
F75: Line upgrade - capacity
F76: String spare circuit
F77: Other
B81: NAMED RANGES USED IN ETL PROCESS
B83: CA & RESET RINS DNSP ONLY | C83: dms_020303_01_UOM | D83: dms_020501_01_UOM | E83: dms_020501_02_UOM | F83: dms_020501_03_UOM | G83: dms_020501_04_UOM | H83: dms_020701_01_UOM | I83: dms_020701_02_UOM | J83: dms_020701_01_Rows | K83: dms_040102_01_UOM | L83: dms_040102_04_UOM | M83: dms_E050201_UOM | N83: dms_E050302_UOM
C84: Circuit line length in km | D84: 0's | E84: 0's | F84: 0's | G84: 0's | H84: km | I84: km | J84: Route line length within zone | K84: 0's | L84: days | M84: per metre per connection | N84: metres per connection
C85: Circuit line length in km | D85: 0's | E85: 0's | F85: 0's | G85: 0's | H85: 0's | I85: 0's | J85: Number of maintenance spans | K85: 0's | L85: 0's | M85: per service per connection | N85: number per connection
C86: Circuit line length in km | D86: MVA added | E86: MVA added | F86: MVA added | G86: MVA added | H86: km | I86: km | J86: Total length of maintenance spans | K86: 0's | L86: $0s | M86: number per connection | N86: number per connection
C87: Circuit line length in km | D87: 0's | E87: 0's | F87: 0's | G87: 0's | H87: km | I87: km | J87: Length of vegetation corridors | K87: $0s | L87: 0's
C88: Number | D88: total spend $0s | E88: total spend $0s | F88: total spend $0s | G88: total spend $0s | H88: 0's | I88: 0's | J88: Average number of trees per maintenance span
C89: Number | D89: net circuit km added | E89: net circuit km added | F89: net circuit km added | G89: net circuit km added | H89: years | I89: years | J89: Average frequency of cutting cycle
C90: Number | D90: total spend $0s | E90: total spend $0s | F90: total spend $0s | G90: total spend $0s
D91: net circuit km added | E91: net circuit km added | F91: net circuit km added | G91: net circuit km added
D92: total spend $0s | E92: total spend $0s | F92: total spend $0s | G92: total spend $0s
D93: 0's | F93: $0s
D94: 0's
D95: 0's
D96: $0s
B99: CA & RESET RINS TNSP ONLY | C99: dms_020701_01_UOM
C100: km
C101: 0's
C102: km
C103: 0's
C104: km
C105: metres
C106: years
B109: CA & RESET RINS DNSP & TNSP | C109: dms_020603_01_UOM
C110: 0's
C111: 0's
C112: 0's
C113: 0's
C114: (per cent)
B117: EB & RESET RINS DNSP ONLY | C117: dms_030601_01_UOM | D117: dms_030601_02_UOM | E117: dms_030701_01_UOM | F117: dms_030702_01_UOM | G117: dms_030703_01_UOM
C118: minutes/customer | D118: minutes/customer | E118: Customer / km | F118: % | G118: km
C119: minutes/customer | D119: minutes/customer | E119: MWh/customer | F119: Number of spans
C120: interruptions/customer | D120: interruptions/customer | E120: kVA / customer | F120: Number of spans
C121: interruptions/customer | D121: interruptions/customer | F121: Number of spans
F122: Number of spans
F123: Years
F124: Years
F125: Trees
F126: Trees
F127: Defects
F128: Defects
F129: Spans
F130: km
F131: Spans
C133: WHEN INSERTING COVER SHEET INTO A TNSP FILE - APPLY THESE NAMED RANGES
B134: EB & RESET RINS TNSP ONLY | C134: dms_030601_01_UOM | E134: dms_030701_01_UOM | F134: dms_030702_01_UOM
C135: % | E135: Number of spans | F135: km
C136: number | E136: Years | F136: %
C137: number | E137: Trees | F137: km
C138: % | E138: Defects | F138: number
C139: number | E139: Number of spans
C140: number | E140: km
C141: % | E141: km
C142: number | E142: Number of spans
C143: number
C144: %
C145: number
C146: %
C147: number
C148: %
C149: number
B151: EB & RESET RINS DNSP & TNSP | C151: dms_EB_RAB_PIT
C152: Beginning of year
C153: End of year
C154: End of year
C155: End of year
C156: End of year
C157: End of year
B159: ARR DNSP ONLY | C159: dms_030605_UOM | D159: dms_03060703_UOM | E159: dms_E020202_UOM | F159: Spare
C160: number | D160: number | E160: Length of mains replaced
C161: number | D161: number | E161: Number of services replaced
C162: number | D162: number
C163: number | D163: number
C164: number | D164: (per cent)
C165: number
C166: number
C167: number
C168: number
C169: number
C170: number
C171: number
C172: (per cent)
C173: (per cent)
B175: RFM | C175: dms_Beg | D175: dms_Mid | E175: dms_End
C176: Beginning of year | D176: Mid year | E176: End of Year
B178: PTRM | C178: dms_PTRM_RAB_PIT | D178: dms_PTRM_TAB_PIT | E178: DMS_Xfactor
C179: Beginning of year | D179: Beginning of year | E179: x factors
C180: End of year | D180: End of year
C181: End of year | D181: End of year
C182: End of year | D182: End of year
C183: End of year
B186: STPIS & MIC NAMED RANGES
B188: These "row descriptions" are the column headings in the various templates but become row descriptions in the ETL process
B190: Table 6.3 sustained interruptions - row descriptions | C190: dms_060301_CustNo_Affected_Row | D190: dms_060301_Avg_Duration_Sustained_Int_Row | E190: dms_060301_Effect_unplanned_SAIDI_Row | F190: dms_060301_Effect_unplanned_SAIFI_Row
C191: Number of customers affected by the interruption | D191: Average duration of sustained customer interruption | E191: Effect on unplanned SAIDI | F191: Effect on unplanned SAIFI
B194: Table 6.1 telephone answering - row descriptions and start date | C194: dms_060101_Rows | D194: dms_060102_Rows | E194: dms_060101_StartDateTxt
C195: Total number of calls (after removing excluded events) | D195: Number of calls answered within 30 seconds (after excluding excluded events) | E195: =dms_060701_StartDateTxt -> 1-Jan-2018
B198: Table 6.8.1 - row descriptions | C198: dms_060801_01_Rows | D198: dms_060801_02_Rows | E198: dms_060801_03_Rows | F198: dms_060801_04_Rows
C199: Number of interruptions | D199: Duration of interruptions | E199: Total unplanned minutes off supply | F199: Effect on unplanned MAIFI
B202: Table 7.9.4 - market impact component - row descriptions | C202: dms_070904_01_Rows | D202: without exclusions | E202: with exclusions
B205: These headings (Lists) are determined from the INDEX/MATCH function on the NSP selected on the Business & other details sheet
B207: Table 6.7.1 - daily performance data - unplanned - MAIFI -- row descriptions and header named range values | C207: dms_060701_Feeder_Header_Lvl4 | D207: =INDEX(dms_FeederName_1,MATCH(dms_TradingName,dms_TradingName_List)) -> CBD | E207: =INDEX(dms_FeederName_1,MATCH(dms_TradingName,dms_TradingName_List)) -> CBD | F207: =INDEX(dms_FeederName_2,MATCH(dms_TradingName,dms_TradingName_List)) -> Urban | G207: =INDEX(dms_FeederName_2,MATCH(dms_TradingName,dms_TradingName_List)) -> Urban | H207: =INDEX(dms_FeederName_3,MATCH(dms_TradingName,dms_TradingName_List)) -> Short rural | I207: =INDEX(dms_FeederName_3,MATCH(dms_TradingName,dms_TradingName_List)) -> Short rural | J207: =INDEX(dms_FeederName_4,MATCH(dms_TradingName,dms_TradingName_List)) -> Long rural | K207: =INDEX(dms_FeederName_4,MATCH(dms_TradingName,dms_TradingName_List)) -> Long rural | L207: =IF((INDEX(dms_FeederName_5,MATCH(dms_TradingName,dms_TradingName_List))=0),"Network",(INDEX(dms_FeederName_5,MATCH(dms_TradingName,dms_TradingName_List)))) -> Network | M207: =IF((INDEX(dms_FeederName_5,MATCH(dms_TradingName,dms_TradingName_List))=0),"Network",(INDEX(dms_FeederName_5,MATCH(dms_TradingName,dms_TradingName_List)))) -> Network | N207: Network | O207: Network
C209: dms_060701_Rows | D209: All events | E209: After removing excluded events | F209: All events | G209: After removing excluded events | H209: All events | I209: After removing excluded events | J209: All events | K209: After removing excluded events | L209: All events | M209: After removing excluded events | N209: All events | O209: After removing excluded events
D210: the number of column headings changes from 10 to 12 depending on the number of feeder categories for the NSP
C212: dms_0603_FeederList | D212: =INDEX(dms_FeederName_1,MATCH(dms_TradingName,dms_TradingName_List)) -> CBD | E212: =INDEX(dms_FeederName_2,MATCH(dms_TradingName,dms_TradingName_List)) -> Urban | F212: =INDEX(dms_FeederName_3,MATCH(dms_TradingName,dms_TradingName_List)) -> Short rural | G212: =INDEX(dms_FeederName_4,MATCH(dms_TradingName,dms_TradingName_List)) -> Long rural
B215: Use these to add to specific worksheets in existing files | C215: Use these to add to specific worksheets in existing files
B218: ARRs 6.7 STPIS daily performance | C218: dms_060101_Values | D218: dms_060102_Values | E218: dms_060701_Values
C219: dms_LeapYear
B222: ARR's 6.8 STPIS exclusions | C222: dms_060801_Event_Date | D222: dms_060801_OutageID | E222: dms_060801_FeederID | F222: dms_060801_FeederClass | G222: dms_060801_CauseID | H222: dms_060801_01_Values | I222: dms_060801_02_Values | J222: dms_060801_03_Values | K222: dms_060801_Excl_Cat | L222: dms_060801_04_Values
C223: dms_060801_StartCell
B226: CA 6.3 sustained interruptions | C226: dms_060301_Event_Date | D226: dms_060301_Event_Time | E226: dms_060301_AssetID | F226: dms_060301_FeederClass | G226: dms_060301_Reason | H226: dms_060301_DetailedReason | I226: dms_060301_CustNo_Affected_Values | J226: dms_060301_Avg_Duration_Sustained_Int_Values | K226: dms_060301_Effect_unplanned_SAIDI_Values | L226: dms_060301_Effect_unplanned_SAIFI_Values | M226: dms_060301_MED

Sheet AER lookups (hidden)
B1: AER LOOKUP TABLES
B3: Data in these columns used for data validation and database purposes.
B4: Date last modified: | C4: 2017-01-16 | D4: added (Albury and Victora) for AGN
C5: 2016-10-17 | D5: updated TransGrid's correct legal name, corrected TasNetworks (T) to June financial year
C6: 2017-02-01 | D6: inserted Power and Water, added NRs (dms_FeederCat_1 and dms_FeederCat_2)
C7: 2017-03-03 | D7: inserted AEMO as a business
C8: 2018-03-28 | D8: major changes to accommodate STPIS
C9: Template Version | D9: 5
Z14: Feeder Types | AD14: TasNetworks (D) | AE14: MAIFI flag | AF14: Feeder Names
B16: dms_TradingName_List | C16: dms_TradingNameFull_List | D16: dms_ABN_List | E16: dms_JurisdictionList | F16: dms_Sector_List | G16: dms_Segment_List | H16: dms_FormControl_List | I16: dms_RPT_List | J16: dms_RPTMonth_List | K16: dms_CRCPlength_List | L16: dms_FRCPlength_List | M16: dms_PRCPlength_List | N16: dms_663_List | O16: dms_DeterminationRef_List | P16: dms_Addr1_List | Q16: dms_Addr2_List | R16: dms_Suburb_List | S16: dms_State_List | T16: dms_PostCode_List | U16: dms_PAddr1_List | V16: dms_PAddr2_List | W16: dms_PSuburb_List | X16: dms_PState_List | Y16: dms_PPostCode_List | Z16: dms_CBD_flag | AA16: dms_Urban_flag | AB16: dms_ShortRural_flag | AC16: dms_LongRural_flag | AD16: dms_FeederType_5_flag | AE16: dms_MAIFI_flag_List | AF16: dms_FeederName_1 | AG16: dms_FeederName_2 | AH16: dms_FeederName_3 | AI16: dms_FeederName_4 | AJ16: dms_FeederName_5 | AK16: dms_Public_Lighting_List | AL16: Name
B17: AGN (Albury and Victoria) | C17: Australian Gas Networks Limited (reporting data for Albury and Victoria) | D17: 19078551685 | E17: Vic | F17: Gas | G17: Distribution | H17: Weighted average price cap | I17: Calendar | J17: December | K17: 5 | L17: 5 | M17: 5 | N17: x | P17: Level 6 | Q17: 400 King William Street | R17: ADELAIDE | S17: SA | T17: 5000 | U17: PO Box 6468 | V17: Halifax Street | W17: ADELAIDE | X17: SA | Y17: 5000 | Z17: NO | AA17: NO | AB17: NO | AC17: NO | AD17: NO | AE17: - | AF17: CBD | AG17: Urban | AH17: Short rural | AI17: Long rural | AK17: NO | AL17: AGN (Albury)
B18: AGN (Albury) | C18: Australian Gas Networks Limited (reporting data for Albury) | D18: 19078551685 | E18: Vic | F18: Gas | G18: Distribution | H18: Weighted average price cap | I18: Calendar | J18: December | K18: 5 | L18: 5 | M18: 5 | N18: x | P18: Level 6 | Q18: 400 King William Street | R18: ADELAIDE | S18: SA | T18: 5000 | U18: PO Box 6468 | V18: Halifax Street | W18: ADELAIDE | X18: SA | Y18: 5000 | Z18: NO | AA18: NO | AB18: NO | AC18: NO | AD18: NO | AE18: - | AF18: CBD | AG18: Urban | AH18: Short rural | AI18: Long rural | AK18: NO
B19: AGN (SA) | C19: Australian Gas Networks Limited (reporting data for SA) | D19: 19078551685 | E19: SA | F19: Gas | G19: Distribution | H19: Weighted average price cap | I19: Financial | J19: June | K19: 5 | L19: 5 | M19: 5 | N19: 5 | O19: distribution determination | P19: Level 6 | Q19: 400 King William Street | R19: ADELAIDE | S19: SA | T19: 5000 | U19: PO Box 6468 | V19: Halifax Street | W19: ADELAIDE | X19: SA | Y19: 5000 | Z19: NO | AA19: NO | AB19: NO | AC19: NO | AD19: NO | AE19: - | AF19: CBD | AG19: Urban | AH19: Short rural | AI19: Long rural | AK19: NO | AL19: AGN (SA)
B20: AGN (Victoria) | C20: Australian Gas Networks Limited (reporting data for Victoria) | D20: 19078551685 | E20: Vic | F20: Gas | G20: Distribution | H20: Weighted average price cap | I20: Calendar | J20: December | K20: 5 | L20: 5 | M20: 5 | N20: x | P20: Level 6 | Q20: 400 King William Street | R20: ADELAIDE | S20: SA | T20: 5000 | U20: PO Box 6468 | V20: Halifax Street | W20: ADELAIDE | X20: SA | Y20: 5000 | Z20: NO | AA20: NO | AB20: NO | AC20: NO | AD20: NO | AE20: - | AF20: CBD | AG20: Urban | AH20: Short rural | AI20: Long rural | AK20: NO | AL20: AGN (Victoria)
B21: AusNet (Gas) | C21: AusNet Gas Services | D21: 086015036 | E21: Vic | F21: Gas | G21: Distribution | H21: Weighted average price cap | I21: Calendar | J21: December | K21: 5 | L21: 5 | M21: 5 | N21: X | P21: Level 31 | Q21: 2 Southbank Boulevard | R21: SOUTHBANK | S21: Vic | T21: 3008 | X21: Vic | Y21: - | Z21: NO | AA21: NO | AB21: NO | AC21: NO | AD21: NO | AE21: - | AF21: CBD | AG21: Urban | AH21: Short rural | AI21: Long rural | AK21: NO | AL21: AusNet (Gas)
B22: Australian Distribution Co. (Gas) | C22: Australian Gas Distribution Co. | D22: 11222333444 | E22: Vic | F22: Gas | G22: Distribution | H22: Weighted average price cap | I22: Calendar | J22: December | K22: 5 | L22: 5 | M22: 5 | P22: 123 Straight Street | R22: MELBOURNE | S22: Vic | T22: 3000 | U22: PO Box 123 | W22: MELBOURNE | X22: Vic | Y22: 3000 | Z22: NO | AA22: NO | AB22: NO | AC22: NO | AD22: NO | AE22: - | AF22: CBD | AG22: Urban | AH22: Short rural | AI22: Long rural | AK22: NO | AL22: Australian Distribution Co. (Vic)
B23: Central Ranges Pipeline (D) | C23: Central Ranges Pipeline Pty Ltd | D23: 108218355 | E23: NSW | F23: Gas | G23: Distribution | H23: Weighted average price cap | I23: Financial | J23: June | K23: 15 | L23: 5 | M23: 5 | N23: 5 | O23: distribution determination | P23: Level 19 | Q23: 580 George Street | R23: SYDNEY | S23: NSW | T23: 2000 | U23: PO Box R41 | W23: ROYAL EXCHANGE | X23: NSW | Y23: 1225 | Z23: NO | AA23: NO | AB23: NO | AC23: NO | AD23: NO | AE23: - | AF23: CBD | AG23: Urban | AH23: Short rural | AI23: Long rural | AK23: NO
B24: Evoenergy Gas | C24: Evoenergy Gas | D24: 76670568688 | E24: ACT | F24: Gas | G24: Distribution | H24: Weighted average price cap | I24: Financial | J24: June | K24: 5 | L24: 5 | M24: 5 | N24: x | P24: 40 Bunda Street | R24: CANBERRA | S24: ACT | T24: 2600 | U24: GPO BOX 366 | W24: CANBERRA | X24: ACT | Y24: 2601 | Z24: NO | AA24: NO | AB24: NO | AC24: NO | AD24: NO | AE24: - | AF24: CBD | AG24: Urban | AH24: Short rural | AI24: Long rural | AK24: NO | AL24: ActewAGL Gas
B25: JGN | C25: Jemena Gas Networks (NSW) Ltd | D25: 003 004 322 | E25: NSW | F25: Gas | G25: Distribution | H25: Weighted average price cap | I25: Financial | J25: June | K25: 5 | L25: 5 | M25: 5 | P25: please provide street address | U25: please provide postal address | Z25: NO | AA25: NO | AB25: NO | AC25: NO | AD25: NO | AE25: - | AF25: CBD | AG25: Urban | AH25: Short rural | AI25: Long rural | AK25: NO | AL25: JGN
B26: Multinet Gas | C26: Multinet Gas (DB No.1) Pty Ltd (ACN 086 026 986), Multinet Gas (DB No.2) Pty Ltd (ACN 086 230 122) | D26: 086026986 | E26: Vic | F26: Gas | G26: Distribution | H26: Weighted average price cap | I26: Calendar | J26: December | K26: 5 | L26: 5 | M26: 5 | N26: x | P26: 43-45 Centreway | R26: MT WAVERLEY | S26: Vic | T26: 3149 | Z26: NO | AA26: NO | AB26: NO | AC26: NO | AD26: NO | AE26: - | AF26: CBD | AG26: Urban | AH26: Short rural | AI26: Long rural | AK26: NO | AL26: Multinet Gas
B31: The Reg Year Ending (dms_RYE) must be set to the last year of the regulatory period. For forecast data is is usually (FRCP_y5) for actual it is a single year (CRY). For historical actual data the RYE will need to be set manually in the business details sheet by setting the dms_Multiyear_flag to 1 and putting the correct value in 'dms_Specified_FinalYear. See cells C67:C68
B32: dms_Model_List | C32: dms_Model_Name_Format1 | D32: dms_Worksheet_List | E32: dms_Model_Span_List
B33: ARR | C33: Annual Reporting | D33: =IF(dms_MultiYear_ResponseFlag="yes","HISTORICAL ANNUAL REPORTING","ANNUAL REPORTING") -> HISTORICAL ANNUAL REPORTING | E33: 1
B34: CA | C34: Category Analysis | D34: =IF(dms_MultiYear_ResponseFlag="yes","NEW HISTORICAL CATEGORY ANALYSIS","CATEGORY ANALYSIS") -> NEW HISTORICAL CATEGORY ANALYSIS | E34: 1
B35: CESS | C35: Capitlal Expenditure | D35: CAPITLAL EXPENDITURE SHARING SCHEMING | E35: 5
B36: CPI | C36: CPI | D36: CPI | E36: 5
B37: EB | C37: Economic Benchmarking | D37: =IF(dms_MultiYear_ResponseFlag="yes","NEW HISTORICAL ECONOMIC BENCHMARKING","ECONOMIC BENCHMARKING") -> NEW HISTORICAL ECONOMIC BENCHMARKING | E37: 1
B38: Pricing | C38: Pricing Proposal | D38: PRICING PROPOSAL | E38: 5
B39: PTRM | C39: Post Tax Revenue Model | D39: POST TAX REVENUE MODEL | E39: 5
B40: Reset | C40: Regulatory Reporting (Reset) | D40: REGULATORY REPORTING STATEMENT | E40: 5
B41: RFM | C41: Roll Forward Model | D41: ROLL FORWARD MODEL | E41: 5
B42: WACC | C42: Weighted Average Cost of Capital | D42: WEIGHTED AVERAGE COST OF CAPITAL | E42: 1
B46: Financial | C46: Calendar | E46: PREVIOUS | G46: CURRENT | I46: FORTHCOMING
B47: 1987-88 | C47: 1988 | D47: PRCP_y1 | E47: =INDEX(INDIRECT(dms_RPT),dms_PRCP_start_row) -> 2011 | F47: CRCP_y1 | G47: =INDEX(INDIRECT(dms_RPT),dms_CRCP_start_row) -> 2016 | H47: =FRCP_y1 -> 2021 | I47: =INDEX(INDIRECT(dms_RPT),dms_FRCP_start_row) -> 2021
B48: 1988-89 | C48: 1989 | D48: PRCP_y2 | E48: =INDEX(INDIRECT(dms_RPT),dms_PRCP_start_row+1) -> 2012 | F48: CRCP_y2 | G48: =INDEX(INDIRECT(dms_RPT),dms_CRCP_start_row+1) -> 2017 | H48: FRCP_y2 | I48: =INDEX(INDIRECT(dms_RPT),dms_FRCP_start_row+1) -> 2022
B49: 1989-90 | C49: 1990 | D49: PRCP_y3 | E49: =INDEX(INDIRECT(dms_RPT),dms_PRCP_start_row+2) -> 2013 | F49: CRCP_y3 | G49: =INDEX(INDIRECT(dms_RPT),dms_CRCP_start_row+2) -> 2018 | H49: FRCP_y3 | I49: =INDEX(INDIRECT(dms_RPT),dms_FRCP_start_row+2) -> 2023
B50: 1990-91 | C50: 1991 | D50: PRCP_y4 | E50: =INDEX(INDIRECT(dms_RPT),dms_PRCP_start_row+3) -> 2014 | F50: CRCP_y4 | G50: =INDEX(INDIRECT(dms_RPT),dms_CRCP_start_row+3) -> 2019 | H50: FRCP_y4 | I50: =INDEX(INDIRECT(dms_RPT),dms_FRCP_start_row+3) -> 2024
B51: 1991-92 | C51: 1992 | D51: PRCP_y5 | E51: =INDEX(INDIRECT(dms_RPT),dms_PRCP_start_row+4) -> 2015 | F51: CRCP_y5 | G51: =INDEX(INDIRECT(dms_RPT),dms_CRCP_start_row+4) -> 2020 | H51: FRCP_y5 | I51: =INDEX(INDIRECT(dms_RPT),dms_FRCP_start_row+4) -> 2025
B52: 1992-93 | C52: 1993 | D52: PRCP_y6 | E52: =INDEX(INDIRECT(dms_RPT),dms_PRCP_start_row+5) -> 2016 | F52: CRCP_y6 | G52: =INDEX(INDIRECT(dms_RPT),dms_CRCP_start_row+5) -> 2021 | H52: FRCP_y6 | I52: =INDEX(INDIRECT(dms_RPT),dms_FRCP_start_row+5) -> 2026
B53: 1993-94 | C53: 1994 | D53: PRCP_y7 | E53: =INDEX(INDIRECT(dms_RPT),dms_PRCP_start_row+6) -> 2017 | F53: CRCP_y7 | G53: =INDEX(INDIRECT(dms_RPT),dms_CRCP_start_row+6) -> 2022 | H53: FRCP_y7 | I53: =INDEX(INDIRECT(dms_RPT),dms_FRCP_start_row+6) -> 2027
B54: 1994-95 | C54: 1995 | D54: PRCP_y8 | E54: =INDEX(INDIRECT(dms_RPT),dms_PRCP_start_row+7) -> 2018 | F54: CRCP_y8 | G54: =INDEX(INDIRECT(dms_RPT),dms_CRCP_start_row+7) -> 2023 | H54: FRCP_y8 | I54: =INDEX(INDIRECT(dms_RPT),dms_FRCP_start_row+7) -> 2028
B55: 1995-96 | C55: 1996 | D55: PRCP_y9 | E55: =INDEX(INDIRECT(dms_RPT),dms_PRCP_start_row+8) -> 2019 | F55: CRCP_y9 | G55: =INDEX(INDIRECT(dms_RPT),dms_CRCP_start_row+8) -> 2024 | H55: FRCP_y9 | I55: =INDEX(INDIRECT(dms_RPT),dms_FRCP_start_row+8) -> 2029
B56: 1996-97 | C56: 1997 | D56: PRCP_y10 | E56: =INDEX(INDIRECT(dms_RPT),dms_PRCP_start_row+9) -> 2020 | F56: CRCP_y10 | G56: =INDEX(INDIRECT(dms_RPT),dms_CRCP_start_row+9) -> 2025 | H56: FRCP_y10 | I56: =INDEX(INDIRECT(dms_RPT),dms_FRCP_start_row+9) -> 2030
B57: 1997-98 | C57: 1998 | D57: PRCP_y11 | E57: =INDEX(INDIRECT(dms_RPT),dms_PRCP_start_row+10) -> 2021 | F57: CRCP_y11 | G57: =INDEX(INDIRECT(dms_RPT),dms_CRCP_start_row+10) -> 2026 | H57: FRCP_y11 | I57: =INDEX(INDIRECT(dms_RPT),dms_FRCP_start_row+10) -> 2031
B58: 1998-99 | C58: 1999 | D58: PRCP_y12 | E58: =INDEX(INDIRECT(dms_RPT),dms_PRCP_start_row+11) -> 2022 | F58: CRCP_y12 | G58: =INDEX(INDIRECT(dms_RPT),dms_CRCP_start_row+11) -> 2027 | H58: FRCP_y12 | I58: =INDEX(INDIRECT(dms_RPT),dms_FRCP_start_row+11) -> 2032
B59: 1999-00 | C59: 2000 | D59: PRCP_y13 | E59: =INDEX(INDIRECT(dms_RPT),dms_PRCP_start_row+12) -> 2023 | F59: CRCP_y13 | G59: =INDEX(INDIRECT(dms_RPT),dms_CRCP_start_row+12) -> 2028 | H59: FRCP_y13 | I59: =INDEX(INDIRECT(dms_RPT),dms_FRCP_start_row+12) -> 2033
B60: 2000-01 | C60: 2001 | D60: PRCP_y14 | E60: =INDEX(INDIRECT(dms_RPT),dms_PRCP_start_row+13) -> 2024 | F60: CRCP_y14 | G60: =INDEX(INDIRECT(dms_RPT),dms_CRCP_start_row+13) -> 2029 | H60: FRCP_y14 | I60: =INDEX(INDIRECT(dms_RPT),dms_FRCP_start_row+13) -> 2034
B61: 2001-02 | C61: 2002 | D61: PRCP_y15 | E61: =INDEX(INDIRECT(dms_RPT),dms_PRCP_start_row+14) -> 2025 | F61: CRCP_y15 | G61: =INDEX(INDIRECT(dms_RPT),dms_CRCP_start_row+14) -> 2030 | H61: FRCP_y15 | I61: =INDEX(INDIRECT(dms_RPT),dms_FRCP_start_row+14) -> 2035
B62: 2002-03 | C62: 2003 | D62: PRCP_y16 | E62: =INDEX(INDIRECT(dms_RPT),dms_PRCP_start_row+15) -> 2026 | F62: CRCP_y16 | G62: =INDEX(INDIRECT(dms_RPT),dms_CRCP_start_row+15) -> 2031 | H62: FRCP_y16 | I62: =INDEX(INDIRECT(dms_RPT),dms_FRCP_start_row+15) -> 2036
B63: 2003-04 | C63: 2004
B64: 2004-05 | C64: 2005
B65: 2005-06 | C65: 2006 | E65: CRY - FRY
B66: 2006-07 | C66: 2007 | D66: dms_y1 | E66: =IFERROR(INDEX(INDIRECT(dms_RPT),dms_CRY_start_row),0) -> 2018
B67: 2007-08 | C67: 2008 | D67: dms_y2 | E67: =IFERROR(INDEX(INDIRECT(dms_RPT),dms_CRY_start_row+1),0) -> 2019
B68: 2008-09 | C68: 2009 | D68: dms_y3 | E68: =IFERROR(INDEX(INDIRECT(dms_RPT),dms_CRY_start_row+2),0) -> 2020
B69: 2009-10 | C69: 2010 | D69: dms_y4 | E69: =IFERROR(INDEX(INDIRECT(dms_RPT),dms_CRY_start_row+3),0) -> 2021
B70: 2010-11 | C70: 2011 | D70: dms_y5 | E70: =IFERROR(INDEX(INDIRECT(dms_RPT),dms_CRY_start_row+4),0) -> 2022
B71: 2011-12 | C71: 2012 | D71: dms_y6 | E71: =IFERROR(INDEX(INDIRECT(dms_RPT),dms_CRY_start_row+5),0) -> 2023
B72: 2012-13 | C72: 2013 | D72: dms_y7 | E72: =IFERROR(INDEX(INDIRECT(dms_RPT),dms_CRY_start_row+6),0) -> 2024
B73: 2013-14 | C73: 2014 | D73: dms_y8 | E73: =IFERROR(INDEX(INDIRECT(dms_RPT),dms_CRY_start_row+7),0) -> 2025
B74: 2014-15 | C74: 2015 | D74: dms_y9 | E74: =IFERROR(INDEX(INDIRECT(dms_RPT),dms_CRY_start_row+8),0) -> 2026
B75: 2015-16 | C75: 2016 | D75: dms_y10 | E75: =IFERROR(INDEX(INDIRECT(dms_RPT),dms_CRY_start_row+9),0) -> 2027
B76: 2016-17 | C76: 2017 | D76: dms_y11 | E76: =IFERROR(INDEX(INDIRECT(dms_RPT),dms_CRY_start_row+10),0) -> 2028
B77: 2017-18 | C77: 2018 | D77: dms_y12 | E77: =IFERROR(INDEX(INDIRECT(dms_RPT),dms_CRY_start_row+11),0) -> 2029
B78: 2018-19 | C78: 2019 | D78: dms_y13 | E78: =IFERROR(INDEX(INDIRECT(dms_RPT),dms_CRY_start_row+12),0) -> 2030
B79: 2019-20 | C79: 2020 | D79: dms_y14 | E79: =IFERROR(INDEX(INDIRECT(dms_RPT),dms_CRY_start_row+13),0) -> 2031
B80: 2020-21 | C80: 2021 | D80: dms_y15 | E80: =IFERROR(INDEX(INDIRECT(dms_RPT),dms_CRY_start_row+14),0) -> 2032
B81: 2021-22 | C81: 2022 | D81: dms_y16 | E81: =IFERROR(INDEX(INDIRECT(dms_RPT),dms_CRY_start_row+15),0) -> 2033
B82: 2022-23 | C82: 2023
B83: 2023-24 | C83: 2024
B84: 2024-25 | C84: 2025
B85: 2025-26 | C85: 2026
B86: 2026-27 | C86: 2027
B87: 2027-28 | C87: 2028
B88: 2028-29 | C88: 2029
B89: 2029-30 | C89: 2030
B90: 2030-31 | C90: 2031
B91: 2031-32 | C91: 2032
B92: 2032-33 | C92: 2033
B93: 2033-34 | C93: 2034
B94: 2034-35 | C94: 2035
B95: 2035-36 | C95: 2036
B96: 2036-37 | C96: 2037

Sheet AER ETL (hidden)
B1: AER ETL INFORMATION
B3: USES NAMED RANGES FLAG | C3: yes | D3: dms_Defined_Names_Used
B5: IF THIS IS AN ABC RIN - make sure the the named range CRY is applied and the named range dms_dollar_nom_UOM is applied
B6: IF THIS IS A RESET RIN - make sure the named ranges CRY and dms_dollar_nom_UOM are NOT present in the workbook
B7: FOR ABC RINS THAT SPAN MULTIPLE YEARS - make sure MultiYear Flag is set and final year entered as required
B9: Full trading name | C9: =INDEX(dms_TradingNameFull_List,MATCH(dms_TradingName,dms_TradingName_List)) -> AusNet Gas Services | E9: dms_TradingNameFull
B10: Trading name | C10: =dms_TradingName -> AusNet (Gas)
A11: Selected here | B11: Model / RIN | C11: ARR | D11: dms_Model
A12: Read from Business & other details | B12: Source | C12: Reporting | D12: dms_Source
B13: Data quality | C13: =dms_Selected_Quality -> Consolidated | D13: dms_DQ_1
B14: Data status | C14: =dms_Selected_Status -> Public | D14: dms_DQ_2
B15: Amendment reason | C15: =dms_Amendment_Text -> . | F15: dms_AmendmentReason
B16: Submission date | C16: =dms_Typed_Submission_Date -> 30/06/22 | D16: dms_SubmissionDate
A18: Redundant | B18: EBSS - First application of scheme in forthcoming period? | C18: No
A19: Pre-populated from lookup table | B19: Data ingestion data quality | C19: =dms_Selected_Quality -> Consolidated | D19: dms_DataQuality | E19: =IF(dms_DQ_2="Confidential","Consolidated","Public")
B20: Sector | C20: =INDEX(dms_Sector_List,MATCH(dms_TradingName,dms_TradingName_List)) -> Gas | D20: dms_Sector | E20: =INDEX(dms_Sector_List,MATCH(dms_TradingName,dms_TradingName_List))
B21: Segment | C21: =INDEX(dms_Segment_List,MATCH(dms_TradingName,dms_TradingName_List)) -> Distribution | D21: dms_Segment | E21: =INDEX(dms_Segment_List,MATCH(dms_TradingName,dms_TradingName_List))
B22: Regulatory Year Ending | C22: =dms_RYE_result -> 2021 | D22: dms_RYE | E22: =IF(dms_MultiYear_Flag=1,LEFT(dms_Specified_FinalYear,2)&RIGHT(dms_Specified_FinalYear,2),INDEX(dms_RYE_Formula_Result,MATCH(dms_Model,dms_Model_List)))
B23: Reporting Period Type | C23: =INDEX(dms_RPT_List,MATCH(dms_TradingName,dms_TradingName_List)) -> Calendar | D23: dms_RPT | E23: =INDEX(dms_RPT_List,MATCH(dms_TradingName,dms_TradingName_List))
B24: EB/CA Unit of Measure for Monetary Values | C24: $0s | D24: dms_dollar_nom_UOM | E24: If the cover sheet is attached to an ABC RIN apply the NAMED RANGE to the cell
B25: Security Classification | C25: Public | D25: dms_Classification | E25: Always Public
B26: Jurisdiction | C26: =INDEX(dms_JurisdictionList,MATCH(dms_TradingName,dms_TradingName_List)) -> Vic | D26: dms_Jurisdiction | E26: =INDEX(dms_JurisdictionList,MATCH(dms_TradingName,dms_TradingName_List))
A27: Relevant for PTRM, RFMs and Reset RINS | B27: $ REAL REFERENCES
B28: Does the named range CRY exist in this file? | C28: =IFERROR("Yes "&CRY,"NO") -> Yes 2018
B29: CRY-1 (last full calendar year before CRY) | C29: =IFERROR(IF(dms_RPT="calendar",CRY-1,LEFT(CRY,4)),"CRY not present") -> 2017 | D29: dms_Cal_Year_B4_CRY | E29: '=IF(dms_RPT="financial",VALUE(LEFT(dms_SingleYear_FinalYear_Result,4)),VALUE(LEFT(dms_SingleYear_FinalYear_Result,4)-1))
B30: Dollar $ real month | C30: =INDEX(dms_RPTMonth_List,MATCH(dms_TradingName,dms_TradingName_List)) -> December | D30: dms_RPTMonth | E30: =INDEX(dms_RPTMonth_List,MATCH(dms_TradingName,dms_TradingName_List))
B31: Dollar $ real (the last month before the FRCP_y1) | C31: =IF(dms_SingleYearModel="yes",CONCATENATE(dms_RPTMonth)&" "&VALUE((LEFT(CRY,2))&RIGHT(CRY,2)),CONCATENATE(dms_RPTMonth)&" "&dms_DollarReal_year) -> December 2018 | D31: dms_DollarReal | E31: =IF(SUM(dms_SingleYear_Model)>0,CONCATENATE(dms_RPTMonth)&" "&VALUE((LEFT(CRY,2))&RIGHT(CRY,2)),CONCATENATE(dms_RPTMonth)&" "&VALUE((LEFT(dms_RYE,2)&RIGHT(dms_RYE,2))))
B32: Dollar $ real previous year (PRCP_y5) | C32: =IF(dms_SingleYearModel="yes",CONCATENATE(dms_RPTMonth)&" "&VALUE((LEFT(CRY,2))&RIGHT(CRY,2)),CONCATENATE(dms_RPTMonth)&" "&dms_Previous_DollarReal_year) -> December 2018 | D32: dms_DollarReal_Prev | E32: =IF(SUM(dms_SingleYear_Model)>0,CONCATENATE(dms_RPTMonth)&" "&VALUE(((LEFT(CRY,2))&RIGHT(CRY,2))-1),CONCATENATE(dms_RPTMonth)&" "&VALUE(((LEFT(dms_CRCP_FirstYear_Result,2)&RIGHT(dms_CRCP_FirstYear_Result,2))))-1)
B33: PTRM/ RFMs
B34: Form of control | C34: =INDEX(dms_FormControl_List,MATCH(dms_TradingName,dms_TradingName_List)) -> Weighted average price cap | D34: dms_FormControl | E34: =INDEX(dms_FormControl_List,MATCH(dms_TradingName,dms_TradingName_List))
A35: All potential values for Regulatory Years or RYEs as calculated | B35: This block works out the various RYE's for ALL RIN types and MODELS
B36: dms_start_year | C36: =FRCP_y1 -> 2021 | D36: FRCP_y1 from cover sheet
B37: dms_CRY_start_year | C37: =IFERROR(CRY,CRCP_y4) -> 2018
B38: dms_CRY_start_row | C38: =IFERROR(MATCH(dms_CRY_start_year,INDIRECT(dms_RPT),0),0) -> 31
B39: dms_FRCP_start_row | C39: =MATCH(dms_start_year,INDIRECT(dms_RPT),0) -> 34 | D39: Uses FRCP_y1 as a start reference
B40: dms_CRCP_start_row | C40: =dms_FRCP_start_row-dms_CRCPlength_Num -> 29 | D40: Uses the value in dms_CRCPlength_Num
B41: dms_PRCP_start_row | C41: =dms_FRCP_start_row-dms_CRCPlength_Num-dms_PRCPlength_Num -> 24 | D41: Uses the value in dms_CRCPlength_Num and dms_PRCPlength_Num
B42: dms_RYE_start_row | C42: =dms_FRCP_start_row+(dms_FRCPlength_Num-1) -> 38 | D42: Uses the value in dms_FRCPlength_Num-1
B43: FRCP_start_year | C43: =INDEX(INDIRECT(dms_RPT),dms_FRCP_start_row) -> 2021 | D43: Converts the FRCP start row to display the year
B44: CRCP_start_year | C44: =INDEX(INDIRECT(dms_RPT),dms_CRCP_start_row) -> 2016 | D44: Converts the CRCP start row to display the year
B45: PRCP_start_year | C45: =INDEX(INDIRECT(dms_RPT),dms_PRCP_start_row) -> 2011 | D45: Converts the PRCP start row to display the year
B46: FRCP_final_year | C46: =INDEX(INDIRECT(dms_RPT),dms_FRCP_start_row+dms_FRCPlength_Num-1) -> 2025 | D46: Finds the FRCP final year
B47: CRCP_final_year | C47: =INDEX(INDIRECT(dms_RPT),dms_CRCP_start_row+dms_CRCPlength_Num-1) -> 2020 | D47: Finds the CRCP final year
B48: PRCP_final_year | C48: =INDEX(INDIRECT(dms_RPT),dms_PRCP_start_row+dms_FRCPlength_Num-1) -> 2015 | D48: Finds the PRCP final year
B49: dms_Reset_final_year | C49: =INDEX(INDIRECT(dms_RPT),dms_RYE_start_row) -> 2025 | D49: For Resets and PTRM/RFMs (same as FRCP_final_year)
B50: dms_SpecifiedYear_final_year | C50: =FRY -> 2021 | D50: FRY from cover sheet
B51: dms_DollarReal_year | C51: =LEFT(CRCP_final_year,2)&RIGHT(CRCP_final_year,2) -> 2020 | D51: Uses the value in CRCP_final_year
B52: dms_Previous_DollarReal_year | C52: =LEFT(PRCP_final_year,2)&RIGHT(PRCP_final_year,2) -> 2015 | D52: Uses the value in PRCP_final_year
B53: dms_CRY_RYE | C53: =IFERROR(LEFT(CRY,2)&RIGHT(CRY,2),0) -> 2018 | D53: For ABC single year RINS
B54: dms_Reset_RYE | C54: =IF(dms_Model_Span>1,IF(dms_Model="RFM",(LEFT(dms_DollarReal_year,2)&RIGHT(dms_DollarReal_year,2)),(LEFT(dms_Reset_final_year,2)&RIGHT(dms_Reset_final_year,2))),0) -> 0 | D54: If model span > 1 then uses dms_Reset_RYE otherwise it's a multi year ABC and uses dms_Specified_RYE
B55: dms_Specified_RYE | C55: =IF(dms_MultiYear_ResponseFlag="Yes",(LEFT(dms_Specified_FinalYear,2)&RIGHT(dms_Specified_FinalYear,2)),0) -> 2021 | D55: If multi year ABC - uses dms_Specified_FinalYear
B56: dms_Model_Span | C56: =INDEX(dms_Model_Span_List,MATCH(dms_Model,dms_Model_List)) -> 1 | D56: A result of 5 is used to signify that it is more than 1 year span
B57: dms_RYE_result | C57: =IF(dms_MultiYear_ResponseFlag="yes",dms_Specified_RYE,(IF(dms_Model_Span>1,dms_Reset_RYE,dms_CRY_RYE))) -> 2021 | D57: Nested IF - feeds into dms_RYE
B58: dms_Reset_Span | C58: =IF(dms_Reset_RYE>0,CONCATENATE(FRCP_y1," to ",FRCP_final_year),0) -> 0 | D58: Reset span of years as text
B59: dms_SpecifiedYear_Span | C59: =IF(dms_Specified_RYE>0,CONCATENATE(CRY," to ",dms_Specified_FinalYear),0) -> 2018 to 2021 | D59: Multi year ABC span of years as text
B60: dms_Header_Span | C60: =IF(dms_MultiYear_Flag=1,dms_SpecifiedYear_Span,IF(dms_Model_Span>1,dms_Reset_Span,CRY)) -> 2018 to 2021 | D60: NESTED IF - for Sheet Headers
B61: ABC RINS THAT SPAN MULTIPLE YEARS
B62: This is a multi year ABC RIN? | C62: Yes
C63: =IF(dms_MultiYear_ResponseFlag="No",0,1) -> 1 | D63: dms_MultiYear_Flag | E63: This is set from the answer provided above
C64: =IF(dms_MultiYear_Flag=1,FRY,"not a Multiple year submission") -> 2021 | D64: dms_Specified_FinalYear | E64: The result here is returned to dms_CRCP_FinalYear_Result if response to Q in C73 is "yes" and dms_MultiYear_Flag is set to 1
B65: Start year for 5.2 in Multi year ABC RINS | C65: =IFERROR(IF(dms_MultiYear_Flag=1,FRY,CRY),"not an ABC") -> 2021 | D65: dms_0502_Inst_Year | E65: =IF(dms_MultiYear_Flag=1,FRY,CRY) | G65: For single year RINS this is CRY - multi year RINS need to start a the end of the span of years (ie. FRY)
B66: WHAT IS THE RYE?
B67: Reg Period Lengths
B68: PRCP length in years | C68: =INDEX(dms_PRCPlength_List,MATCH(dms_TradingName,dms_TradingName_List)) -> 5 | D68: dms_PRCPlength_Num | E68: =INDEX(dms_PRCPlength_List,MATCH(dms_TradingName,dms_TradingName_List))
B69: CRCP length in years | C69: =INDEX(dms_CRCPlength_List,MATCH(dms_TradingName,dms_TradingName_List)) -> 5 | D69: dms_CRCPlength_Num | E69: =INDEX(dms_CRCPlength_List,MATCH(dms_TradingName,dms_TradingName_List))
B70: FRCP length in years | C70: =INDEX(dms_FRCPlength_List,MATCH(dms_TradingName,dms_TradingName_List)) -> 5 | D70: dms_FRCPlength_Num | E70: =INDEX(dms_FRCPlength_List,MATCH(dms_TradingName,dms_TradingName_List))
B71: Single year RIN?
B72: Single Year ABC RIN ? | C72: =IF(dms_Model="EB",1,0) -> 0 | D72: dms_EB
C73: =IF(dms_Model="CA",1,0) -> 0 | D73: dms_CA | E73: =dms_SingleYear_Model
C74: =IF(dms_Model="ARR",1,0) -> 1 | D74: dms_ARR
B75: Is this a single Year ABC RIN? | C75: =IF(SUM(dms_SingleYear_Model)=1,"yes","no") -> yes | D75: dms_SingleYearModel | E75: =IF(SUM(dms_SingleYear_Model)=1,"yes","no")
B76: Single Year Final Year Result | C76: =IF(AND(dms_SingleYearModel="yes",dms_MultiYear_Flag=0),CRY,0) -> 0 | D76: dms_SingleYear_FinalYear_Result | E76: =IFERROR(IF(SUM(dms_SingleYear_Model)<>0,(INDIRECT(dms_SingleYear_FinalYear_Ref)),"not a single year RIN"),"CRY not present")
B77: Multi year RIN?
B79: Multi Year Reset/Model? | C79: =IF(dms_Model_Span>1,"yes","no") -> no
B80: Final year result for Reset/Model | C80: =IF(dms_Model_Span>1,dms_Reset_final_year,0) -> 0 | D80: dms_MultiYear_FinalYear_Result
B82: Multi Year ABC RIN? | C82: =IF(dms_MultiYear_Flag=1,"yes","no") -> yes | D82: dms_MultiYear_ABC_RIN
B83: Final year result for ABC multi year | C83: =IF(dms_MultiYear_Flag=1,C50,0) -> 2021
B85: EB RINS
B86: Calendar Year for table 3.6 data | C86: =IFERROR(IF(dms_Segment="Transmission",dms_Cal_Year_B4_CRY,CRY),"CRY not present") -> 2018 | D86: dms_0306_Year | E86: =IF(dms_Segment="Transmission",dms_Cal_Year_B4_CRY,CRY)
B87: CA RINS
B88: Find how many rows in tables 6.3 sustained interruptions? | E88: dms_060301_MaxRows only returns a valid value when cover sheet is attached to a CA file
C89: =IF(dms_Model<>"CA","not a CA","Is a CA") -> not a CA | E89: =IF(dms_Model<>"CA","not a CA","Is a CA")
B90: dms_060301_Avg_Duration_Sustained_Int_Values present? | C90: =IFERROR(IF(INDEX(dms_060301_Avg_Duration_Sustained_Int_Values,1,1)<>"","yes","no"),"no") -> no | D90: dms_060301_checkvalue | E90: =IFERROR(IF(INDEX(dms_060301_Avg_Duration_Sustained_Int_Values,1,1)<>"","yes","no"),"no")
C91: =IF(AND(dms_Model="CA",(dms_060301_checkvalue="no")),"error - NR not present","no errors") -> no errors | E91: =IF(AND(dms_Model="CA",(dms_060301_checkvalue="no")),"error - NR not present","no errors")
B92: Table 6.3.1 - last row reference | C92: =IFERROR(IF(dms_Model="CA",LOOKUP(2,1/(dms_060301_Avg_Duration_Sustained_Int_Values<>""),(ROW(dms_060301_Avg_Duration_Sustained_Int_Values))),"not a CA"),"6.3 not present") -> not a CA | D92: dms_060301_LastRow | E92: =IFERROR(IF(dms_Model="CA",LOOKUP(2,1/(dms_060301_Avg_Duration_Sustained_Int_Values<>""),(ROW(dms_060301_Avg_Duration_Sustained_Int_Values))),"not a CA"),"6.3 not present")
B93: Table 6.3.1 - max number rows | C93: =IFERROR(IF(dms_Model="CA",(dms_060301_LastRow-15),"not a CA"),"error") -> not a CA | D93: dms_060301_MaxRows | E93: =IFERROR(IF(dms_Model="CA",(dms_060301_LastRow-15),"not a CA"),"error")
B94: Table 6.6.3 - Public lighting repair - no. business days | C94: =INDEX(dms_663_List,MATCH(dms_TradingName,dms_TradingName_List)) -> X | D94: dms_663 | E94: =INDEX(dms_663_List,MATCH(dms_TradingName,dms_TradingName_List))
B95: ARR or RESET RINS
B96: How many rows in tables 6.1 or 6.7? (leap year?) | C96: insert dms_LeapYear NR if required | E96: 'dms_LeapYear is used to determine dms_060701_Max_Rows BUT it is only found on worksheet 6.1 or 6.7 and the date value in the cell is used to determine whether it is a leap year
B97: Is dms_LeapYear named range present? | C97: =IFERROR(IF(dms_LeapYear,"yes"),"no") -> no
B98: Table 6.7.1 - includes a leap year? | C98: =IFERROR(IF(MONTH(DATE(YEAR(dms_LeapYear),2,29))=2,"is a leap year","not a leap year"), "dms_LeapYear not present") -> dms_LeapYear not present | D98: dms_LeapYear_Result | E98: =IFERROR(IF(MONTH(DATE(YEAR(dms_LeapYear),2,29))=2,"is a leap year","not a leap year"),"dms_LeapYear not present")
B99: MaxRows if Reset and leap year | C99: =IF(dms_LeapYear_Result="is a leap year",1827,1826) -> 1826 | D99: dms_060701_Reset_MaxRows | E99: =IF(dms_LeapYear_Result="is a leap year",1827,1826) | H99: number of days present in Reset RIN table
B100: MaxRows if ARR and leap year | C100: =IF(dms_LeapYear_Result="is a leap year",366,365) -> 365 | D100: dms_060701_ARR_MaxRows | E100: =IF(dms_LeapYear_Result="is a leap year",366,365) | H100: number of days present in ARR RIN table
B101: Table 6.7.1 - Max Rows (leap year/ non leap year) | C101: =IF(dms_Model="ARR",dms_060701_ARR_MaxRows,IF(dms_Model="Reset",dms_060701_Reset_MaxRows,"not a relevant RIN type")) -> 365 | D101: dms_060701_MaxRows | E101: =IF(dms_Model="ARR",dms_060701_ARR_MaxRows,IF(dms_Model="Reset",dms_060701_Reset_MaxRows,"not a relevant RIN type"))
B102: How many columns in 6.7? (4 or 5 feeder categories) | C102: =IF(dms_FifthFeeder_flag_NSP="NO","This NSP has only 4 feeder categories","This NSP has 5 feeder categories") -> This NSP has only 4 feeder categories
B103: Table 6.7.1 - Last column (# of feeder categories > 4) | C103: =IF(dms_FifthFeeder_flag_NSP="NO",10,12) -> 10 | D103: dms_060701_MaxCols | E103: =IF(dms_FifthFeeder_flag_NSP="NO",8,10)
B104: Table 6.7.1 - Number of offset rows | C104: =IF(dms_Model="ARR",15,9) -> 15 | D104: dms_060701_OffsetRows | E104: =IF(dms_Model="ARR",15,9)
B105: Start date for telephone answering in 6.1 or 6.7? | E105: Using 060101 as naming standard not 060701 for start dates
B106: Table 6.1.1 and 6.7.1 - Start Date as Text | C106: =IF(dms_SingleYearModel="yes",(CONCATENATE(IF(LEN(CRY)=4,"1-Jan-","1-Jul-"),LEFT(CRY,4))),(CONCATENATE(IF(LEN(PRCP_y4)=4,"1-Jan-","1-Jul-"),LEFT(PRCP_y4,4)))) -> 1-Jan-2018 | D106: dms_060101_StartDateTxt | E106: =IF(SUM(dms_SingleYear_Model)>1,(CONCATENATE(IF(LEN(CRY)=4,"1-Jan-","1-Jul-"),LEFT(CRY,4))),(CONCATENATE(IF(LEN(CRCP_y4)=4,"1-Jan-","1-Jul-"),LEFT(CRCP_y4,4))))
B107: Table 6.1.1 and 6.7.1 - Start Date as Date Value | C107: =DATEVALUE(dms_060701_StartDateTxt) -> 43101 | D107: dms_060101_StartDateVal | E107: =DATEVALUE(dms_060701_StartDateTxt)
B108: ARRs
B109: How many rows in table 6.8? | C109: insert dms_060801_StartCell NR if required | E109: dms_060801_StartCell is only found on worksheet 6.8 and is used to determine the starting date for the date range
B110: Is dms_060801_StartCell named range present? | C110: yes | E110: =IFERROR(IF((ROW(dms_060801_StartCell)-1)=1,"yes","yes"),"no")
B111: Table 6.8 - Number of offset rows | C111: 12 | D111: dms_0608_OffsetRows | E111: =IFERROR(IF(dms_Model="ARR",(ROW(dms_060801_StartCell)-1),"not an ARR"),"6.8 error")
B112: Table 6.8 - Last row | C112: 0 | D112: dms_0608_LastRow | E112: =IFERROR(IF(dms_060801_StartCell<>"",IF(dms_Model="ARR",(LOOKUP(2,1/(dms_060801_01_Values<>""),(ROW(dms_060801_01_Values)))),"not an ARR"),0),"0")
B113: Table 6.8 - MaxRows | C113: =IFERROR(IF(dms_Model="ARR",(MAX(0,dms_0608_LastRow-dms_0608_OffsetRows)),"not an ARR"),"0") -> 0 | D113: dms_060801_MaxRows | E113: =IFERROR(IF(dms_Model="ARR",(MAX(0,dms_0608_LastRow-dms_0608_OffsetRows)),"not an ARR"),"0")
B114: TNSP RESET RINS
B115: Table 7.9.4 only appears in TNSPs Reset RIN
B116: Table 7.9.4 - first year | C116: =LEFT(PRCP_y3,4) -> 2013 | D116: dms_070904_Start_Year | E116: =LEFT(PRCP_y3,4)
B118: MISC
B119: Distribution Determination Reference | C119: =INDEX(dms_DeterminationRef_List,MATCH(dms_TradingName,dms_TradingName_List)) -> 0 | D119: dms_DeterminationRef
B120: Public lighting NSP? | C120: =INDEX(dms_Public_Lighting_List,MATCH(dms_TradingName,dms_TradingName_List)) -> NO | D120: dms_Public_Lighting | E120: =INDEX(dms_Public_Lighting_List,MATCH(dms_TradingName,dms_TradingName_List))
B121: CBD Feeder for this business | C121: =INDEX(dms_CBD_flag,MATCH(dms_TradingName,dms_TradingName_List)) -> NO | D121: dms_CBD_flag_NSP
B122: Urban Feeder for this business | C122: =INDEX(dms_Urban_flag,MATCH(dms_TradingName,dms_TradingName_List)) -> NO | D122: dms_Urban_flag_NSP
B123: Short rural Feeder for this business | C123: =INDEX(dms_ShortRural_flag,MATCH(dms_TradingName,dms_TradingName_List)) -> NO | D123: dms_ShortRural_flag_NSP
B124: Long rural Feeder for this business | C124: =INDEX(dms_LongRural_flag,MATCH(dms_TradingName,dms_TradingName_List)) -> NO | D124: dms_LongRural_flag_NSP
B125: Fifth Feeder Category (eg. TasNetworks (D)) | C125: =INDEX(dms_FeederType_5_flag,MATCH(dms_TradingName,dms_TradingName_List)) -> NO | D125: dms_FifthFeeder_flag_NSP | E125: =INDEX(dms_FeederType_5_flag,MATCH(dms_TradingName,dms_TradingName_List))
B127: DISCARD FILES
B128: discard this record? | C128: NO | D128: dms_DISCARD | E128: If record is to be discarded from DB set this flag to YES
B130: SUBSET FILES
B131: Is this Submission File a Subset File | C131: NO | D131: dms_Partial
B134: REGULATORY YEARS FOR MULTI RYE SUBMISSIONS
B135: Multiple RYE flag | C135: YES | D135: dms_Multi_RYE_flag
C136: Manually specify RYE | D136: Named ranges to apply
C137: 2015 | D137: dms_RYE_01
C138: 2016 | D138: dms_RYE_02
C139: 2017 | D139: dms_RYE_03
C140: 2018 | D140: dms_RYE_04
C141: 2019 | D141: dms_RYE_05
C142: 2020 | D142: dms_RYE_06
C143: 2021 | D143: dms_RYE_07
C144: 2022 | D144: dms_RYE_08
C145: 2023 | D145: dms_RYE_09

Sheet Instructions
B2: =CONCATENATE(dms_Sector," ",dms_Segment," ", "Pipeline Service Provider") -> Gas Distribution Pipeline Service Provider
B3: =IF(dms_Model="Reset","Regulatory Proposal RIN Template","Annual Reporting RIN") -> Annual Reporting RIN
B5: INSTRUCTIONS
B6: GENERAL | C6: Complete the Business & other details worksheet before entering data or values in any other worksheets. The Business & other details worksheet is linked to other worksheets within the workbook and automatically generates certain column headings and conditional formatting.
B8: CONFIDENTIAL INFORMATION | C8: Please use the macro at the top of each worksheet to identify confidential information in the confidential workbook.
C9: -Do this by selecting the cell or cells that contain confidential information and then run the Mark selection as CONFIDENTIAL macro. This will format the cells a specific colour that is identified by the AER's database which in turn marks that information as confidential. -To reverse this, select the cell or cells and run the Return selection to NON-CONFIDENTIAL macro.
B11: RESPONSES | C11: Please return two (2) files to the AER: 1. A confidential version which must contain a complete set of all responses with confidential information marked using the Mark selection CONFIDENTIAL macro and which has been completed using the locked template file provided by the AER. 2. A public version with confidential information either removed completely or aggregated in some form together with writtten consent to disclose the public version of the response. Use the drop down box on the Business and other details worksheet to identify the file as either confidential ('consolidated') or public.
B13: AMENDMENTS | C13: If an NSP wishes to correct data previously submitted to the AER it should resubmit that data using the original completed submission as the starting point. Please make any necessary changes to the data. Data that is not being amended should be left unchanged. NSPs must identify the reason for the amendments in the Amendment Reason box on the Business and other details worksheet. NSPs may provide further details regarding any amendments in the Amendments worksheet. .
C14: NSP may use Amended Data macro to highlight cells that contain amended data. NB: if data is also CONFIDENTIAL, re-apply the Confidentiality macro after applying the Amended macro
C15: Please resubmit two (2) files - a confidential version and a public version of the amended submission to the AER
B17: UNITS OF MEASURE | C17: All amounts are to be unrounded and reported on a one for one basis: that is 1000 is to be entered as '1000'. Applicable units of measure may be identified in the table column headings or row descriptors.
B19: INPUT / NON-INPUT CELLS
D20: Yellow = Input cell (mandatory)
D21: Darker yellow = input cell (mandatory)
D22: Orange = input cell (if data available)
D23: Grey = Not applicable/No inputs required
D24: PLEASE DO NOT ENTER TEXT into cells that are to contain numeric data.
B27: NAVIGATION | C27: Many tables in the worksheets have been "grouped" to allow for easy navigation. To ungroup or group data use the outline symbols in the left margin (for Row groupings) or above the columns (for column groupings).

Sheet CONTENTS
B1: =INDEX(dms_Worksheet_List,MATCH(dms_Model,dms_Model_List)) -> HISTORICAL ANNUAL REPORTING
B2: =dms_TradingName -> AusNet (Gas)
B3: =dms_Header_Span -> 2018 to 2021
C7: CONTENTS
C9: TEMPLATE | D9: FINAL RIN MARCH 2022
C11: SUBMISSION | D11: Business & other details
C13: EXPENDITURE | D13: E2. Mains Repex
D14: E3. Mains Augex
D15: E4. Meter replacement
D16: E5. New Connections
D17: E6. Non-network
D18: E10. Overheads
D19: E12. ICT
D20: E13. Other capex
C22: ADMIN | D22: Additional disclosures

Sheet Business & other details
V1: =INDEX(dms_Worksheet_List,MATCH(dms_Model,dms_Model_List)) -> HISTORICAL ANNUAL REPORTING
V2: =dms_TradingName -> AusNet (Gas)
V3: =dms_Header_Span -> 2018 to 2021
V4: BUSINESS & OTHER DETAILS
V6: INSTRUCTIONS
V7: Complete the following business details regulatory template before entering data or values in any other regulatory template. This regulatory template is linked to other cells within the spreadsheet and automatically generates column headings and conditional formatting to distinguish business specific input and non-input cells.
Q9: SUBMISSION PARTICULARS INPUT SHEET
V12: ENTITY DETAILS
V14: Business Name
V16: Short name | AL16: AusNet (Gas)
V17: ACN/ABN | AL17: =INDEX(dms_ABN_List,MATCH(dms_TradingName,dms_TradingName_List)) -> 086015036
V21: Business Address | BQ21: Postal Address
V23: Address 1 | AL23: =INDEX(dms_Addr1_List,MATCH(dms_TradingName,dms_TradingName_List)) -> Level 31 | BI23: Address 1 | BQ23: Locked Bag 14051
V24: Address 2 | AL24: =IF(ISBLANK(INDEX(dms_Addr2_List,MATCH(dms_TradingName,dms_TradingName_List))),"",(INDEX(dms_Addr2_List,MATCH(dms_TradingName,dms_TradingName_List)))) -> 2 Southbank Boulevard | BI24: Address 2 | BQ24: =IF(ISBLANK(INDEX(dms_PAddr2_List,MATCH(dms_TradingName,dms_TradingName_List))),"",(INDEX(dms_PAddr2_List,MATCH(dms_TradingName,dms_TradingName_List)))) -> 
V25: Suburb | AL25: =INDEX(dms_Suburb_List,MATCH(dms_TradingName,dms_TradingName_List)) -> SOUTHBANK | BI25: Suburb | BQ25: MELBOURNE CITY MAIL CENTRE
V26: State | AL26: =INDEX(dms_State_List,MATCH(dms_TradingName,dms_TradingName_List)) -> Vic | AV26: Post code | AX26: 3004 | BI26: State | BQ26: =INDEX(dms_PState_List,MATCH(dms_TradingName,dms_TradingName_List)) -> Vic | CA26: Post code | CC26: 8001
BA28: `
V30: Contact Names
V32: Name | BI32: Name
V33: Phone | BI33: Phone
V34: Email | BI34: Email
Q39: REGULATORY PERIODS
Z42: Forthcoming period | AL42: 2021 | AU42: =FRCP_y2 -> 2022 | BD42: =FRCP_y3 -> 2023 | BM42: =FRCP_y4 -> 2024 | BV42: =FRCP_y5 -> 2025
AL43: =FRCP_y6 -> 2026 | AU43: =FRCP_y7 -> 2027 | BD43: =FRCP_y8 -> 2028 | BM43: =FRCP_y9 -> 2029 | BV43: =FRCP_y10 -> 2030
AL44: =FRCP_y11 -> 2031 | AU44: =FRCP_y12 -> 2032 | BD44: =FRCP_y13 -> 2033 | BM44: =FRCP_y14 -> 2034 | BV44: =FRCP_y15 -> 2035
X46: RESETS | Z46: Current period | AL46: =CRCP_y1 -> 2016 | AU46: =CRCP_y2 -> 2017 | BD46: =CRCP_y3 -> 2018 | BM46: =CRCP_y4 -> 2019 | BV46: =CRCP_y5 -> 2020
AL47: =CRCP_y6 -> 2021 | AU47: =CRCP_y7 -> 2022 | BD47: =CRCP_y8 -> 2023 | BM47: =CRCP_y9 -> 2024 | BV47: =CRCP_y10 -> 2025
AL48: =CRCP_y11 -> 2026 | AU48: =CRCP_y12 -> 2027 | BD48: =CRCP_y13 -> 2028 | BM48: =CRCP_y14 -> 2029 | BV48: =CRCP_y15 -> 2030
Z50: Previous period | AL50: =PRCP_y1 -> 2011 | AU50: =PRCP_y2 -> 2012 | BD50: =PRCP_y3 -> 2013 | BM50: =PRCP_y4 -> 2014 | BV50: =PRCP_y5 -> 2015
AL51: =PRCP_y6 -> 2016 | AU51: =PRCP_y7 -> 2017 | BD51: =PRCP_y8 -> 2018 | BM51: =PRCP_y9 -> 2019 | BV51: =PRCP_y10 -> 2020
AL52: =PRCP_y11 -> 2021 | AU52: =PRCP_y12 -> 2022 | BD52: =PRCP_y13 -> 2023 | BM52: =PRCP_y14 -> 2024 | BV52: =PRCP_y15 -> 2025
Z54: Commencing year | AL54: 2018
X55: ANNUAL RINS
Z56: Final year | AL56: 2021
Q60: SUBMISSION DETAILS
Z62: RIN type | AL62: =INDIRECT(dms_Model) -> Annual Reporting
Z64: Source | AL64: Reporting
X66: THIS FILE | Z66: Data Quality | AL66: Consolidated
Z68: Confidentiality Status | AL68: Public
Z70: Amended RIN Amendment Reason | AL70: .
Z74: Submission Date | AL74: 30/06/22 | BE74: Please enter date this file submitted to AER

Sheet E2. Mains Repex
B1: =INDEX(dms_Worksheet_List,MATCH(dms_Model,dms_Model_List)) -> HISTORICAL ANNUAL REPORTING
B2: =dms_TradingName -> AusNet (Gas)
B3: =dms_Header_Span -> 2018 to 2021
B4: E2. MAINS REPLACEMENT
B7: Please list all projects here:
B8: GD-0001464 74318283 - Roslyn Road - Belmont LP Repl
B9: GD-0006049 McCracken Street, Kensington MP renewal
B10: GD-0006135 Vincent Street, Deer Park MP Renewal
B11: GD-0006145 Pickett Street, Footscray - LP Renewal
B12: GD-0006163 Hertford Road, Sunshine MP Renewal
B13: GD-0006167 Berry Street, Yarraville - LP Renewal
B14: GD-0006183 Eastwood Street, Ballarat - LP Renewal
B15: GD-0006203 Alma Street, Essendon LP Renewal
B16: GD-0006969 Malop Street, Geelong 3220
B17: GD-0006999 Finsbury Street, Kensington- LP Renewal
B18: GD-0007000 Tuppen Street, Yarraville - LP Renewal
B19: GD-0007005 Stirling Street, Footscray - LP Renewal
B20: GD-0007006 Tongue Street, Footscray - LP Renewal
B21: GD-0007007 Buckingham Road, Newtown - LP Renewal
B22: GD-0007015 Keane Street, Coburg - LP Renewal
B23: GD-0007025 Weerona Avenue, Hamlyn Heights - LP Repl
B24: GD-0007026 Anderson Street, Yarraville - LP Renewal
B25: GD-0007036 Errol St, Footscray LP Renewal
B26: GD-0007038 Shuter St, Moonee Ponds - LP Renewal
B27: GD-0007315 Rennison St Braybrook MP Replacement
B28: GD-0007342 Kings Road, St Albans MP Replacement
B29: GD-0007343 Marion St, Altona North MP Replacement
B30: GD-0007799 Tennyson Street, Seddon - LP Renewal
B31: GD-0007939 Byron Street, Footscray - LP Renewal
B32: GD-0007952 Forest Street, Bendigo - LP Renewal
B33: GD-0007988 Manifold Street, Geelong - LP Renewal
B34: GD-0008011 Patrick Street, Geelong - LP Renewal
B35: GD-0008013 Saffron Street, Geelong - LP Renewal
B36: GD-0008038 Cresser St, Altona North MP Replacement
B37: GD-0008043 Arnold Street, Bendigo - LP Renewal
B38: GD-0008053 Holmes Road, Moonee Ponds - LP Renewal
B39: GD-0008200 Golden Square - LP Renewal
B40: GD-0008331 Fehon Street, Yarraville - LP Renewal
B41: GD-0008372 Canterbury Street, Flemington - LPRP
B42: GD-0008383 Leander Street, Flemington
B43: GD-0008415 Henry Street, Kensington - LPRP
B44: GD-0008450 Young Street, Breakwater - LPRP
B45: GD-0008643 Pound Rd, Colac - LP Renewal
B46: GD-0008644 Calvert St, Colac - LP Renewal
B47: GD-0008652 Sinclair St, Colac - LP Renewal
B48: GD-0008734 Marigold Ave, Altona North MP Renewal
B49: GD-0008735 Gillespie Road, St Albans MPMR
B50: GD-0008736 Dover Street, St Albans MPMR
B51: GD-0008737 Hobbs Street, Altona North
B52: GD-0009525 Lupton Street, Geelong
B53: GD-0009526 Ormond Rd, Geelong
B54: GD-0009527 Mair Street, Ballarat
B55: GD-0009533 Stephen St, Yarraville LPMR
B56: GD-0011365 Gas leakage Surveys #712
B60: E2.1 - CAPEX
B61: E2.1.1 - PROACTIVE - BY PROJECT
D62: EXPENDITURE
D63: $0's, Nominal
D64: =dms_y1 -> 2018 | E64: =dms_y2 -> 2019 | F64: =dms_y3 -> 2020 | G64: =dms_y4 -> 2021 | H64: =dms_y5 -> 2022
B65: A. DIRECT INTERNAL LABOUR EXPENDITURE
B66: =IF(ISBLANK(dms_E2_Projects_01),"",dms_E2_Projects_01) -> GD-0001464 74318283 - Roslyn Road - Belmont LP Repl | D66: 43914.93 | E66: 13906.22 | F66: 0 | G66: 0
B67: =IF(ISBLANK(dms_E2_Projects_02),"",dms_E2_Projects_02) -> GD-0006049 McCracken Street, Kensington MP renewal | D67: 1711.81 | E67: 4826.25 | F67: 0 | G67: 0
B68: =IF(ISBLANK(dms_E2_Projects_03),"",dms_E2_Projects_03) -> GD-0006135 Vincent Street, Deer Park MP Renewal | D68: 0 | E68: 0 | F68: 0 | G68: 0
B69: =IF(ISBLANK(dms_E2_Projects_04),"",dms_E2_Projects_04) -> GD-0006145 Pickett Street, Footscray - LP Renewal | D69: 0 | E69: 0 | F69: 0 | G69: 0
B70: =IF(ISBLANK(dms_E2_Projects_05),"",dms_E2_Projects_05) -> GD-0006163 Hertford Road, Sunshine MP Renewal | D70: 0 | E70: 0 | F70: 0 | G70: 0
B71: =IF(ISBLANK(dms_E2_Projects_06),"",dms_E2_Projects_06) -> GD-0006167 Berry Street, Yarraville - LP Renewal | D71: 757.27 | E71: 0 | F71: 0 | G71: 0
B72: =IF(ISBLANK(dms_E2_Projects_07),"",dms_E2_Projects_07) -> GD-0006183 Eastwood Street, Ballarat - LP Renewal | D72: 10095.91 | E72: 0 | F72: 0 | G72: 0
B73: =IF(ISBLANK(dms_E2_Projects_08),"",dms_E2_Projects_08) -> GD-0006203 Alma Street, Essendon LP Renewal | D73: 13838.75 | E73: 0 | F73: 0 | G73: 0
B74: =IF(ISBLANK(dms_E2_Projects_09),"",dms_E2_Projects_09) -> GD-0006969 Malop Street, Geelong 3220 | D74: 0 | E74: 0 | F74: 0 | G74: 0
B75: =IF(ISBLANK(dms_E2_Projects_10),"",dms_E2_Projects_10) -> GD-0006999 Finsbury Street, Kensington- LP Renewal | D75: 760.18 | E75: 9652.5 | F75: 0 | G75: 0
B76: =IF(ISBLANK(dms_E2_Projects_11),"",dms_E2_Projects_11) -> GD-0007000 Tuppen Street, Yarraville - LP Renewal | D76: 1990.48 | E76: 0 | F76: 0 | G76: 0
B77: =IF(ISBLANK(dms_E2_Projects_12),"",dms_E2_Projects_12) -> GD-0007005 Stirling Street, Footscray - LP Renewal | D77: 13462.69 | E77: 0 | F77: 0 | G77: 0
B78: =IF(ISBLANK(dms_E2_Projects_13),"",dms_E2_Projects_13) -> GD-0007006 Tongue Street, Footscray - LP Renewal | D78: 4785.13 | E78: 0 | F78: 0 | G78: 0
B79: =IF(ISBLANK(dms_E2_Projects_14),"",dms_E2_Projects_14) -> GD-0007007 Buckingham Road, Newtown - LP Renewal | D79: 26086.42 | E79: 25793.5 | F79: 0 | G79: 0
B80: =IF(ISBLANK(dms_E2_Projects_15),"",dms_E2_Projects_15) -> GD-0007015 Keane Street, Coburg - LP Renewal | D80: 17961.74 | E80: 0 | F80: 0 | G80: 0
B81: =IF(ISBLANK(dms_E2_Projects_16),"",dms_E2_Projects_16) -> GD-0007025 Weerona Avenue, Hamlyn Heights - LP Repl | D81: 0 | E81: 0 | F81: 0 | G81: 0
B82: =IF(ISBLANK(dms_E2_Projects_17),"",dms_E2_Projects_17) -> GD-0007026 Anderson Street, Yarraville - LP Renewal | D82: 2478.99 | E82: 36397.65 | F82: 0 | G82: 0
B83: =IF(ISBLANK(dms_E2_Projects_18),"",dms_E2_Projects_18) -> GD-0007036 Errol St, Footscray LP Renewal | D83: 7486.75 | E83: 0 | F83: 0 | G83: 0
B84: =IF(ISBLANK(dms_E2_Projects_19),"",dms_E2_Projects_19) -> GD-0007038 Shuter St, Moonee Ponds - LP Renewal | D84: 28606.52 | E84: 0 | F84: 0 | G84: 0
B85: =IF(ISBLANK(dms_E2_Projects_20),"",dms_E2_Projects_20) -> GD-0007315 Rennison St Braybrook MP Replacement | D85: 84.27 | E85: 0 | F85: 0 | G85: 0
B86: =IF(ISBLANK(dms_E2_Projects_21),"",dms_E2_Projects_21) -> GD-0007342 Kings Road, St Albans MP Replacement | D86: 575.78 | E86: 0 | F86: 0 | G86: 0
B87: =IF(ISBLANK(dms_E2_Projects_22),"",dms_E2_Projects_22) -> GD-0007343 Marion St, Altona North MP Replacement | D87: 0 | E87: 26723 | F87: 0 | G87: 0
B88: =IF(ISBLANK(dms_E2_Projects_23),"",dms_E2_Projects_23) -> GD-0007799 Tennyson Street, Seddon - LP Renewal | D88: 984.9 | E88: 0 | F88: 0 | G88: 0
B89: =IF(ISBLANK(dms_E2_Projects_24),"",dms_E2_Projects_24) -> GD-0007939 Byron Street, Footscray - LP Renewal | D89: 14488.93 | E89: 11007.6 | F89: 0 | G89: 0
B90: =IF(ISBLANK(dms_E2_Projects_25),"",dms_E2_Projects_25) -> GD-0007952 Forest Street, Bendigo - LP Renewal | D90: 0 | E90: 0 | F90: 25886.49 | G90: 43003.43
B91: =IF(ISBLANK(dms_E2_Projects_25),"",dms_E2_Projects_26) -> GD-0007988 Manifold Street, Geelong - LP Renewal | D91: 38762.99 | E91: 3635.63 | F91: 0 | G91: 0
B92: =IF(ISBLANK(dms_E2_Projects_27),"",dms_E2_Projects_27) -> GD-0008011 Patrick Street, Geelong - LP Renewal | D92: 0 | E92: 18565.63 | F92: 0 | G92: 0
B93: =IF(ISBLANK(dms_E2_Projects_28),"",dms_E2_Projects_28) -> GD-0008013 Saffron Street, Geelong - LP Renewal | D93: 6555.3 | E93: 23911.63 | F93: 0 | G93: 0
B94: =IF(ISBLANK(dms_E2_Projects_29),"",dms_E2_Projects_29) -> GD-0008038 Cresser St, Altona North MP Replacement | D94: 9084.2 | E94: 2917.2 | F94: 0 | G94: 0
B95: =IF(ISBLANK(dms_E2_Projects_30),"",dms_E2_Projects_30) -> GD-0008043 Arnold Street, Bendigo - LP Renewal | D95: 0 | E95: 0 | F95: 0 | G95: 23759.55
B96: =IF(ISBLANK(dms_E2_Projects_31),"",dms_E2_Projects_31) -> GD-0008053 Holmes Road, Moonee Ponds - LP Renewal | D96: 11072.44 | E96: 39763.89 | F96: 0 | G96: 0
B97: =IF(ISBLANK(dms_E2_Projects_32),"",dms_E2_Projects_32) -> GD-0008200 Golden Square - LP Renewal | D97: 0 | E97: 35760.79 | F97: 10038 | G97: 0
B98: =IF(ISBLANK(dms_E2_Projects_33),"",dms_E2_Projects_33) -> GD-0008331 Fehon Street, Yarraville - LP Renewal | D98: 0 | E98: 24466.24 | F98: 61476.78 | G98: 0
B99: =IF(ISBLANK(dms_E2_Projects_34),"",dms_E2_Projects_34) -> GD-0008372 Canterbury Street, Flemington - LPRP | D99: 0 | E99: 0 | F99: 0 | G99: 36692.1
B100: =IF(ISBLANK(dms_E2_Projects_35),"",dms_E2_Projects_35) -> GD-0008383 Leander Street, Flemington | D100: 0 | E100: 39291.88 | F100: 58424.48 | G100: 0
B101: =IF(ISBLANK(dms_E2_Projects_36),"",dms_E2_Projects_36) -> GD-0008415 Henry Street, Kensington - LPRP | D101: 0 | E101: 25725.98 | F101: 2151 | G101: 0
B102: =IF(ISBLANK(dms_E2_Projects_37),"",dms_E2_Projects_37) -> GD-0008450 Young Street, Breakwater - LPRP | D102: 0 | E102: 18474.5 | F102: 12907.28 | G102: 0
B103: =IF(ISBLANK(dms_E2_Projects_38),"",dms_E2_Projects_38) -> GD-0008643 Pound Rd, Colac - LP Renewal | D103: 0 | E103: 19249.73 | F103: 11474.56 | G103: 0
B104: =IF(ISBLANK(dms_E2_Projects_39),"",dms_E2_Projects_39) -> GD-0008644 Calvert St, Colac - LP Renewal | D104: 0 | E104: 0 | F104: 32053.65 | G104: 7336.66
B105: =IF(ISBLANK(dms_E2_Projects_40),"",dms_E2_Projects_40) -> GD-0008652 Sinclair St, Colac - LP Renewal | D105: 0 | E105: 0 | F105: 0 | G105: 46632
B106: =IF(ISBLANK(dms_E2_Projects_41),"",dms_E2_Projects_41) -> GD-0008734 Marigold Ave, Altona North MP Renewal | D106: 0 | E106: 0 | F106: 18675.28 | G106: 17116.03
B107: =IF(ISBLANK(dms_E2_Projects_42),"",dms_E2_Projects_42) -> GD-0008735 Gillespie Road, St Albans MPMR | D107: 0 | E107: 16909.51 | F107: 0 | G107: 0
B108: =IF(ISBLANK(dms_E2_Projects_43),"",dms_E2_Projects_43) -> GD-0008736 Dover Street, St Albans MPMR | D108: 0 | E108: 0 | F108: 121.65 | G108: 4089.21
B109: =IF(ISBLANK(dms_E2_Projects_44),"",dms_E2_Projects_44) -> GD-0008737 Hobbs Street, Altona North | D109: 0 | E109: 0 | F109: 0 | G109: 0
B110: =IF(ISBLANK(dms_E2_Projects_45),"",dms_E2_Projects_45) -> GD-0009525 Lupton Street, Geelong | D110: 0 | E110: 0 | F110: 0 | G110: 8678.7
B111: =IF(ISBLANK(dms_E2_Projects_46),"",dms_E2_Projects_46) -> GD-0009526 Ormond Rd, Geelong | D111: 0 | E111: 0 | F111: 39606.99 | G111: 20595.16
B112: =IF(ISBLANK(dms_E2_Projects_47),"",dms_E2_Projects_47) -> GD-0009527 Mair Street, Ballarat | D112: 0 | E112: 0 | F112: 0 | G112: 40229.85
B113: =IF(ISBLANK(dms_E2_Projects_48),"",dms_E2_Projects_48) -> GD-0009533 Stephen St, Yarraville LPMR | D113: 0 | E113: 0 | F113: 59549.64 | G113: 32673.34
B114: =IF(ISBLANK(dms_E2_Projects_49),"",dms_E2_Projects_49) -> GD-0011365 Gas leakage Surveys #712 | D114: 0 | E114: 0 | F114: 4830 | G114: 493623.48
B115: =IF(ISBLANK(dms_E2_Projects_50),"",dms_E2_Projects_50) -> 
B116: Other projects with expenditure of less than $500,000 | D116: 11178.6 | E116: -1011.46 | F116: 0 | G116: 0
C117: Total | D117: =SUM(D66:D116) -> 266724.98 | E117: =SUM(E66:E116) -> 395967.87 | F117: =SUM(F66:F116) -> 337195.8 | G117: =SUM(G66:G116) -> 774429.51 | H117: =SUM(H66:H116) -> 0
B119: B. DIRECT CONTRACTOR EXPENDITURE
D120: EXPENDITURE
D121: $0's, Nominal
D122: =dms_y1 -> 2018 | E122: =dms_y2 -> 2019 | F122: =dms_y3 -> 2020 | G122: =dms_y4 -> 2021 | H122: =dms_y5 -> 2022
B123: =IF(ISBLANK(dms_E2_Projects_01),"",dms_E2_Projects_01) -> GD-0001464 74318283 - Roslyn Road - Belmont LP Repl | D123: 2130018.49 | E123: 55319.49 | F123: 0 | G123: 0
B124: =IF(ISBLANK(dms_E2_Projects_02),"",dms_E2_Projects_02) -> GD-0006049 McCracken Street, Kensington MP renewal | D124: 1873129.4 | E124: 104046.31 | F124: 416.1 | G124: 0
B125: =IF(ISBLANK(dms_E2_Projects_03),"",dms_E2_Projects_03) -> GD-0006135 Vincent Street, Deer Park MP Renewal | D125: 0 | E125: 0 | F125: 0 | G125: 0
B126: =IF(ISBLANK(dms_E2_Projects_04),"",dms_E2_Projects_04) -> GD-0006145 Pickett Street, Footscray - LP Renewal | D126: 36656.4 | E126: 0 | F126: 0 | G126: 0
B127: =IF(ISBLANK(dms_E2_Projects_05),"",dms_E2_Projects_05) -> GD-0006163 Hertford Road, Sunshine MP Renewal | D127: 0 | E127: 0 | F127: 0 | G127: 0
B128: =IF(ISBLANK(dms_E2_Projects_06),"",dms_E2_Projects_06) -> GD-0006167 Berry Street, Yarraville - LP Renewal | D128: 24107.39 | E128: 0 | F128: 0 | G128: 0
B129: =IF(ISBLANK(dms_E2_Projects_07),"",dms_E2_Projects_07) -> GD-0006183 Eastwood Street, Ballarat - LP Renewal | D129: 446343.86 | E129: 0 | F129: 0 | G129: 0
B130: =IF(ISBLANK(dms_E2_Projects_08),"",dms_E2_Projects_08) -> GD-0006203 Alma Street, Essendon LP Renewal | D130: 209595.89 | E130: 0 | F130: 0 | G130: 0
B131: =IF(ISBLANK(dms_E2_Projects_09),"",dms_E2_Projects_09) -> GD-0006969 Malop Street, Geelong 3220 | D131: -9.16 | E131: 0 | F131: 0 | G131: 0
B132: =IF(ISBLANK(dms_E2_Projects_10),"",dms_E2_Projects_10) -> GD-0006999 Finsbury Street, Kensington- LP Renewal | D132: 2173559.66 | E132: -7096.22 | F132: 0 | G132: 0
B133: =IF(ISBLANK(dms_E2_Projects_11),"",dms_E2_Projects_11) -> GD-0007000 Tuppen Street, Yarraville - LP Renewal | D133: 77604.05 | E133: 0 | F133: 0 | G133: 0
B134: =IF(ISBLANK(dms_E2_Projects_12),"",dms_E2_Projects_12) -> GD-0007005 Stirling Street, Footscray - LP Renewal | D134: 208029.76 | E134: 0 | F134: 0 | G134: 0
B135: =IF(ISBLANK(dms_E2_Projects_13),"",dms_E2_Projects_13) -> GD-0007006 Tongue Street, Footscray - LP Renewal | D135: -9058.63 | E135: 0 | F135: 0 | G135: 0
B136: =IF(ISBLANK(dms_E2_Projects_14),"",dms_E2_Projects_14) -> GD-0007007 Buckingham Road, Newtown - LP Renewal | D136: 1319280.14 | E136: -59459.45 | F136: 0 | G136: 0
B137: =IF(ISBLANK(dms_E2_Projects_15),"",dms_E2_Projects_15) -> GD-0007015 Keane Street, Coburg - LP Renewal | D137: 1604945.37 | E137: 0 | F137: 0 | G137: 0
B138: =IF(ISBLANK(dms_E2_Projects_16),"",dms_E2_Projects_16) -> GD-0007025 Weerona Avenue, Hamlyn Heights - LP Repl | D138: 0 | E138: 0 | F138: 0 | G138: 0
B139: =IF(ISBLANK(dms_E2_Projects_17),"",dms_E2_Projects_17) -> GD-0007026 Anderson Street, Yarraville - LP Renewal | D139: 917624.15 | E139: 868448.3 | F139: 0 | G139: 0
B140: =IF(ISBLANK(dms_E2_Projects_18),"",dms_E2_Projects_18) -> GD-0007036 Errol St, Footscray LP Renewal | D140: 989943.81 | E140: 0 | F140: 0 | G140: 0
B141: =IF(ISBLANK(dms_E2_Projects_19),"",dms_E2_Projects_19) -> GD-0007038 Shuter St, Moonee Ponds - LP Renewal | D141: 791083.99 | E141: 0 | F141: 0 | G141: 0
B142: =IF(ISBLANK(dms_E2_Projects_20),"",dms_E2_Projects_20) -> GD-0007315 Rennison St Braybrook MP Replacement | D142: 968191.58 | E142: 0 | F142: 0 | G142: 0
B143: =IF(ISBLANK(dms_E2_Projects_21),"",dms_E2_Projects_21) -> GD-0007342 Kings Road, St Albans MP Replacement | D143: 126533.66 | E143: 0 | F143: 0 | G143: 0
B144: =IF(ISBLANK(dms_E2_Projects_22),"",dms_E2_Projects_22) -> GD-0007343 Marion St, Altona North MP Replacement | D144: 0 | E144: 2897754.51 | F144: 0 | G144: 0
B145: =IF(ISBLANK(dms_E2_Projects_23),"",dms_E2_Projects_23) -> GD-0007799 Tennyson Street, Seddon - LP Renewal | D145: 1682538.44 | E145: 0 | F145: 0 | G145: 0
B146: =IF(ISBLANK(dms_E2_Projects_24),"",dms_E2_Projects_24) -> GD-0007939 Byron Street, Footscray - LP Renewal | D146: 1558481.03 | E146: 710183.77 | F146: 0 | G146: 0
B147: =IF(ISBLANK(dms_E2_Projects_25),"",dms_E2_Projects_25) -> GD-0007952 Forest Street, Bendigo - LP Renewal | D147: 0 | E147: 0 | F147: 1330701.13 | G147: 1759462.45
B148: =IF(ISBLANK(dms_E2_Projects_25),"",dms_E2_Projects_26) -> GD-0007988 Manifold Street, Geelong - LP Renewal | D148: 1556076.81 | E148: 1059304.97 | F148: 0 | G148: 0
B149: =IF(ISBLANK(dms_E2_Projects_27),"",dms_E2_Projects_27) -> GD-0008011 Patrick Street, Geelong - LP Renewal | D149: 708888.55 | E149: 951222.95 | F149: 0 | G149: 0
B150: =IF(ISBLANK(dms_E2_Projects_28),"",dms_E2_Projects_28) -> GD-0008013 Saffron Street, Geelong - LP Renewal | D150: 1184254.46 | E150: 1357958.59 | F150: 0 | G150: 0
B151: =IF(ISBLANK(dms_E2_Projects_29),"",dms_E2_Projects_29) -> GD-0008038 Cresser St, Altona North MP Replacement | D151: 1618197.26 | E151: -14255.91 | F151: 0 | G151: 0
B152: =IF(ISBLANK(dms_E2_Projects_30),"",dms_E2_Projects_30) -> GD-0008043 Arnold Street, Bendigo - LP Renewal | D152: 0 | E152: 0 | F152: 0 | G152: 968288.99
B153: =IF(ISBLANK(dms_E2_Projects_31),"",dms_E2_Projects_31) -> GD-0008053 Holmes Road, Moonee Ponds - LP Renewal | D153: 563450.75 | E153: 1359506.55 | F153: 0 | G153: 0
B154: =IF(ISBLANK(dms_E2_Projects_32),"",dms_E2_Projects_32) -> GD-0008200 Golden Square - LP Renewal | D154: 0 | E154: 1406271.35 | F154: 479883.64 | G154: 0
B155: =IF(ISBLANK(dms_E2_Projects_33),"",dms_E2_Projects_33) -> GD-0008331 Fehon Street, Yarraville - LP Renewal | D155: 0 | E155: 1837498.56 | F155: 1865856.73 | G155: 0
B156: =IF(ISBLANK(dms_E2_Projects_34),"",dms_E2_Projects_34) -> GD-0008372 Canterbury Street, Flemington - LPRP | D156: 0 | E156: 0 | F156: 0 | G156: 4150264.49
B157: =IF(ISBLANK(dms_E2_Projects_35),"",dms_E2_Projects_35) -> GD-0008383 Leander Street, Flemington | D157: 0 | E157: 1873907.47 | F157: 4015758.04 | G157: 0
B158: =IF(ISBLANK(dms_E2_Projects_36),"",dms_E2_Projects_36) -> GD-0008415 Henry Street, Kensington - LPRP | D158: 0 | E158: 2863278.65 | F158: 518364.47 | G158: 0
B159: =IF(ISBLANK(dms_E2_Projects_37),"",dms_E2_Projects_37) -> GD-0008450 Young Street, Breakwater - LPRP | D159: 0 | E159: 1735339.35 | F159: 587922.57 | G159: 0
B160: =IF(ISBLANK(dms_E2_Projects_38),"",dms_E2_Projects_38) -> GD-0008643 Pound Rd, Colac - LP Renewal | D160: 0 | E160: 2027723.84 | F160: 469055.52 | G160: 0
B161: =IF(ISBLANK(dms_E2_Projects_39),"",dms_E2_Projects_39) -> GD-0008644 Calvert St, Colac - LP Renewal | D161: 0 | E161: 0 | F161: 1330525.44 | G161: 517856.35
B162: =IF(ISBLANK(dms_E2_Projects_40),"",dms_E2_Projects_40) -> GD-0008652 Sinclair St, Colac - LP Renewal | D162: 0 | E162: 0 | F162: 0 | G162: 1550792.31
B163: =IF(ISBLANK(dms_E2_Projects_41),"",dms_E2_Projects_41) -> GD-0008734 Marigold Ave, Altona North MP Renewal | D163: 0 | E163: 0 | F163: 474898.86 | G163: 1230347.61
B164: =IF(ISBLANK(dms_E2_Projects_42),"",dms_E2_Projects_42) -> GD-0008735 Gillespie Road, St Albans MPMR | D164: 0 | E164: 1976375.65 | F164: 0 | G164: 0
B165: =IF(ISBLANK(dms_E2_Projects_43),"",dms_E2_Projects_43) -> GD-0008736 Dover Street, St Albans MPMR | D165: 0 | E165: 0 | F165: 65181.21 | G165: 1437967.2
B166: =IF(ISBLANK(dms_E2_Projects_44),"",dms_E2_Projects_44) -> GD-0008737 Hobbs Street, Altona North | D166: 0 | E166: 0 | F166: 0 | G166: 1559489.92
B167: =IF(ISBLANK(dms_E2_Projects_45),"",dms_E2_Projects_45) -> GD-0009525 Lupton Street, Geelong | D167: 0 | E167: 0 | F167: 0 | G167: 540728.46
B168: =IF(ISBLANK(dms_E2_Projects_46),"",dms_E2_Projects_46) -> GD-0009526 Ormond Rd, Geelong | D168: 0 | E168: 0 | F168: 1420016.97 | G168: 1486274.88
B169: =IF(ISBLANK(dms_E2_Projects_47),"",dms_E2_Projects_47) -> GD-0009527 Mair Street, Ballarat | D169: 0 | E169: 0 | F169: 0 | G169: 1271566.68
B170: =IF(ISBLANK(dms_E2_Projects_48),"",dms_E2_Projects_48) -> GD-0009533 Stephen St, Yarraville LPMR | D170: 0 | E170: 0 | F170: 3191909.39 | G170: 2592997.61
B171: =IF(ISBLANK(dms_E2_Projects_49),"",dms_E2_Projects_49) -> GD-0011365 Gas leakage Surveys #712 | D171: 0 | E171: 0 | F171: 0 | G171: 0
B172: =IF(ISBLANK(dms_E2_Projects_50),"",dms_E2_Projects_50) -> 
B173: Other projects with expenditure of less than $500,000 | D173: -9486.02 | E173: 0 | F173: 0 | G173: 0
C174: Total | D174: =SUM(D123:D173) -> 22749981.09 | E174: =SUM(E123:E173) -> 23003328.73 | F174: =SUM(F123:F173) -> 15750490.07 | G174: =SUM(G123:G173) -> 19066036.95 | H174: =SUM(H123:H173) -> 0
B176: C. DIRECT MATERIAL EXPENDITURE
D177: EXPENDITURE
D178: $0's, Nominal
D179: =dms_y1 -> 2018 | E179: =dms_y2 -> 2019 | F179: =dms_y3 -> 2020 | G179: =dms_y4 -> 2021 | H179: =dms_y5 -> 2022
B180: =IF(ISBLANK(dms_E2_Projects_01),"",dms_E2_Projects_01) -> GD-0001464 74318283 - Roslyn Road - Belmont LP Repl | D180: 0 | E180: 0 | F180: 0 | G180: 0
B181: =IF(ISBLANK(dms_E2_Projects_02),"",dms_E2_Projects_02) -> GD-0006049 McCracken Street, Kensington MP renewal | D181: 0 | E181: 0 | F181: 0 | G181: 0
B182: =IF(ISBLANK(dms_E2_Projects_03),"",dms_E2_Projects_03) -> GD-0006135 Vincent Street, Deer Park MP Renewal | D182: 0 | E182: 0 | F182: 0 | G182: 0
B183: =IF(ISBLANK(dms_E2_Projects_04),"",dms_E2_Projects_04) -> GD-0006145 Pickett Street, Footscray - LP Renewal | D183: 0 | E183: 0 | F183: 0 | G183: 0
B184: =IF(ISBLANK(dms_E2_Projects_05),"",dms_E2_Projects_05) -> GD-0006163 Hertford Road, Sunshine MP Renewal | D184: 0 | E184: 0 | F184: 0 | G184: 0
B185: =IF(ISBLANK(dms_E2_Projects_06),"",dms_E2_Projects_06) -> GD-0006167 Berry Street, Yarraville - LP Renewal | D185: 0 | E185: 0 | F185: 0 | G185: 0
B186: =IF(ISBLANK(dms_E2_Projects_07),"",dms_E2_Projects_07) -> GD-0006183 Eastwood Street, Ballarat - LP Renewal | D186: 0 | E186: 0 | F186: 0 | G186: 0
B187: =IF(ISBLANK(dms_E2_Projects_08),"",dms_E2_Projects_08) -> GD-0006203 Alma Street, Essendon LP Renewal | D187: 0 | E187: 0 | F187: 0 | G187: 0
B188: =IF(ISBLANK(dms_E2_Projects_09),"",dms_E2_Projects_09) -> GD-0006969 Malop Street, Geelong 3220 | D188: 0 | E188: 0 | F188: 0 | G188: 0
B189: =IF(ISBLANK(dms_E2_Projects_10),"",dms_E2_Projects_10) -> GD-0006999 Finsbury Street, Kensington- LP Renewal | D189: 0 | E189: 0 | F189: 0 | G189: 0
B190: =IF(ISBLANK(dms_E2_Projects_11),"",dms_E2_Projects_11) -> GD-0007000 Tuppen Street, Yarraville - LP Renewal | D190: 0 | E190: 0 | F190: 0 | G190: 0
B191: =IF(ISBLANK(dms_E2_Projects_12),"",dms_E2_Projects_12) -> GD-0007005 Stirling Street, Footscray - LP Renewal | D191: 0 | E191: 0 | F191: 0 | G191: 0
B192: =IF(ISBLANK(dms_E2_Projects_13),"",dms_E2_Projects_13) -> GD-0007006 Tongue Street, Footscray - LP Renewal | D192: 0 | E192: 0 | F192: 0 | G192: 0
B193: =IF(ISBLANK(dms_E2_Projects_14),"",dms_E2_Projects_14) -> GD-0007007 Buckingham Road, Newtown - LP Renewal | D193: 0 | E193: 0 | F193: 0 | G193: 0
B194: =IF(ISBLANK(dms_E2_Projects_15),"",dms_E2_Projects_15) -> GD-0007015 Keane Street, Coburg - LP Renewal | D194: 0 | E194: 0 | F194: 0 | G194: 0
B195: =IF(ISBLANK(dms_E2_Projects_16),"",dms_E2_Projects_16) -> GD-0007025 Weerona Avenue, Hamlyn Heights - LP Repl | D195: 0 | E195: 0 | F195: 0 | G195: 0
B196: =IF(ISBLANK(dms_E2_Projects_17),"",dms_E2_Projects_17) -> GD-0007026 Anderson Street, Yarraville - LP Renewal | D196: 0 | E196: 0 | F196: 0 | G196: 0
B197: =IF(ISBLANK(dms_E2_Projects_18),"",dms_E2_Projects_18) -> GD-0007036 Errol St, Footscray LP Renewal | D197: 0 | E197: 0 | F197: 0 | G197: 0
B198: =IF(ISBLANK(dms_E2_Projects_19),"",dms_E2_Projects_19) -> GD-0007038 Shuter St, Moonee Ponds - LP Renewal | D198: 0 | E198: 0 | F198: 0 | G198: 0
B199: =IF(ISBLANK(dms_E2_Projects_20),"",dms_E2_Projects_20) -> GD-0007315 Rennison St Braybrook MP Replacement | D199: 0 | E199: 0 | F199: 0 | G199: 0
B200: =IF(ISBLANK(dms_E2_Projects_21),"",dms_E2_Projects_21) -> GD-0007342 Kings Road, St Albans MP Replacement | D200: 0 | E200: 0 | F200: 0 | G200: 0
B201: =IF(ISBLANK(dms_E2_Projects_22),"",dms_E2_Projects_22) -> GD-0007343 Marion St, Altona North MP Replacement | D201: 0 | E201: 0 | F201: 0 | G201: 0
B202: =IF(ISBLANK(dms_E2_Projects_23),"",dms_E2_Projects_23) -> GD-0007799 Tennyson Street, Seddon - LP Renewal | D202: 0 | E202: 0 | F202: 0 | G202: 0
B203: =IF(ISBLANK(dms_E2_Projects_24),"",dms_E2_Projects_24) -> GD-0007939 Byron Street, Footscray - LP Renewal | D203: 0 | E203: 0 | F203: 0 | G203: 0
B204: =IF(ISBLANK(dms_E2_Projects_25),"",dms_E2_Projects_25) -> GD-0007952 Forest Street, Bendigo - LP Renewal | D204: 0 | E204: 0 | F204: 0 | G204: 0
B205: =IF(ISBLANK(dms_E2_Projects_25),"",dms_E2_Projects_26) -> GD-0007988 Manifold Street, Geelong - LP Renewal | D205: 0 | E205: 0 | F205: 0 | G205: 0
B206: =IF(ISBLANK(dms_E2_Projects_27),"",dms_E2_Projects_27) -> GD-0008011 Patrick Street, Geelong - LP Renewal | D206: 0 | E206: 0 | F206: 0 | G206: 0
B207: =IF(ISBLANK(dms_E2_Projects_28),"",dms_E2_Projects_28) -> GD-0008013 Saffron Street, Geelong - LP Renewal | D207: 0 | E207: 0 | F207: 0 | G207: 0
... 572 more rows

Sheet E3. Mains Augex
B1: =INDEX(dms_Worksheet_List,MATCH(dms_Model,dms_Model_List)) -> HISTORICAL ANNUAL REPORTING
B2: =dms_TradingName -> AusNet (Gas)
B3: =dms_Header_Span -> 2018 to 2021
B4: E3. MAINS AUGMENTATION
B7: Please list all projects here:
B8: GD-0001457 Corio City Gate Heater
B9: GD-0001589 74337290 - Supply Main from new Mt Cottr
B10: GD-0002041 74368259 - Rowsley Station Rd Reinforcem
B11: GD-0003266 74421883 - Marshall - Torquay Mains Rein
B12: GD-0003343 74424477 - Duncans Rd reinforcement Werr
B13: GD-0006282 Melton Field Regulator Installations
B14: GD-0006314 Waurn Ponds City Gate
B15: GD-0007203 Dana St, Ballarat Field Reg Installation
B16: GD-0008305 Mickleham Rd, Craigieburn Reinforcement
B17: 74338939 Coburns Rd HP2 reinforcement - Melton
B18: GD-0011696 Macedon Ranges Augmentation
B19: GD-0012207 Sunbury Augmentation
B20: GD-0012263 Buckley Gr Augmentation
B60: E3.1 - CAPEX BY PROJECT
B61: A. DIRECT INTERNAL LABOUR EXPENDITURE
C62: EXPENDITURE
C63: $0's, Nominal
C64: =dms_y1 -> 2018 | D64: =dms_y2 -> 2019 | E64: =dms_y3 -> 2020 | F64: =dms_y4 -> 2021 | G64: =dms_y5 -> 2022
B65: =IF(ISBLANK(dms_E3_Projects_01),"",dms_E3_Projects_01) -> GD-0001457 Corio City Gate Heater | C65: 0 | D65: 0 | E65: 0 | F65: 0
B66: =IF(ISBLANK(dms_E3_Projects_02),"",dms_E3_Projects_02) -> GD-0001589 74337290 - Supply Main from new Mt Cottr | C66: 0 | D66: 0 | E66: 0 | F66: 0
B67: =IF(ISBLANK(dms_E3_Projects_03),"",dms_E3_Projects_03) -> GD-0002041 74368259 - Rowsley Station Rd Reinforcem | C67: 0 | D67: 0 | E67: 0 | F67: 0
B68: =IF(ISBLANK(dms_E3_Projects_04),"",dms_E3_Projects_04) -> GD-0003266 74421883 - Marshall - Torquay Mains Rein | C68: 0 | D68: 0 | E68: 0 | F68: 0
B69: =IF(ISBLANK(dms_E3_Projects_05),"",dms_E3_Projects_05) -> GD-0003343 74424477 - Duncans Rd reinforcement Werr | C69: 0 | D69: 0 | E69: 0 | F69: 0
B70: =IF(ISBLANK(dms_E3_Projects_06),"",dms_E3_Projects_06) -> GD-0006282 Melton Field Regulator Installations | C70: 3867.85 | D70: 0 | E70: 28012.92 | F70: 0
B71: =IF(ISBLANK(dms_E3_Projects_07),"",dms_E3_Projects_07) -> GD-0006314 Waurn Ponds City Gate | C71: 0 | D71: 29159.17 | E71: 138736.65 | F71: 135914.78
B72: =IF(ISBLANK(dms_E3_Projects_08),"",dms_E3_Projects_08) -> GD-0007203 Dana St, Ballarat Field Reg Installation | C72: 29318.12 | D72: 21551.06 | E72: 0 | F72: 0
B73: =IF(ISBLANK(dms_E3_Projects_09),"",dms_E3_Projects_09) -> GD-0008305 Mickleham Rd, Craigieburn Reinforcement | C73: 0 | D73: 61155.2 | E73: 26360.06 | F73: 0
B74: =IF(ISBLANK(dms_E3_Projects_10),"",dms_E3_Projects_10) -> 74338939 Coburns Rd HP2 reinforcement - Melton | C74: 0 | D74: 0 | E74: 0 | F74: 0
B75: =IF(ISBLANK(dms_E3_Projects_11),"",dms_E3_Projects_11) -> GD-0011696 Macedon Ranges Augmentation | C75: 0 | D75: 0 | E75: 0 | F75: 1065.38
B76: =IF(ISBLANK(dms_E3_Projects_12),"",dms_E3_Projects_12) -> GD-0012207 Sunbury Augmentation | C76: 0 | D76: 0 | E76: 0 | F76: 0
B77: =IF(ISBLANK(dms_E3_Projects_13),"",dms_E3_Projects_13) -> GD-0012263 Buckley Gr Augmentation | C77: 0 | D77: 0 | E77: 0 | F77: 0
B78: =IF(ISBLANK(dms_E3_Projects_14),"",dms_E3_Projects_14) -> 
B79: =IF(ISBLANK(dms_E3_Projects_15),"",dms_E3_Projects_15) -> 
B80: =IF(ISBLANK(dms_E3_Projects_16),"",dms_E3_Projects_16) -> 
B81: =IF(ISBLANK(dms_E3_Projects_17),"",dms_E3_Projects_17) -> 
B82: =IF(ISBLANK(dms_E3_Projects_18),"",dms_E3_Projects_18) -> 
B83: =IF(ISBLANK(dms_E3_Projects_19),"",dms_E3_Projects_19) -> 
B84: =IF(ISBLANK(dms_E3_Projects_20),"",dms_E3_Projects_20) -> 
B85: =IF(ISBLANK(dms_E3_Projects_21),"",dms_E3_Projects_21) -> 
B86: =IF(ISBLANK(dms_E3_Projects_22),"",dms_E3_Projects_22) -> 
B87: =IF(ISBLANK(dms_E3_Projects_23),"",dms_E3_Projects_23) -> 
B88: =IF(ISBLANK(dms_E3_Projects_24),"",dms_E3_Projects_24) -> 
B89: =IF(ISBLANK(dms_E3_Projects_25),"",dms_E3_Projects_25) -> 
B90: =IF(ISBLANK(dms_E3_Projects_25),"",dms_E3_Projects_26) -> 
B91: =IF(ISBLANK(dms_E3_Projects_27),"",dms_E3_Projects_27) -> 
B92: =IF(ISBLANK(dms_E3_Projects_28),"",dms_E3_Projects_28) -> 
B93: =IF(ISBLANK(dms_E3_Projects_29),"",dms_E3_Projects_29) -> 
B94: =IF(ISBLANK(dms_E3_Projects_30),"",dms_E3_Projects_30) -> 
B95: =IF(ISBLANK(dms_E3_Projects_31),"",dms_E3_Projects_31) -> 
B96: =IF(ISBLANK(dms_E3_Projects_32),"",dms_E3_Projects_32) -> 
B97: =IF(ISBLANK(dms_E3_Projects_33),"",dms_E3_Projects_33) -> 
B98: =IF(ISBLANK(dms_E3_Projects_34),"",dms_E3_Projects_34) -> 
B99: =IF(ISBLANK(dms_E3_Projects_35),"",dms_E3_Projects_35) -> 
B100: =IF(ISBLANK(dms_E3_Projects_36),"",dms_E3_Projects_36) -> 
B101: =IF(ISBLANK(dms_E3_Projects_37),"",dms_E3_Projects_37) -> 
B102: =IF(ISBLANK(dms_E3_Projects_38),"",dms_E3_Projects_38) -> 
B103: =IF(ISBLANK(dms_E3_Projects_39),"",dms_E3_Projects_39) -> 
B104: =IF(ISBLANK(dms_E3_Projects_40),"",dms_E3_Projects_40) -> 
B105: =IF(ISBLANK(dms_E3_Projects_41),"",dms_E3_Projects_41) -> 
B106: =IF(ISBLANK(dms_E3_Projects_42),"",dms_E3_Projects_42) -> 
B107: =IF(ISBLANK(dms_E3_Projects_43),"",dms_E3_Projects_43) -> 
B108: =IF(ISBLANK(dms_E3_Projects_44),"",dms_E3_Projects_44) -> 
B109: =IF(ISBLANK(dms_E3_Projects_45),"",dms_E3_Projects_45) -> 
B110: =IF(ISBLANK(dms_E3_Projects_46),"",dms_E3_Projects_46) -> 
B111: =IF(ISBLANK(dms_E3_Projects_47),"",dms_E3_Projects_47) -> 
B112: =IF(ISBLANK(dms_E3_Projects_48),"",dms_E3_Projects_48) -> 
B113: =IF(ISBLANK(dms_E3_Projects_49),"",dms_E3_Projects_49) -> 
B114: =IF(ISBLANK(dms_E3_Projects_50),"",dms_E3_Projects_50) -> 
B115: Aggregate of other projects with total expenditure of less than $500,000 | C115: 846.62 | D115: -4847.38 | E115: -60884.82 | F115: 0
B116: Total | C116: =SUM(C65:C115) -> 34032.59 | D116: =SUM(D65:D115) -> 107018.05 | E116: =SUM(E65:E115) -> 132224.81 | F116: =SUM(F65:F115) -> 136980.16 | G116: =SUM(G65:G115) -> 0
B118: B. DIRECT CONTRACTOR EXPENDITURE
C119: EXPENDITURE
C120: $0's, Nominal
C121: =dms_y1 -> 2018 | D121: =dms_y2 -> 2019 | E121: =dms_y3 -> 2020 | F121: =dms_y4 -> 2021 | G121: =dms_y5 -> 2022
B122: =IF(ISBLANK(dms_E3_Projects_01),"",dms_E3_Projects_01) -> GD-0001457 Corio City Gate Heater | C122: 0 | D122: 0 | E122: 0 | F122: 0
B123: =IF(ISBLANK(dms_E3_Projects_02),"",dms_E3_Projects_02) -> GD-0001589 74337290 - Supply Main from new Mt Cottr | C123: 0 | D123: 0 | E123: 0 | F123: 0
B124: =IF(ISBLANK(dms_E3_Projects_03),"",dms_E3_Projects_03) -> GD-0002041 74368259 - Rowsley Station Rd Reinforcem | C124: 0 | D124: 0 | E124: 0 | F124: 0
B125: =IF(ISBLANK(dms_E3_Projects_04),"",dms_E3_Projects_04) -> GD-0003266 74421883 - Marshall - Torquay Mains Rein | C125: 0 | D125: 0 | E125: 0 | F125: 0
B126: =IF(ISBLANK(dms_E3_Projects_05),"",dms_E3_Projects_05) -> GD-0003343 74424477 - Duncans Rd reinforcement Werr | C126: 0 | D126: 0 | E126: 0 | F126: 0
B127: =IF(ISBLANK(dms_E3_Projects_06),"",dms_E3_Projects_06) -> GD-0006282 Melton Field Regulator Installations | C127: 80831.53 | D127: 0 | E127: 67361.93 | F127: 0
B128: =IF(ISBLANK(dms_E3_Projects_07),"",dms_E3_Projects_07) -> GD-0006314 Waurn Ponds City Gate | C128: 0 | D128: 17914.6 | E128: 3047103.04 | F128: 4798429.02
B129: =IF(ISBLANK(dms_E3_Projects_08),"",dms_E3_Projects_08) -> GD-0007203 Dana St, Ballarat Field Reg Installation | C129: 164489.68 | D129: 1585.3 | E129: 0 | F129: 0
B130: =IF(ISBLANK(dms_E3_Projects_09),"",dms_E3_Projects_09) -> GD-0008305 Mickleham Rd, Craigieburn Reinforcement | C130: 0 | D130: 1032540.69 | E130: 789130.88 | F130: 0
B131: =IF(ISBLANK(dms_E3_Projects_10),"",dms_E3_Projects_10) -> 74338939 Coburns Rd HP2 reinforcement - Melton | C131: 0 | D131: 0 | E131: 0 | F131: 0
B132: =IF(ISBLANK(dms_E3_Projects_11),"",dms_E3_Projects_11) -> GD-0011696 Macedon Ranges Augmentation | C132: 0 | D132: 0 | E132: 0 | F132: 0
B133: =IF(ISBLANK(dms_E3_Projects_12),"",dms_E3_Projects_12) -> GD-0012207 Sunbury Augmentation | C133: 0 | D133: 0 | E133: 0 | F133: 0
B134: =IF(ISBLANK(dms_E3_Projects_13),"",dms_E3_Projects_13) -> GD-0012263 Buckley Gr Augmentation | C134: 0 | D134: 0 | E134: 0 | F134: 0
B135: =IF(ISBLANK(dms_E3_Projects_14),"",dms_E3_Projects_14) -> 
B136: =IF(ISBLANK(dms_E3_Projects_15),"",dms_E3_Projects_15) -> 
B137: =IF(ISBLANK(dms_E3_Projects_16),"",dms_E3_Projects_16) -> 
B138: =IF(ISBLANK(dms_E3_Projects_17),"",dms_E3_Projects_17) -> 
B139: =IF(ISBLANK(dms_E3_Projects_18),"",dms_E3_Projects_18) -> 
B140: =IF(ISBLANK(dms_E3_Projects_19),"",dms_E3_Projects_19) -> 
B141: =IF(ISBLANK(dms_E3_Projects_20),"",dms_E3_Projects_20) -> 
B142: =IF(ISBLANK(dms_E3_Projects_21),"",dms_E3_Projects_21) -> 
B143: =IF(ISBLANK(dms_E3_Projects_22),"",dms_E3_Projects_22) -> 
B144: =IF(ISBLANK(dms_E3_Projects_23),"",dms_E3_Projects_23) -> 
B145: =IF(ISBLANK(dms_E3_Projects_24),"",dms_E3_Projects_24) -> 
B146: =IF(ISBLANK(dms_E3_Projects_25),"",dms_E3_Projects_25) -> 
B147: =IF(ISBLANK(dms_E3_Projects_25),"",dms_E3_Projects_26) -> 
B148: =IF(ISBLANK(dms_E3_Projects_27),"",dms_E3_Projects_27) -> 
B149: =IF(ISBLANK(dms_E3_Projects_28),"",dms_E3_Projects_28) -> 
B150: =IF(ISBLANK(dms_E3_Projects_29),"",dms_E3_Projects_29) -> 
B151: =IF(ISBLANK(dms_E3_Projects_30),"",dms_E3_Projects_30) -> 
B152: =IF(ISBLANK(dms_E3_Projects_31),"",dms_E3_Projects_31) -> 
B153: =IF(ISBLANK(dms_E3_Projects_32),"",dms_E3_Projects_32) -> 
B154: =IF(ISBLANK(dms_E3_Projects_33),"",dms_E3_Projects_33) -> 
B155: =IF(ISBLANK(dms_E3_Projects_34),"",dms_E3_Projects_34) -> 
B156: =IF(ISBLANK(dms_E3_Projects_35),"",dms_E3_Projects_35) -> 
B157: =IF(ISBLANK(dms_E3_Projects_36),"",dms_E3_Projects_36) -> 
B158: =IF(ISBLANK(dms_E3_Projects_37),"",dms_E3_Projects_37) -> 
B159: =IF(ISBLANK(dms_E3_Projects_38),"",dms_E3_Projects_38) -> 
B160: =IF(ISBLANK(dms_E3_Projects_39),"",dms_E3_Projects_39) -> 
B161: =IF(ISBLANK(dms_E3_Projects_40),"",dms_E3_Projects_40) -> 
B162: =IF(ISBLANK(dms_E3_Projects_41),"",dms_E3_Projects_41) -> 
B163: =IF(ISBLANK(dms_E3_Projects_42),"",dms_E3_Projects_42) -> 
B164: =IF(ISBLANK(dms_E3_Projects_43),"",dms_E3_Projects_43) -> 
B165: =IF(ISBLANK(dms_E3_Projects_44),"",dms_E3_Projects_44) -> 
B166: =IF(ISBLANK(dms_E3_Projects_45),"",dms_E3_Projects_45) -> 
B167: =IF(ISBLANK(dms_E3_Projects_46),"",dms_E3_Projects_46) -> 
B168: =IF(ISBLANK(dms_E3_Projects_47),"",dms_E3_Projects_47) -> 
B169: =IF(ISBLANK(dms_E3_Projects_48),"",dms_E3_Projects_48) -> 
B170: =IF(ISBLANK(dms_E3_Projects_49),"",dms_E3_Projects_49) -> 
B171: =IF(ISBLANK(dms_E3_Projects_50),"",dms_E3_Projects_50) -> 
B172: Aggregate of other projects with total expenditure of less than $500,000 | C172: 76387.25 | D172: 0 | E172: -664826.8 | F172: 0
B173: Total | C173: =SUM(C122:C172) -> 321708.46 | D173: =SUM(D122:D172) -> 1052040.59 | E173: =SUM(E122:E172) -> 3238769.05 | F173: =SUM(F122:F172) -> 4798429.02 | G173: =SUM(G122:G172) -> 0
B175: C. DIRECT MATERIAL EXPENDITURE
C176: EXPENDITURE
C177: $0's, Nominal
C178: =dms_y1 -> 2018 | D178: =dms_y2 -> 2019 | E178: =dms_y3 -> 2020 | F178: =dms_y4 -> 2021 | G178: =dms_y5 -> 2022
B179: =IF(ISBLANK(dms_E3_Projects_01),"",dms_E3_Projects_01) -> GD-0001457 Corio City Gate Heater | C179: 0 | D179: 0 | E179: 0 | F179: 0
B180: =IF(ISBLANK(dms_E3_Projects_02),"",dms_E3_Projects_02) -> GD-0001589 74337290 - Supply Main from new Mt Cottr | C180: 0 | D180: 0 | E180: 0 | F180: 0
B181: =IF(ISBLANK(dms_E3_Projects_03),"",dms_E3_Projects_03) -> GD-0002041 74368259 - Rowsley Station Rd Reinforcem | C181: 0 | D181: 0 | E181: 0 | F181: 0
B182: =IF(ISBLANK(dms_E3_Projects_04),"",dms_E3_Projects_04) -> GD-0003266 74421883 - Marshall - Torquay Mains Rein | C182: 0 | D182: 0 | E182: 0 | F182: 0
B183: =IF(ISBLANK(dms_E3_Projects_05),"",dms_E3_Projects_05) -> GD-0003343 74424477 - Duncans Rd reinforcement Werr | C183: 0 | D183: 0 | E183: 0 | F183: 0
B184: =IF(ISBLANK(dms_E3_Projects_06),"",dms_E3_Projects_06) -> GD-0006282 Melton Field Regulator Installations | C184: 0 | D184: 0 | E184: 0 | F184: 0
B185: =IF(ISBLANK(dms_E3_Projects_07),"",dms_E3_Projects_07) -> GD-0006314 Waurn Ponds City Gate | C185: 0 | D185: 0 | E185: 157520.24 | F185: 0
B186: =IF(ISBLANK(dms_E3_Projects_08),"",dms_E3_Projects_08) -> GD-0007203 Dana St, Ballarat Field Reg Installation | C186: 0 | D186: 0 | E186: 0 | F186: 0
B187: =IF(ISBLANK(dms_E3_Projects_09),"",dms_E3_Projects_09) -> GD-0008305 Mickleham Rd, Craigieburn Reinforcement | C187: 0 | D187: 0 | E187: 0 | F187: 0
B188: =IF(ISBLANK(dms_E3_Projects_10),"",dms_E3_Projects_10) -> 74338939 Coburns Rd HP2 reinforcement - Melton | C188: 0 | D188: 0 | E188: 0 | F188: 0
B189: =IF(ISBLANK(dms_E3_Projects_11),"",dms_E3_Projects_11) -> GD-0011696 Macedon Ranges Augmentation | C189: 0 | D189: 0 | E189: 0 | F189: 0
B190: =IF(ISBLANK(dms_E3_Projects_12),"",dms_E3_Projects_12) -> GD-0012207 Sunbury Augmentation | C190: 0 | D190: 0 | E190: 0 | F190: 0
B191: =IF(ISBLANK(dms_E3_Projects_13),"",dms_E3_Projects_13) -> GD-0012263 Buckley Gr Augmentation | C191: 0 | D191: 0 | E191: 0 | F191: 0
B192: =IF(ISBLANK(dms_E3_Projects_14),"",dms_E3_Projects_14) -> 
B193: =IF(ISBLANK(dms_E3_Projects_15),"",dms_E3_Projects_15) -> 
B194: =IF(ISBLANK(dms_E3_Projects_16),"",dms_E3_Projects_16) -> 
B195: =IF(ISBLANK(dms_E3_Projects_17),"",dms_E3_Projects_17) -> 
B196: =IF(ISBLANK(dms_E3_Projects_18),"",dms_E3_Projects_18) -> 
B197: =IF(ISBLANK(dms_E3_Projects_19),"",dms_E3_Projects_19) -> 
B198: =IF(ISBLANK(dms_E3_Projects_20),"",dms_E3_Projects_20) -> 
B199: =IF(ISBLANK(dms_E3_Projects_21),"",dms_E3_Projects_21) -> 
B200: =IF(ISBLANK(dms_E3_Projects_22),"",dms_E3_Projects_22) -> 
B201: =IF(ISBLANK(dms_E3_Projects_23),"",dms_E3_Projects_23) -> 
B202: =IF(ISBLANK(dms_E3_Projects_24),"",dms_E3_Projects_24) -> 
B203: =IF(ISBLANK(dms_E3_Projects_25),"",dms_E3_Projects_25) -> 
B204: =IF(ISBLANK(dms_E3_Projects_25),"",dms_E3_Projects_26) -> 
B205: =IF(ISBLANK(dms_E3_Projects_27),"",dms_E3_Projects_27) -> 
B206: =IF(ISBLANK(dms_E3_Projects_28),"",dms_E3_Projects_28) -> 
B207: =IF(ISBLANK(dms_E3_Projects_29),"",dms_E3_Projects_29) -> 
B208: =IF(ISBLANK(dms_E3_Projects_30),"",dms_E3_Projects_30) -> 
B209: =IF(ISBLANK(dms_E3_Projects_31),"",dms_E3_Projects_31) -> 
B210: =IF(ISBLANK(dms_E3_Projects_32),"",dms_E3_Projects_32) -> 
B211: =IF(ISBLANK(dms_E3_Projects_33),"",dms_E3_Projects_33) -> 
B212: =IF(ISBLANK(dms_E3_Projects_34),"",dms_E3_Projects_34) -> 
B213: =IF(ISBLANK(dms_E3_Projects_35),"",dms_E3_Projects_35) -> 
B214: =IF(ISBLANK(dms_E3_Projects_36),"",dms_E3_Projects_36) -> 
B215: =IF(ISBLANK(dms_E3_Projects_37),"",dms_E3_Projects_37) -> 
B216: =IF(ISBLANK(dms_E3_Projects_38),"",dms_E3_Projects_38) -> 
B217: =IF(ISBLANK(dms_E3_Projects_39),"",dms_E3_Projects_39) -> 
B218: =IF(ISBLANK(dms_E3_Projects_40),"",dms_E3_Projects_40) -> 
B219: =IF(ISBLANK(dms_E3_Projects_41),"",dms_E3_Projects_41) -> 
B220: =IF(ISBLANK(dms_E3_Projects_42),"",dms_E3_Projects_42) -> 
B221: =IF(ISBLANK(dms_E3_Projects_43),"",dms_E3_Projects_43) -> 
B222: =IF(ISBLANK(dms_E3_Projects_44),"",dms_E3_Projects_44) -> 
B223: =IF(ISBLANK(dms_E3_Projects_45),"",dms_E3_Projects_45) -> 
B224: =IF(ISBLANK(dms_E3_Projects_46),"",dms_E3_Projects_46) -> 
B225: =IF(ISBLANK(dms_E3_Projects_47),"",dms_E3_Projects_47) -> 
B226: =IF(ISBLANK(dms_E3_Projects_48),"",dms_E3_Projects_48) -> 
B227: =IF(ISBLANK(dms_E3_Projects_49),"",dms_E3_Projects_49) -> 
B228: =IF(ISBLANK(dms_E3_Projects_50),"",dms_E3_Projects_50) -> 
B229: Aggregate of other projects with total expenditure of less than $500,000 | C229: 0 | D229: 0 | E229: -157520.24 | F229: 0
B230: Total | C230: =SUM(C179:C229) -> 0 | D230: =SUM(D179:D229) -> 0 | E230: =SUM(E179:E229) -> 0 | F230: =SUM(F179:F229) -> 0 | G230: =SUM(G179:G229) -> 0
B232: D. OTHER DIRECT EXPENDITURE
C233: EXPENDITURE
C234: $0's, Nominal
C235: =dms_y1 -> 2018 | D235: =dms_y2 -> 2019 | E235: =dms_y3 -> 2020 | F235: =dms_y4 -> 2021 | G235: =dms_y5 -> 2022
B236: =IF(ISBLANK(dms_E3_Projects_01),"",dms_E3_Projects_01) -> GD-0001457 Corio City Gate Heater | C236: 0 | D236: 0 | E236: 0 | F236: 0
B237: =IF(ISBLANK(dms_E3_Projects_02),"",dms_E3_Projects_02) -> GD-0001589 74337290 - Supply Main from new Mt Cottr | C237: 0 | D237: 0 | E237: 0 | F237: 0
B238: =IF(ISBLANK(dms_E3_Projects_03),"",dms_E3_Projects_03) -> GD-0002041 74368259 - Rowsley Station Rd Reinforcem | C238: 0 | D238: 0 | E238: 0 | F238: 0
B239: =IF(ISBLANK(dms_E3_Projects_04),"",dms_E3_Projects_04) -> GD-0003266 74421883 - Marshall - Torquay Mains Rein | C239: 0 | D239: 0 | E239: 0 | F239: 0
B240: =IF(ISBLANK(dms_E3_Projects_05),"",dms_E3_Projects_05) -> GD-0003343 74424477 - Duncans Rd reinforcement Werr | C240: 0 | D240: 0 | E240: 0 | F240: 0
B241: =IF(ISBLANK(dms_E3_Projects_06),"",dms_E3_Projects_06) -> GD-0006282 Melton Field Regulator Installations | C241: 4657.11 | D241: 0 | E241: 3431.08 | F241: 0
B242: =IF(ISBLANK(dms_E3_Projects_07),"",dms_E3_Projects_07) -> GD-0006314 Waurn Ponds City Gate | C242: 0 | D242: -52877.36 | E242: 964691.92 | F242: 515420.16
B243: =IF(ISBLANK(dms_E3_Projects_08),"",dms_E3_Projects_08) -> GD-0007203 Dana St, Ballarat Field Reg Installation | C243: 11586.84 | D243: 891.18 | E243: 0 | F243: 0
B244: =IF(ISBLANK(dms_E3_Projects_09),"",dms_E3_Projects_09) -> GD-0008305 Mickleham Rd, Craigieburn Reinforcement | C244: 0 | D244: 38504.84 | E244: 28234.24 | F244: 0
... 492 more rows

Sheet E4. Meter replacement
B1: =INDEX(dms_Worksheet_List,MATCH(dms_Model,dms_Model_List)) -> HISTORICAL ANNUAL REPORTING
B2: =dms_TradingName -> AusNet (Gas)
B3: =dms_Header_Span -> 2018 to 2021
B4: E4. METER REPLACEMENT
B6: E4.1 - CAPEX
B7: E4.1.1 - NEW METERS ACQUIRED
C8: EXPENDITURE
C9: $0's, Nominal
C10: =dms_y1 -> 2018 | D10: =dms_y2 -> 2019 | E10: =dms_y3 -> 2020 | F10: =dms_y4 -> 2021 | G10: =dms_y5 -> 2022
B11: A. DIRECT INTERNAL LABOUR EXPENDITURE
B12: Residential | C12: 0 | D12: 0 | E12: 0 | F12: 0
B13: Industrial and Commercial | C13: 0 | D13: 0 | E13: 0 | F13: 0
B14: Other | C14: 0 | D14: 0 | E14: 0 | F14: 0
B15: Total | C15: =SUM(C12:C14) -> 0 | D15: =SUM(D12:D14) -> 0 | E15: =SUM(E12:E14) -> 0 | F15: =SUM(F12:F14) -> 0 | G15: =SUM(G12:G14) -> 0
B16: B. DIRECT CONTRACTOR EXPENDITURE
B17: Residential | C17: 0 | D17: 0 | E17: 0 | F17: 0
B18: Industrial and Commercial | C18: 0 | D18: 0 | E18: 0 | F18: 0
B19: Other | C19: 0 | D19: 0 | E19: 0 | F19: 0
B20: Total | C20: =SUM(C17:C19) -> 0 | D20: =SUM(D17:D19) -> 0 | E20: =SUM(E17:E19) -> 0 | F20: =SUM(F17:F19) -> 0 | G20: =SUM(G17:G19) -> 0
B21: C. DIRECT MATERIAL EXPENDITURE
B22: Residential | C22: 2836577.064 | D22: 1683258.96 | E22: 1855542.05 | F22: 793894.5115
B23: Industrial and Commercial | C23: 443769.4051 | D23: 43687.22368 | E23: -32517.54427 | F23: 2596147.547
B24: Other | C24: 0 | D24: 0 | E24: 0 | F24: 0
B25: Total | C25: =SUM(C22:C24) -> 3280346.47 | D25: =SUM(D22:D24) -> 1726946.184 | E25: =SUM(E22:E24) -> 1823024.506 | F25: =SUM(F22:F24) -> 3390042.059 | G25: =SUM(G22:G24) -> 0
B26: D. OTHER DIRECT EXPENDITURE
B27: Residential | C27: 115152.4909 | D27: 54162.87206 | E27: 48486.06746 | F27: 19771.23595
B28: Industrial and Commercial | C28: 18506.10367 | D28: 1472.969841 | E28: -1455.237899 | F28: 19979.70376
B29: Other | C29: 0 | D29: 0 | E29: 0 | F29: 0
B30: Total | C30: =SUM(C27:C29) -> 133658.5946 | D30: =SUM(D27:D29) -> 55635.8419 | E30: =SUM(E27:E29) -> 47030.82956 | F30: =SUM(F27:F29) -> 39750.93971 | G30: =SUM(G27:G29) -> 0
B31: E. RELATED PARTY MARGIN EXPENDITURE
B32: Residential | C32: 0 | D32: 0 | E32: 0 | F32: 0
B33: Industrial and Commercial | C33: 0 | D33: 0 | E33: 0 | F33: 0
B34: Other | C34: 0 | D34: 0 | E34: 0 | F34: 0
B35: Total | C35: =SUM(C32:C34) -> 0 | D35: =SUM(D32:D34) -> 0 | E35: =SUM(E32:E34) -> 0 | F35: =SUM(F32:F34) -> 0 | G35: =SUM(G32:G34) -> 0
B36: F. CAPITAL CONTRIBUTIONS included in the above
B37: Residential | C37: 0 | D37: 0 | E37: 0 | F37: 0
B38: Industrial and Commercial | C38: 0 | D38: 0 | E38: 0 | F38: 0
B39: Other | C39: 0 | D39: 0 | E39: 0 | F39: 0
B40: Total | C40: =SUM(C37:C39) -> 0 | D40: =SUM(D37:D39) -> 0 | E40: =SUM(E37:E39) -> 0 | F40: =SUM(F37:F39) -> 0 | G40: =SUM(G37:G39) -> 0
B41: TOTAL | C41: =SUM(C15,C20,C25,C30,C35,C40) -> 3414005.064 | D41: =SUM(D15,D20,D25,D30,D35,D40) -> 1782582.026 | E41: =SUM(E15,E20,E25,E30,E35,E40) -> 1870055.335 | F41: =SUM(F15,F20,F25,F30,F35,F40) -> 3429792.999 | G41: =SUM(G15,G20,G25,G30,G35,G40) -> 0
B43: E4.1.2 - METER REFURBISHMENT
C44: EXPENDITURE
C45: $0's, Nominal
C46: =dms_y1 -> 2018 | D46: =dms_y2 -> 2019 | E46: =dms_y3 -> 2020 | F46: =dms_y4 -> 2021 | G46: =dms_y5 -> 2022
B47: A. DIRECT INTERNAL LABOUR EXPENDITURE
B48: Residential | C48: 0 | D48: 0 | E48: 0 | F48: 0
B49: Industrial and Commercial | C49: 0 | D49: 0 | E49: 0 | F49: 0
B50: Other | C50: 0 | D50: 0 | E50: 0 | F50: 0
B51: Total | C51: =SUM(C48:C50) -> 0 | D51: =SUM(D48:D50) -> 0 | E51: =SUM(E48:E50) -> 0 | F51: =SUM(F48:F50) -> 0 | G51: =SUM(G48:G50) -> 0
B52: B. DIRECT CONTRACTOR EXPENDITURE
B53: Residential | C53: 0 | D53: 0 | E53: 0 | F53: 0
B54: Industrial and Commercial | C54: 0 | D54: 0 | E54: 0 | F54: 0
B55: Other | C55: 0 | D55: 0 | E55: 0 | F55: 0
B56: Total | C56: =SUM(C53:C55) -> 0 | D56: =SUM(D53:D55) -> 0 | E56: =SUM(E53:E55) -> 0 | F56: =SUM(F53:F55) -> 0 | G56: =SUM(G53:G55) -> 0
B57: C. DIRECT MATERIAL EXPENDITURE
B58: Residential | C58: 117190.9256 | D58: 216674.4298 | E58: 607688.1899 | F58: 1915712.579
B59: Industrial and Commercial | C59: 261652.5449 | D59: 116326.0963 | E59: 94999.71427 | F59: 398660.6826
B60: Other | C60: 0 | D60: 0 | E60: 0 | F60: 0
B61: Total | C61: =SUM(C58:C60) -> 378843.4705 | D61: =SUM(D58:D60) -> 333000.5261 | E61: =SUM(E58:E60) -> 702687.9042 | F61: =SUM(F58:F60) -> 2314373.261 | G61: =SUM(G58:G60) -> 0
B62: D. OTHER DIRECT EXPENDITURE
B63: Residential | C63: 4757.433588 | D63: 6972.016603 | E63: 15879.13923 | F63: 47709.11608
B64: Industrial and Commercial | C64: 10911.45325 | D64: 3922.081038 | E64: 4251.464484 | F64: 3068.054567
B65: Other | C65: 0 | D65: 0 | E65: 0 | F65: 0
B66: Total | C66: =SUM(C63:C65) -> 15668.88684 | D66: =SUM(D63:D65) -> 10894.09764 | E66: =SUM(E63:E65) -> 20130.60372 | F66: =SUM(F63:F65) -> 50777.17065 | G66: =SUM(G63:G65) -> 0
B67: E. RELATED PARTY MARGIN EXPENDITURE
B68: Residential | C68: 0 | D68: 0 | E68: 0 | F68: 0
B69: Industrial and Commercial | C69: 0 | D69: 0 | E69: 0 | F69: 0
B70: Other | C70: 0 | D70: 0 | E70: 0 | F70: 0
B71: Total | C71: =SUM(C68:C70) -> 0 | D71: =SUM(D68:D70) -> 0 | E71: =SUM(E68:E70) -> 0 | F71: =SUM(F68:F70) -> 0 | G71: =SUM(G68:G70) -> 0
B72: F. CAPITAL CONTRIBUTIONS included in the above
B73: Residential | C73: 0 | D73: 0 | E73: 0 | F73: 0
B74: Industrial and Commercial | C74: 0 | D74: 0 | E74: 0 | F74: 0
B75: Other | C75: 0 | D75: 0 | E75: 0 | F75: 0
B76: Total | C76: =SUM(C73:C75) -> 0 | D76: =SUM(D73:D75) -> 0 | E76: =SUM(E73:E75) -> 0 | F76: =SUM(F73:F75) -> 0 | G76: =SUM(G73:G75) -> 0
B77: TOTAL | C77: =SUM(C51,C56,C61,C66,C71,C76) -> 394512.3573 | D77: =SUM(D51,D56,D61,D66,D71,D76) -> 343894.6237 | E77: =SUM(E51,E56,E61,E66,E71,E76) -> 722818.5079 | F77: =SUM(F51,F56,F61,F66,F71,F76) -> 2365150.432 | G77: =SUM(G51,G56,G61,G66,G71,G76) -> 0
B79: E4.1.3 - METER INSTALLATION
C80: EXPENDITURE
C81: $0's, Nominal
C82: =dms_y1 -> 2018 | D82: =dms_y2 -> 2019 | E82: =dms_y3 -> 2020 | F82: =dms_y4 -> 2021 | G82: =dms_y5 -> 2022
B83: A. DIRECT INTERNAL LABOUR EXPENDITURE
B84: Residential | C84: 0 | D84: 0 | E84: 0 | F84: 0
B85: Industrial and Commercial | C85: 0 | D85: 0 | E85: 0 | F85: 0
B86: Other | C86: 0 | D86: 0 | E86: 0 | F86: 0
B87: Total | C87: =SUM(C84:C86) -> 0 | D87: =SUM(D84:D86) -> 0 | E87: =SUM(E84:E86) -> 0 | F87: =SUM(F84:F86) -> 0 | G87: =SUM(G84:G86) -> 0
B88: B. DIRECT CONTRACTOR EXPENDITURE
B89: Residential | C89: 4443224.75 | D89: 5725203.27 | E89: 3345845.17 | F89: 4600274.8
B90: Industrial and Commercial | C90: 250873.46 | D90: 301766.53 | E90: 122966.24 | F90: 568159.55
B91: Other | C91: 0 | D91: 0 | E91: 0 | F91: 0
B92: Total | C92: =SUM(C89:C91) -> 4694098.21 | D92: =SUM(D89:D91) -> 6026969.8 | E92: =SUM(E89:E91) -> 3468811.41 | F92: =SUM(F89:F91) -> 5168434.35 | G92: =SUM(G89:G91) -> 0
B93: C. DIRECT MATERIAL EXPENDITURE
B94: Residential | C94: 0 | D94: 0 | E94: 0 | F94: 0
B95: Industrial and Commercial | C95: 0 | D95: 0 | E95: 0 | F95: 0
B96: Other | C96: 0 | D96: 0 | E96: 0 | F96: 0
B97: Total | C97: =SUM(C94:C96) -> 0 | D97: =SUM(D94:D96) -> 0 | E97: =SUM(E94:E96) -> 0 | F97: =SUM(F94:F96) -> 0 | G97: =SUM(G94:G96) -> 0
B98: D. OTHER DIRECT EXPENDITURE
B99: Residential | C99: 180375.2855 | D99: 184222.0713 | E99: 87428.29331 | F99: 114565.748
B100: Industrial and Commercial | C100: 10461.94308 | D100: 10174.43912 | E100: 5503.033415 | F100: 4372.501674
B101: Other | C101: 0 | D101: 0 | E101: 0 | F101: 0
B102: Total | C102: =SUM(C99:C101) -> 190837.2286 | D102: =SUM(D99:D101) -> 194396.5105 | E102: =SUM(E99:E101) -> 92931.32673 | F102: =SUM(F99:F101) -> 118938.2496 | G102: =SUM(G99:G101) -> 0
B103: E. RELATED PARTY MARGIN EXPENDITURE
B104: Residential | C104: 0 | D104: 0 | E104: 0 | F104: 0
B105: Industrial and Commercial | C105: 0 | D105: 0 | E105: 0 | F105: 0
B106: Other | C106: 0 | D106: 0 | E106: 0 | F106: 0
B107: Total | C107: =SUM(C104:C106) -> 0 | D107: =SUM(D104:D106) -> 0 | E107: =SUM(E104:E106) -> 0 | F107: =SUM(F104:F106) -> 0 | G107: =SUM(G104:G106) -> 0
B108: F. CAPITAL CONTRIBUTIONS included in the above
B109: Residential | C109: 0 | D109: 0 | E109: 0 | F109: 0
B110: Industrial and Commercial | C110: 0 | D110: 0 | E110: 0 | F110: 0
B111: Other | C111: 0 | D111: 0 | E111: 0 | F111: 0
B112: Total | C112: =SUM(C109:C111) -> 0 | D112: =SUM(D109:D111) -> 0 | E112: =SUM(E109:E111) -> 0 | F112: =SUM(F109:F111) -> 0 | G112: =SUM(G109:G111) -> 0
B113: TOTAL | C113: =SUM(C87,C92,C97,C102,C107,C112) -> 4884935.439 | D113: =SUM(D87,D92,D97,D102,D107,D112) -> 6221366.31 | E113: =SUM(E87,E92,E97,E102,E107,E112) -> 3561742.737 | F113: =SUM(F87,F92,F97,F102,F107,F112) -> 5287372.6 | G113: =SUM(G87,G92,G97,G102,G107,G112) -> 0
B115: E4.1.4 - OTHER METER REPLACEMENT CAPEX
C116: EXPENDITURE
C117: $0's, Nominal
C118: =dms_y1 -> 2018 | D118: =dms_y2 -> 2019 | E118: =dms_y3 -> 2020 | F118: =dms_y4 -> 2021 | G118: =dms_y5 -> 2022
B119: A. DIRECT INTERNAL LABOUR EXPENDITURE
B120: Residential | C120: 18805.92 | D120: 71937.16 | E120: 43575.97 | F120: 39130.02
B121: Industrial and Commercial | C121: 5796.08 | D121: 28924.33 | E121: 33338.37 | F121: 8431.07
B122: Other | C122: 0 | D122: 0 | E122: 0 | F122: 0
B123: Total | C123: =SUM(C120:C122) -> 24602 | D123: =SUM(D120:D122) -> 100861.49 | E123: =SUM(E120:E122) -> 76914.34 | F123: =SUM(F120:F122) -> 47561.09 | G123: =SUM(G120:G122) -> 0
B124: B. DIRECT CONTRACTOR EXPENDITURE
B125: Residential | C125: 0 | D125: 0 | E125: 0 | F125: 0
B126: Industrial and Commercial | C126: 0 | D126: 0 | E126: 0 | F126: 0
B127: Other | C127: 0 | D127: 0 | E127: 0 | F127: 0
B128: Total | C128: =SUM(C125:C127) -> 0 | D128: =SUM(D125:D127) -> 0 | E128: =SUM(E125:E127) -> 0 | F128: =SUM(F125:F127) -> 0 | G128: =SUM(G125:G127) -> 0
B129: C. DIRECT MATERIAL EXPENDITURE
B130: Residential | C130: 0 | D130: 0 | E130: 0 | F130: 0
B131: Industrial and Commercial | C131: 0 | D131: 0 | E131: 0 | F131: 0
B132: Other | C132: 0 | D132: 0 | E132: 0 | F132: 0
B133: Total | C133: =SUM(C130:C132) -> 0 | D133: =SUM(D130:D132) -> 0 | E133: =SUM(E130:E132) -> 0 | F133: =SUM(F130:F132) -> 0 | G133: =SUM(G130:G132) -> 0
B134: D. OTHER DIRECT EXPENDITURE
B135: Residential | C135: -4996.97 | D135: 1971.59 | E135: 3524.58 | F135: 2898.14
B136: Industrial and Commercial | C136: 36.99 | D136: 781.51 | E136: 240.71 | F136: 55.78
B137: Other | C137: 0 | D137: 0 | E137: 0 | F137: 0
B138: Total | C138: =SUM(C135:C137) -> -4959.98 | D138: =SUM(D135:D137) -> 2753.1 | E138: =SUM(E135:E137) -> 3765.29 | F138: =SUM(F135:F137) -> 2953.92 | G138: =SUM(G135:G137) -> 0
B139: E. RELATED PARTY MARGIN EXPENDITURE
B140: Residential | C140: 0 | D140: 0 | E140: 0 | F140: 0
B141: Industrial and Commercial | C141: 0 | D141: 0 | E141: 0 | F141: 0
B142: Other | C142: 0 | D142: 0 | E142: 0 | F142: 0
B143: Total | C143: =SUM(C140:C142) -> 0 | D143: =SUM(D140:D142) -> 0 | E143: =SUM(E140:E142) -> 0 | F143: =SUM(F140:F142) -> 0 | G143: =SUM(G140:G142) -> 0
B144: F. CAPITAL CONTRIBUTIONS included in the above
B145: Residential | C145: 0 | D145: 0 | E145: 0 | F145: 0
B146: Industrial and Commercial | C146: 0 | D146: 0 | E146: 0 | F146: 0
B147: Other | C147: 0 | D147: 0 | E147: 0 | F147: 0
B148: Total | C148: =SUM(C145:C147) -> 0 | D148: =SUM(D145:D147) -> 0 | E148: =SUM(E145:E147) -> 0 | F148: =SUM(F145:F147) -> 0 | G148: =SUM(G145:G147) -> 0
B149: TOTAL | C149: =SUM(C123,C128,C133,C138,C143,C148) -> 19642.02 | D149: =SUM(D123,D128,D133,D138,D143,D148) -> 103614.59 | E149: =SUM(E123,E128,E133,E138,E143,E148) -> 80679.63 | F149: =SUM(F123,F128,F133,F138,F143,F148) -> 50515.01 | G149: =SUM(G123,G128,G133,G138,G143,G148) -> 0
B152: E4.2 - VOLUMES
B153: E4.2.1 - NUMBER OF NEW METERS ACQUIRED
C154: VOLUMES
C155: 0s
C156: =dms_y1 -> 2018 | D156: =dms_y2 -> 2019 | E156: =dms_y3 -> 2020 | F156: =dms_y4 -> 2021 | G156: =dms_y5 -> 2022
B157: Residential
B158: Industrial and commercial
B159: Other
B160: Total | C160: =SUM(C157:C159) -> 0 | D160: =SUM(D157:D159) -> 0 | E160: =SUM(E157:E159) -> 0 | F160: =SUM(F157:F159) -> 0 | G160: =SUM(G157:G159) -> 0
B163: E4.2.2 - NUMBER OF METERS REFURBISHED
C164: VOLUMES
C165: 0s
C166: =dms_y1 -> 2018 | D166: =dms_y2 -> 2019 | E166: =dms_y3 -> 2020 | F166: =dms_y4 -> 2021 | G166: =dms_y5 -> 2022
B167: A. REFURBISHABLE METERS REMOVED
B168: Residential
B169: Industrial and commercial
B170: Other
B171: Total | C171: =SUM(C168:C170) -> 0 | D171: =SUM(D168:D170) -> 0 | E171: =SUM(E168:E170) -> 0 | F171: =SUM(F168:F170) -> 0 | G171: =SUM(G168:G170) -> 0
B172: B. METERS DECOMMISSIONED
B173: Residential
B174: Industrial and commercial
B175: Other meters
B176: Total | C176: =SUM(C173:C175) -> 0 | D176: =SUM(D173:D175) -> 0 | E176: =SUM(E173:E175) -> 0 | F176: =SUM(F173:F175) -> 0 | G176: =SUM(G173:G175) -> 0
B177: TOTAL | C177: =SUM(C171,C176) -> 0 | D177: =SUM(D171,D176) -> 0 | E177: =SUM(E171,E176) -> 0 | F177: =SUM(F171,F176) -> 0 | G177: =SUM(G171,G176) -> 0
B180: E4.2.3 - NUMBER OF METERS INSTALLED
C181: VOLUMES
C182: 0s
C183: =dms_y1 -> 2018 | D183: =dms_y2 -> 2019 | E183: =dms_y3 -> 2020 | F183: =dms_y4 -> 2021 | G183: =dms_y5 -> 2022
B184: Residential
B185: Industrial and commercial
B186: Other
B187: Total | C187: =SUM(C184:C186) -> 0 | D187: =SUM(D184:D186) -> 0 | E187: =SUM(E184:E186) -> 0 | F187: =SUM(F184:F186) -> 0 | G187: =SUM(G184:G186) -> 0
B190: E4.2.4 - NUMBER OF METERS REMOVED / DECOMMISSIONED
C191: VOLUMES
C192: 0s
C193: =dms_y1 -> 2018 | D193: =dms_y2 -> 2019 | E193: =dms_y3 -> 2020 | F193: =dms_y4 -> 2021 | G193: =dms_y5 -> 2022
B194: Residential
B195: Industrial and commercial
B196: Other
B197: Total | C197: =SUM(C194:C196) -> 0 | D197: =SUM(D194:D196) -> 0 | E197: =SUM(E194:E196) -> 0 | F197: =SUM(F194:F196) -> 0 | G197: =SUM(G194:G196) -> 0
B200: E4.2.5 - OTHER METER REPLACEMENT VOLUMES
C201: VOLUMES
C202: 0s
C203: =dms_y1 -> 2018 | D203: =dms_y2 -> 2019 | E203: =dms_y3 -> 2020 | F203: =dms_y4 -> 2021 | G203: =dms_y5 -> 2022
B204: Residential
B205: Industrial and commercial
B206: Other
B207: Total | C207: =SUM(C204:C206) -> 0 | D207: =SUM(D204:D206) -> 0 | E207: =SUM(E204:E206) -> 0 | F207: =SUM(F204:F206) -> 0 | G207: =SUM(G204:G206) -> 0

Sheet E5. New Connections
B1: =INDEX(dms_Worksheet_List,MATCH(dms_Model,dms_Model_List)) -> HISTORICAL ANNUAL REPORTING
B2: =dms_TradingName -> AusNet (Gas)
B3: =dms_Header_Span -> 2018 to 2021
B4: E5. NEW CONNECTIONS
B6: E5.1 - EXPENDITURE
B7: E5.1.1 - CAPEX - BY CONNECTION TYPE
B8: A. DIRECT INTERNAL LABOUR EXPENDITURE
D9: EXPENDITURE
D10: $0's, Nominal
D11: =dms_y1 -> 2018 | E11: =dms_y2 -> 2019 | F11: =dms_y3 -> 2020 | G11: =dms_y4 -> 2021 | H11: =dms_y5 -> 2022
B12: (i) ELECTRICITY TO GAS
B13: Distribution Mains | D13: 0 | E13: 0 | F13: 0 | G13: 0
B14: Inlet service pipes | D14: 0 | E14: 0 | F14: 0 | G14: 0
B15: Meters | D15: 0 | E15: 0 | F15: 0 | G15: 0
C16: Total | D16: =SUM(D13:D15) -> 0 | E16: =SUM(E13:E15) -> 0 | F16: =SUM(F13:F15) -> 0 | G16: =SUM(G13:G15) -> 0 | H16: =SUM(H13:H15) -> 0
B17: (ii) NEW HOMES
B18: Distribution Mains | D18: 293701.3492 | E18: 286540.6245 | F18: 299447.8657 | G18: 330689.3903
B19: Inlet service pipes | D19: -149204.1285 | E19: 133843.587 | F19: 103450.5015 | G19: 125202.693
B20: Meters | D20: -2133.33075 | E20: 23105.736 | F20: 17327.00775 | G20: 12074.09925
C21: Total | D21: =SUM(D18:D20) -> 142363.89 | E21: =SUM(E18:E20) -> 443489.9475 | F21: =SUM(F18:F20) -> 420225.375 | G21: =SUM(G18:G20) -> 467966.1825 | H21: =SUM(H18:H20) -> 0
B22: (iii) NEW MEDIUM DENSITY / HIGH RISE
B23: Distribution Mains | D23: 97900.44975 | E23: 95513.5415 | F23: 99815.95525 | G23: 110229.7968
B24: Inlet service pipes | D24: -49734.7095 | E24: 44614.529 | F24: 34483.5005 | G24: 41734.231
B25: Meters | D25: -711.11025 | E25: 7701.912 | F25: 5775.66925 | G25: 4024.69975
C26: Total | D26: =SUM(D23:D25) -> 47454.63 | E26: =SUM(E23:E25) -> 147829.9825 | F26: =SUM(F23:F25) -> 140075.125 | G26: =SUM(G23:G25) -> 155988.7275 | H26: =SUM(H23:H25) -> 0
B27: (iv) INDUSTRIAL & COMMERCIAL TARIFF
B28: Distribution Mains | D28: 17096.953 | E28: 63299.495 | F28: 52910.4512 | G28: 66150.3328
B29: Inlet service pipes | D29: 112807.695 | E29: 148146.575 | F29: 192376.331 | G29: 161439.476
B30: Meters | D30: 88238.282 | E30: 118517.26 | F30: 113879.386 | G30: 74735.662
C31: Total | D31: =SUM(D28:D30) -> 218142.93 | E31: =SUM(E28:E30) -> 329963.33 | F31: =SUM(F28:F30) -> 359166.1682 | G31: =SUM(G28:G30) -> 302325.4708 | H31: =SUM(H28:H30) -> 0
B32: (v) INDUSTRIAL & COMMERCIAL CONTRACT
B33: Distribution Mains | D33: 0 | E33: 0 | F33: 865.98 | G33: 9724.306
B34: Inlet service pipes | D34: 20507.488 | E34: 23805.32 | F34: 25403.708 | G34: 2691.546
B35: Meters | D35: 5126.872 | E35: 5951.33 | F35: 6440.072 | G35: 1673.918
C36: Total | D36: =SUM(D33:D35) -> 25634.36 | E36: =SUM(E33:E35) -> 29756.65 | F36: =SUM(F33:F35) -> 32709.76 | G36: =SUM(G33:G35) -> 14089.77 | H36: =SUM(H33:H35) -> 0
C37: TOTAL | D37: =SUM(D36,D31,D26,D21,D16) -> 433595.81 | E37: =SUM(E36,E31,E26,E21,E16) -> 951039.91 | F37: =SUM(F36,F31,F26,F21,F16) -> 952176.4282 | G37: =SUM(G36,G31,G26,G21,G16) -> 940370.1508 | H37: =SUM(H36,H31,H26,H21,H16) -> 0
B39: B. DIRECT CONTRACTOR EXPENDITURE
D40: EXPENDITURE
D41: $0's, Nominal
D42: =dms_y1 -> 2018 | E42: =dms_y2 -> 2019 | F42: =dms_y3 -> 2020 | G42: =dms_y4 -> 2021 | H42: =dms_y5 -> 2022
B43: (i) ELECTRICITY TO GAS
B44: Distribution Mains | D44: 0 | E44: 0 | F44: 0 | G44: 0
B45: Inlet service pipes | D45: 0 | E45: 0 | F45: 0 | G45: 0
B46: Meters | D46: 0 | E46: 0 | F46: 0 | G46: 0
C47: Total | D47: =SUM(D44:D46) -> 0 | E47: =SUM(E44:E46) -> 0 | F47: =SUM(F44:F46) -> 0 | G47: =SUM(G44:G46) -> 0 | H47: =SUM(H44:H46) -> 0
B48: (ii) NEW HOMES
B49: Distribution Mains | D49: 10737899.74 | E49: 7910176.544 | F49: 10157680.95 | G49: 6805456.358
B50: Inlet service pipes | D50: 16745045.63 | E50: 23600489.12 | F50: 22606345.23 | G50: 22340344.59
B51: Meters | D51: 2400863.176 | E51: 2728117.546 | F51: 2437143.679 | G51: 2478514.768
C52: Total | D52: =SUM(D49:D51) -> 29883808.54 | E52: =SUM(E49:E51) -> 34238783.21 | F52: =SUM(F49:F51) -> 35201169.86 | G52: =SUM(G49:G51) -> 31624315.72 | H52: =SUM(H49:H51) -> 0
B53: (iii) NEW MEDIUM DENSITY / HIGH RISE
B54: Distribution Mains | D54: 3579299.912 | E54: 2636725.515 | F54: 3385893.651 | G54: 2268485.453
B55: Inlet service pipes | D55: 5581681.875 | E55: 7866829.707 | F55: 7535448.41 | G55: 7446781.531
B56: Meters | D56: 800287.7253 | E56: 909372.5153 | F56: 812381.2262 | G56: 826171.5892
C57: Total | D57: =SUM(D54:D56) -> 9961269.513 | E57: =SUM(E54:E56) -> 11412927.74 | F57: =SUM(F54:F56) -> 11733723.29 | G57: =SUM(G54:G56) -> 10541438.57 | H57: =SUM(H54:H56) -> 0
B58: (iv) INDUSTRIAL & COMMERCIAL TARIFF
B59: Distribution Mains | D59: 380392.366 | E59: 829528.493 | F59: 742082.68 | G59: 1410755.656
B60: Inlet service pipes | D60: 2055738.63 | E60: 2071256.565 | F60: 2022985.412 | G60: 2404338.147
B61: Meters | D61: 1579636.894 | E61: 1665221.752 | F61: 1402029.838 | G61: 1073876.094
C62: Total | D62: =SUM(D59:D61) -> 4015767.89 | E62: =SUM(E59:E61) -> 4566006.81 | F62: =SUM(F59:F61) -> 4167097.93 | G62: =SUM(G59:G61) -> 4888969.897 | H62: =SUM(H59:H61) -> 0
B63: (v) INDUSTRIAL & COMMERCIAL CONTRACT
B64: Distribution Mains | D64: 0 | E64: 0 | F64: 0 | G64: 439793.7655
B65: Inlet service pipes | D65: 11987.8 | E65: 599872.064 | F65: 1145694.992 | G65: 384674.9975
B66: Meters | D66: 2996.95 | E66: 149968.016 | F66: 286423.748 | G66: 141441.637
C67: Total | D67: =SUM(D64:D66) -> 14984.75 | E67: =SUM(E64:E66) -> 749840.08 | F67: =SUM(F64:F66) -> 1432118.74 | G67: =SUM(G64:G66) -> 965910.4 | H67: =SUM(H64:H66) -> 0
C68: TOTAL | D68: =SUM(D67,D62,D57,D52,D47) -> 43875830.69 | E68: =SUM(E67,E62,E57,E52,E47) -> 50967557.84 | F68: =SUM(F67,F62,F57,F52,F47) -> 52534109.82 | G68: =SUM(G67,G62,G57,G52,G47) -> 48020634.59 | H68: =SUM(H67,H62,H57,H52,H47) -> 0
B70: C. DIRECT MATERIAL EXPENDITURE
D71: EXPENDITURE
D72: $0's, Nominal
D73: =dms_y1 -> 2018 | E73: =dms_y2 -> 2019 | F73: =dms_y3 -> 2020 | G73: =dms_y4 -> 2021 | H73: =dms_y5 -> 2022
B74: (i) ELECTRICITY TO GAS
B75: Distribution Mains | D75: 0 | E75: 0 | F75: 0 | G75: 0
B76: Inlet service pipes | D76: 0 | E76: 0 | F76: 0 | G76: 0
B77: Meters | D77: 0 | E77: 0 | F77: 0 | G77: 0
C78: Total | D78: =SUM(D75:D77) -> 0 | E78: =SUM(E75:E77) -> 0 | F78: =SUM(F75:F77) -> 0 | G78: =SUM(G75:G77) -> 0 | H78: =SUM(H75:H77) -> 0
B79: (ii) NEW HOMES
B80: Distribution Mains | D80: 6929.154 | E80: 3686.4045 | F80: 3989.90925 | G80: 4751.964
B81: Inlet service pipes | D81: 13193.139 | E81: 7460.934 | F81: 7979.8185 | G81: 9503.928
B82: Meters | D82: 1230607.257 | E82: 939347.7615 | F82: 521275.6298 | G82: 1087281.491
C83: Total | D83: =SUM(D80:D82) -> 1250729.55 | E83: =SUM(E80:E82) -> 950495.1 | F83: =SUM(F80:F82) -> 533245.3575 | G83: =SUM(G80:G82) -> 1101537.383 | H83: =SUM(H80:H82) -> 0
B84: (iii) NEW MEDIUM DENSITY / HIGH RISE
B85: Distribution Mains | D85: 2309.718 | E85: 1228.8015 | F85: 1329.96975 | G85: 1583.988
B86: Inlet service pipes | D86: 4397.713 | E86: 2486.978 | F86: 2659.9395 | G86: 3167.976
B87: Meters | D87: 410202.419 | E87: 313115.9205 | F87: 173758.5433 | G87: 362427.1635
C88: Total | D88: =SUM(D85:D87) -> 416909.85 | E88: =SUM(E85:E87) -> 316831.7 | F88: =SUM(F85:F87) -> 177748.4525 | G88: =SUM(G85:G87) -> 367179.1275 | H88: =SUM(H85:H87) -> 0
B89: (iv) INDUSTRIAL & COMMERCIAL TARIFF
B90: Distribution Mains | D90: 13025.144 | E90: 6121.446 | F90: 8314.288 | G90: 428359.9392
B91: Inlet service pipes | D91: 64679.22 | E91: 30560.73 | F91: 46122.97 | G91: 80773.362
B92: Meters | D92: 53225.046 | E92: 25414.044 | F92: 28705.622 | G92: 33682.23
C93: Total | D93: =SUM(D90:D92) -> 130929.41 | E93: =SUM(E90:E92) -> 62096.22 | F93: =SUM(F90:F92) -> 83142.88 | G93: =SUM(G90:G92) -> 542815.5312 | H93: =SUM(H90:H92) -> 0
B94: (v) INDUSTRIAL & COMMERCIAL CONTRACT
B95: Distribution Mains | D95: 0 | E95: 0 | F95: 0 | G95: 7294.122
B96: Inlet service pipes | D96: 1675.032 | E96: 6212.24 | F96: 26473.912 | G96: 4430.026
B97: Meters | D97: 418.758 | E97: 1553.06 | F97: 6618.478 | G97: 1858.372
C98: Total | D98: =SUM(D95:D97) -> 2093.79 | E98: =SUM(E95:E97) -> 7765.3 | F98: =SUM(F95:F97) -> 33092.39 | G98: =SUM(G95:G97) -> 13582.52 | H98: =SUM(H95:H97) -> 0
C99: TOTAL | D99: =SUM(D98,D93,D88,D83,D78) -> 1800662.6 | E99: =SUM(E98,E93,E88,E83,E78) -> 1337188.32 | F99: =SUM(F98,F93,F88,F83,F78) -> 827229.08 | G99: =SUM(G98,G93,G88,G83,G78) -> 2025114.561 | H99: =SUM(H98,H93,H88,H83,H78) -> 0
B101: D. OTHER DIRECT EXPENDITURE
D102: EXPENDITURE
D103: $0's, Nominal
D104: =dms_y1 -> 2018 | E104: =dms_y2 -> 2019 | F104: =dms_y3 -> 2020 | G104: =dms_y4 -> 2021 | H104: =dms_y5 -> 2022
B105: (i) ELECTRICITY TO GAS
B106: Distribution Mains | D106: 0 | E106: 0 | F106: 0 | G106: 0
B107: Inlet service pipes | D107: 0 | E107: 0 | F107: 0 | G107: 0
B108: Meters | D108: 0 | E108: 0 | F108: 0 | G108: 0
C109: Total | D109: =SUM(D106:D108) -> 0 | E109: =SUM(E106:E108) -> 0 | F109: =SUM(F106:F108) -> 0 | G109: =SUM(G106:G108) -> 0 | H109: =SUM(H106:H108) -> 0
B110: (ii) NEW HOMES
B111: Distribution Mains | D111: 941592.9675 | E111: 260219.2995 | F111: 381907.1835 | G111: 201550.764
B112: Inlet service pipes | D112: 693856.431 | E112: 802419.3135 | F112: 925932.6315 | G112: 617839.533
B113: Meters | D113: 195216.924 | E113: 123968.577 | F113: 113192.37 | G113: 94196.0205
C114: Total | D114: =SUM(D111:D113) -> 1830666.322 | E114: =SUM(E111:E113) -> 1186607.19 | F114: =SUM(F111:F113) -> 1421032.185 | G114: =SUM(G111:G113) -> 913586.3175 | H114: =SUM(H111:H113) -> 0
B115: (iii) NEW MEDIUM DENSITY / HIGH RISE
B116: Distribution Mains | D116: 313864.3225 | E116: 86739.7665 | F116: 127302.3945 | G116: 67183.588
B117: Inlet service pipes | D117: 231285.477 | E117: 267473.1045 | F117: 308644.2105 | G117: 205946.511
B118: Meters | D118: 65072.308 | E118: 41322.859 | F118: 37730.79 | G118: 31398.6735
C119: Total | D119: =SUM(D116:D118) -> 610222.1075 | E119: =SUM(E116:E118) -> 395535.73 | F119: =SUM(F116:F118) -> 473677.395 | G119: =SUM(G116:G118) -> 304528.7725 | H119: =SUM(H116:H118) -> 0
B120: (iv) INDUSTRIAL & COMMERCIAL TARIFF
B121: Distribution Mains | D121: 22186.348 | E121: 29348.416 | F121: 32849.0562 | G121: 107746.95
B122: Inlet service pipes | D122: 142099.292 | E122: 80921.48 | F122: 92871.698 | G122: 74732.165
B123: Meters | D123: 104662.23 | E123: 65033.704 | F123: 63135.598 | G123: 32817.07
C124: Total | D124: =SUM(D121:D123) -> 268947.87 | E124: =SUM(E121:E123) -> 175303.6 | F124: =SUM(F121:F123) -> 188856.3522 | G124: =SUM(G121:G123) -> 215296.185 | H124: =SUM(H121:H123) -> 0
B125: (v) INDUSTRIAL & COMMERCIAL CONTRACT
B126: Distribution Mains | D126: 0 | E126: 0 | F126: 1810.058 | G126: 8493.506
B127: Inlet service pipes | D127: -26787.12 | E127: 23471.608 | F127: 44702.338 | G127: 7232.082
B128: Meters | D128: -6696.78 | E128: 5867.902 | F128: 11361.914 | G128: 2682.352
C129: Total | D129: =SUM(D126:D128) -> -33483.9 | E129: =SUM(E126:E128) -> 29339.51 | F129: =SUM(F126:F128) -> 57874.31 | G129: =SUM(G126:G128) -> 18407.94 | H129: =SUM(H126:H128) -> 0
C130: TOTAL | D130: =SUM(D129,D124,D119,D114,D109) -> 2676352.4 | E130: =SUM(E129,E124,E119,E114,E109) -> 1786786.03 | F130: =SUM(F129,F124,F119,F114,F109) -> 2141440.242 | G130: =SUM(G129,G124,G119,G114,G109) -> 1451819.215 | H130: =SUM(H129,H124,H119,H114,H109) -> 0
B132: E. RELATED PARTY MARGIN EXPENDITURE
D133: EXPENDITURE
D134: $0's, Nominal
D135: =dms_y1 -> 2018 | E135: =dms_y2 -> 2019 | F135: =dms_y3 -> 2020 | G135: =dms_y4 -> 2021 | H135: =dms_y5 -> 2022
B136: (i) ELECTRICITY TO GAS
B137: Distribution Mains | D137: 0 | E137: 0 | F137: 0 | G137: 0
B138: Inlet service pipes | D138: 0 | E138: 0 | F138: 0 | G138: 0
B139: Meters | D139: 0 | E139: 0 | F139: 0 | G139: 0
C140: Total | D140: =SUM(D137:D139) -> 0 | E140: =SUM(E137:E139) -> 0 | F140: =SUM(F137:F139) -> 0 | G140: =SUM(G137:G139) -> 0 | H140: =SUM(H137:H139) -> 0
B141: (ii) NEW HOMES
B142: Distribution Mains | D142: 0 | E142: 0 | F142: 0 | G142: 0
B143: Inlet service pipes | D143: 0 | E143: 0 | F143: 0 | G143: 0
B144: Meters | D144: 0 | E144: 0 | F144: 0 | G144: 0
C145: Total | D145: =SUM(D142:D144) -> 0 | E145: =SUM(E142:E144) -> 0 | F145: =SUM(F142:F144) -> 0 | G145: =SUM(G142:G144) -> 0 | H145: =SUM(H142:H144) -> 0
B146: (iii) NEW MEDIUM DENSITY / HIGH RISE
B147: Distribution Mains | D147: 0 | E147: 0 | F147: 0 | G147: 0
B148: Inlet service pipes | D148: 0 | E148: 0 | F148: 0 | G148: 0
B149: Meters | D149: 0 | E149: 0 | F149: 0 | G149: 0
C150: Total | D150: =SUM(D147:D149) -> 0 | E150: =SUM(E147:E149) -> 0 | F150: =SUM(F147:F149) -> 0 | G150: =SUM(G147:G149) -> 0 | H150: =SUM(H147:H149) -> 0
B151: (iv) INDUSTRIAL & COMMERCIAL TARIFF
B152: Distribution Mains | D152: 0 | E152: 0 | F152: 0 | G152: 0
B153: Inlet service pipes | D153: 0 | E153: 0 | F153: 0 | G153: 0
B154: Meters | D154: 0 | E154: 0 | F154: 0 | G154: 0
C155: Total | D155: =SUM(D152:D154) -> 0 | E155: =SUM(E152:E154) -> 0 | F155: =SUM(F152:F154) -> 0 | G155: =SUM(G152:G154) -> 0 | H155: =SUM(H152:H154) -> 0
B156: (v) INDUSTRIAL & COMMERCIAL CONTRACT
B157: Distribution Mains | D157: 0 | E157: 0 | F157: 0 | G157: 0
B158: Inlet service pipes | D158: 0 | E158: 0 | F158: 0 | G158: 0
B159: Meters | D159: 0 | E159: 0 | F159: 0 | G159: 0
C160: Total | D160: =SUM(D157:D159) -> 0 | E160: =SUM(E157:E159) -> 0 | F160: =SUM(F157:F159) -> 0 | G160: =SUM(G157:G159) -> 0 | H160: =SUM(H157:H159) -> 0
C161: TOTAL | D161: =SUM(D160,D155,D150,D145,D140) -> 0 | E161: =SUM(E160,E155,E150,E145,E140) -> 0 | F161: =SUM(F160,F155,F150,F145,F140) -> 0 | G161: =SUM(G160,G155,G150,G145,G140) -> 0 | H161: =SUM(H160,H155,H150,H145,H140) -> 0
B163: F. CAPITAL CONTRIBUTIONS included in the above
D164: EXPENDITURE
D165: $0's, Nominal
D166: =dms_y1 -> 2018 | E166: =dms_y2 -> 2019 | F166: =dms_y3 -> 2020 | G166: =dms_y4 -> 2021 | H166: =dms_y5 -> 2022
B167: (i) ELECTRICITY TO GAS
B168: Distribution Mains | D168: 0 | E168: 0 | F168: 0 | G168: 0
B169: Inlet service pipes | D169: 0 | E169: 0 | F169: 0 | G169: 0
B170: Meters | D170: 0 | E170: 0 | F170: 0 | G170: 0
C171: Total | D171: =SUM(D168:D170) -> 0 | E171: =SUM(E168:E170) -> 0 | F171: =SUM(F168:F170) -> 0 | G171: =SUM(G168:G170) -> 0 | H171: =SUM(H168:H170) -> 0
B172: (ii) NEW HOMES
B173: Distribution Mains | D173: 100130.016 | E173: 395596.2555 | F173: 1537930.778 | G173: 962097.591
B174: Inlet service pipes | D174: 576776.9655 | E174: 394861.446 | F174: 462589.404 | G174: 257366.142
B175: Meters | D175: 30336.5535 | E175: 65810.241 | F175: 37265.24025 | G175: 42894.357
C176: Total | D176: =SUM(D173:D175) -> 707243.535 | E176: =SUM(E173:E175) -> 856267.9425 | F176: =SUM(F173:F175) -> 2037785.423 | G176: =SUM(G173:G175) -> 1262358.09 | H176: =SUM(H173:H175) -> 0
B177: (iii) NEW MEDIUM DENSITY / HIGH RISE
B178: Distribution Mains | D178: 33376.672 | E178: 131865.4185 | F178: 512643.5928 | G178: 320699.197
B179: Inlet service pipes | D179: 192258.9885 | E179: 131620.482 | F179: 154196.468 | G179: 85788.714
B180: Meters | D180: 10112.1845 | E180: 21936.747 | F180: 12421.74675 | G180: 14298.119
C181: Total | D181: =SUM(D178:D180) -> 235747.845 | E181: =SUM(E178:E180) -> 285422.6475 | F181: =SUM(F178:F180) -> 679261.8075 | G181: =SUM(G178:G180) -> 420786.03 | H181: =SUM(H178:H180) -> 0
B182: (iv) INDUSTRIAL & COMMERCIAL TARIFF
B183: Distribution Mains | D183: 166031.401 | E183: 579946.244 | F183: 610066.507 | G183: 1573810.844
B184: Inlet service pipes | D184: 427609.405 | E184: 1668126.22 | F184: 888234.785 | G184: 1139355.881
B185: Meters | D185: 342087.524 | E185: 1334500.976 | F185: 607371.508 | G185: 504167.752
C186: Total | D186: =SUM(D183:D185) -> 935728.33 | E186: =SUM(E183:E185) -> 3582573.44 | F186: =SUM(F183:F185) -> 2105672.8 | G186: =SUM(G183:G185) -> 3217334.477 | H186: =SUM(H183:H185) -> 0
B187: (v) INDUSTRIAL & COMMERCIAL CONTRACT
B188: Distribution Mains | D188: 0 | E188: 0 | F188: 0 | G188: 333836.65
B189: Inlet service pipes | D189: 0 | E189: 684053.84 | F189: 916353.272 | G189: 252342.25
B190: Meters | D190: 0 | E190: 171013.46 | F190: 229088.318 | G190: 97451.1
C191: Total | D191: =SUM(D188:D190) -> 0 | E191: =SUM(E188:E190) -> 855067.3 | F191: =SUM(F188:F190) -> 1145441.59 | G191: =SUM(G188:G190) -> 683630 | H191: =SUM(H188:H190) -> 0
C192: TOTAL | D192: =SUM(D191,D186,D181,D176,D171) -> 1878719.71 | E192: =SUM(E191,E186,E181,E176,E171) -> 5579331.33 | F192: =SUM(F191,F186,F181,F176,F171) -> 5968161.62 | G192: =SUM(G191,G186,G181,G176,G171) -> 5584108.597 | H192: =SUM(H191,H186,H181,H176,H171) -> 0
B195: E5.2 - UNIT RATES
B196: E5.2.1 - UNIT RATES - PER CONNECTION - BY CONNECTION TYPE
D197: RATES PER CONNECTION
D198: $0's, Nominal
C199: Units | D199: =dms_y1 -> 2018 | E199: =dms_y2 -> 2019 | F199: =dms_y3 -> 2020 | G199: =dms_y4 -> 2021 | H199: =dms_y5 -> 2022
B200: A. ELECTRICITY TO GAS
B201: Distribution mains | C201: per metre per connection
B202: Inlet service pipes | C202: per service per connection
B203: Meters | C203: number per connection
B204: B. NEW HOMES
B205: Distribution mains | C205: per metre per connection
B206: Inlet service pipes | C206: per service per connection
B207: Meters | C207: number per connection
B208: C. NEW MEDIUM DENSITY / HIGH RISE
... 67 more rows

Sheet E6. Non-network
B1: =INDEX(dms_Worksheet_List,MATCH(dms_Model,dms_Model_List)) -> HISTORICAL ANNUAL REPORTING
B2: =dms_TradingName -> AusNet (Gas)
B3: =dms_Header_Span -> 2018 to 2021
B4: E6. NON-NETWORK EXPENDITURE
B6: E6.5 - TELEMETRY
B8: Please list all projects here:
B9: Project 1
B26: E6.5.1 - CAPEX - BY PROJECT
B27: A. DIRECT INTERNAL LABOUR EXPENDITURE
C28: EXPENDITURE
C29: $0's, Nominal
C30: =dms_y1 -> 2018 | D30: =dms_y2 -> 2019 | E30: =dms_y3 -> 2020 | F30: =dms_y4 -> 2021 | G30: =dms_y5 -> 2022
B31: =IF(ISBLANK(dms_E65_Projects_01),"",dms_E65_Projects_01) -> Project 1
B32: =IF(ISBLANK(dms_E65_Projects_02),"",dms_E65_Projects_02) -> 
B33: =IF(ISBLANK(dms_E65_Projects_03),"",dms_E65_Projects_03) -> 
B34: =IF(ISBLANK(dms_E65_Projects_04),"",dms_E65_Projects_04) -> 
B35: =IF(ISBLANK(dms_E65_Projects_05),"",dms_E65_Projects_05) -> 
B36: =IF(ISBLANK(dms_E65_Projects_06),"",dms_E65_Projects_06) -> 
B37: =IF(ISBLANK(dms_E65_Projects_07),"",dms_E65_Projects_07) -> 
B38: =IF(ISBLANK(dms_E65_Projects_08),"",dms_E65_Projects_08) -> 
B39: =IF(ISBLANK(dms_E65_Projects_09),"",dms_E65_Projects_09) -> 
B40: =IF(ISBLANK(dms_E65_Projects_10),"",dms_E65_Projects_10) -> 
B41: =IF(ISBLANK(dms_E65_Projects_11),"",dms_E65_Projects_11) -> 
B42: =IF(ISBLANK(dms_E65_Projects_12),"",dms_E65_Projects_12) -> 
B43: =IF(ISBLANK(dms_E65_Projects_13),"",dms_E65_Projects_13) -> 
B44: =IF(ISBLANK(dms_E65_Projects_14),"",dms_E65_Projects_14) -> 
B45: =IF(ISBLANK(dms_E65_Projects_15),"",dms_E65_Projects_15) -> 
B46: Aggregate of other projects with total expenditure of less than $500,000 | C46: 206872.09 | D46: 134445.47 | E46: 151913.03 | F46: 230058.4
B47: Total | C47: =SUM(C31:C46) -> 206872.09 | D47: =SUM(D31:D46) -> 134445.47 | E47: =SUM(E31:E46) -> 151913.03 | F47: =SUM(F31:F46) -> 230058.4 | G47: =SUM(G31:G46) -> 0
B49: B. DIRECT CONTRACTOR EXPENDITURE
B50: =IF(ISBLANK(dms_E65_Projects_01),"",dms_E65_Projects_01) -> Project 1
B51: =IF(ISBLANK(dms_E65_Projects_02),"",dms_E65_Projects_02) -> 
B52: =IF(ISBLANK(dms_E65_Projects_03),"",dms_E65_Projects_03) -> 
B53: =IF(ISBLANK(dms_E65_Projects_04),"",dms_E65_Projects_04) -> 
B54: =IF(ISBLANK(dms_E65_Projects_05),"",dms_E65_Projects_05) -> 
B55: =IF(ISBLANK(dms_E65_Projects_06),"",dms_E65_Projects_06) -> 
B56: =IF(ISBLANK(dms_E65_Projects_07),"",dms_E65_Projects_07) -> 
B57: =IF(ISBLANK(dms_E65_Projects_08),"",dms_E65_Projects_08) -> 
B58: =IF(ISBLANK(dms_E65_Projects_09),"",dms_E65_Projects_09) -> 
B59: =IF(ISBLANK(dms_E65_Projects_10),"",dms_E65_Projects_10) -> 
B60: =IF(ISBLANK(dms_E65_Projects_11),"",dms_E65_Projects_11) -> 
B61: =IF(ISBLANK(dms_E65_Projects_12),"",dms_E65_Projects_12) -> 
B62: =IF(ISBLANK(dms_E65_Projects_13),"",dms_E65_Projects_13) -> 
B63: =IF(ISBLANK(dms_E65_Projects_14),"",dms_E65_Projects_14) -> 
B64: =IF(ISBLANK(dms_E65_Projects_15),"",dms_E65_Projects_15) -> 
B65: Aggregate of other projects with total expenditure of less than $500,000 | C65: 21888.4 | D65: 62896.83 | E65: 23391.97 | F65: 9.88
B66: Total | C66: =SUM(C50:C65) -> 21888.4 | D66: =SUM(D50:D65) -> 62896.83 | E66: =SUM(E50:E65) -> 23391.97 | F66: =SUM(F50:F65) -> 9.88 | G66: =SUM(G50:G65) -> 0
B68: C. DIRECT MATERIAL EXPENDITURE
B69: =IF(ISBLANK(dms_E65_Projects_01),"",dms_E65_Projects_01) -> Project 1
B70: =IF(ISBLANK(dms_E65_Projects_02),"",dms_E65_Projects_02) -> 
B71: =IF(ISBLANK(dms_E65_Projects_03),"",dms_E65_Projects_03) -> 
B72: =IF(ISBLANK(dms_E65_Projects_04),"",dms_E65_Projects_04) -> 
B73: =IF(ISBLANK(dms_E65_Projects_05),"",dms_E65_Projects_05) -> 
B74: =IF(ISBLANK(dms_E65_Projects_06),"",dms_E65_Projects_06) -> 
B75: =IF(ISBLANK(dms_E65_Projects_07),"",dms_E65_Projects_07) -> 
B76: =IF(ISBLANK(dms_E65_Projects_08),"",dms_E65_Projects_08) -> 
B77: =IF(ISBLANK(dms_E65_Projects_09),"",dms_E65_Projects_09) -> 
B78: =IF(ISBLANK(dms_E65_Projects_10),"",dms_E65_Projects_10) -> 
B79: =IF(ISBLANK(dms_E65_Projects_11),"",dms_E65_Projects_11) -> 
B80: =IF(ISBLANK(dms_E65_Projects_12),"",dms_E65_Projects_12) -> 
B81: =IF(ISBLANK(dms_E65_Projects_13),"",dms_E65_Projects_13) -> 
B82: =IF(ISBLANK(dms_E65_Projects_14),"",dms_E65_Projects_14) -> 
B83: =IF(ISBLANK(dms_E65_Projects_15),"",dms_E65_Projects_15) -> 
B84: Aggregate of other projects with total expenditure of less than $500,000 | C84: 123578.96 | D84: 70344.69 | E84: 117799.13 | F84: 237221.19
B85: Total | C85: =SUM(C69:C84) -> 123578.96 | D85: =SUM(D69:D84) -> 70344.69 | E85: =SUM(E69:E84) -> 117799.13 | F85: =SUM(F69:F84) -> 237221.19 | G85: =SUM(G69:G84) -> 0
B87: D. OTHER DIRECT EXPENDITURE
B88: =IF(ISBLANK(dms_E65_Projects_01),"",dms_E65_Projects_01) -> Project 1
B89: =IF(ISBLANK(dms_E65_Projects_02),"",dms_E65_Projects_02) -> 
B90: =IF(ISBLANK(dms_E65_Projects_03),"",dms_E65_Projects_03) -> 
B91: =IF(ISBLANK(dms_E65_Projects_04),"",dms_E65_Projects_04) -> 
B92: =IF(ISBLANK(dms_E65_Projects_05),"",dms_E65_Projects_05) -> 
B93: =IF(ISBLANK(dms_E65_Projects_06),"",dms_E65_Projects_06) -> 
B94: =IF(ISBLANK(dms_E65_Projects_07),"",dms_E65_Projects_07) -> 
B95: =IF(ISBLANK(dms_E65_Projects_08),"",dms_E65_Projects_08) -> 
B96: =IF(ISBLANK(dms_E65_Projects_09),"",dms_E65_Projects_09) -> 
B97: =IF(ISBLANK(dms_E65_Projects_10),"",dms_E65_Projects_10) -> 
B98: =IF(ISBLANK(dms_E65_Projects_11),"",dms_E65_Projects_11) -> 
B99: =IF(ISBLANK(dms_E65_Projects_12),"",dms_E65_Projects_12) -> 
B100: =IF(ISBLANK(dms_E65_Projects_13),"",dms_E65_Projects_13) -> 
B101: =IF(ISBLANK(dms_E65_Projects_14),"",dms_E65_Projects_14) -> 
B102: =IF(ISBLANK(dms_E65_Projects_15),"",dms_E65_Projects_15) -> 
B103: Aggregate of other projects with total expenditure of less than $500,000 | C103: 298029.28 | D103: 144536.41 | E103: 38750.28 | F103: 40445
B104: Total | C104: =SUM(C88:C103) -> 298029.28 | D104: =SUM(D88:D103) -> 144536.41 | E104: =SUM(E88:E103) -> 38750.28 | F104: =SUM(F88:F103) -> 40445 | G104: =SUM(G88:G103) -> 0
B106: E. RELATED PARTY MARGIN EXPENDITURE
B107: =IF(ISBLANK(dms_E65_Projects_01),"",dms_E65_Projects_01) -> Project 1
B108: =IF(ISBLANK(dms_E65_Projects_02),"",dms_E65_Projects_02) -> 
B109: =IF(ISBLANK(dms_E65_Projects_03),"",dms_E65_Projects_03) -> 
B110: =IF(ISBLANK(dms_E65_Projects_04),"",dms_E65_Projects_04) -> 
B111: =IF(ISBLANK(dms_E65_Projects_05),"",dms_E65_Projects_05) -> 
B112: =IF(ISBLANK(dms_E65_Projects_06),"",dms_E65_Projects_06) -> 
B113: =IF(ISBLANK(dms_E65_Projects_07),"",dms_E65_Projects_07) -> 
B114: =IF(ISBLANK(dms_E65_Projects_08),"",dms_E65_Projects_08) -> 
B115: =IF(ISBLANK(dms_E65_Projects_09),"",dms_E65_Projects_09) -> 
B116: =IF(ISBLANK(dms_E65_Projects_10),"",dms_E65_Projects_10) -> 
B117: =IF(ISBLANK(dms_E65_Projects_11),"",dms_E65_Projects_11) -> 
B118: =IF(ISBLANK(dms_E65_Projects_12),"",dms_E65_Projects_12) -> 
B119: =IF(ISBLANK(dms_E65_Projects_13),"",dms_E65_Projects_13) -> 
B120: =IF(ISBLANK(dms_E65_Projects_14),"",dms_E65_Projects_14) -> 
B121: =IF(ISBLANK(dms_E65_Projects_15),"",dms_E65_Projects_15) -> 
B122: Aggregate of other projects with total expenditure of less than $500,000 | C122: 0 | D122: 0
B123: Total | C123: =SUM(C107:C122) -> 0 | D123: =SUM(D107:D122) -> 0 | E123: =SUM(E107:E122) -> 0 | F123: =SUM(F107:F122) -> 0 | G123: =SUM(G107:G122) -> 0
B125: F. CAPITAL CONTRIBUTIONS included in the above
B126: =IF(ISBLANK(dms_E65_Projects_01),"",dms_E65_Projects_01) -> Project 1
B127: =IF(ISBLANK(dms_E65_Projects_02),"",dms_E65_Projects_02) -> 
B128: =IF(ISBLANK(dms_E65_Projects_03),"",dms_E65_Projects_03) -> 
B129: =IF(ISBLANK(dms_E65_Projects_04),"",dms_E65_Projects_04) -> 
B130: =IF(ISBLANK(dms_E65_Projects_05),"",dms_E65_Projects_05) -> 
B131: =IF(ISBLANK(dms_E65_Projects_06),"",dms_E65_Projects_06) -> 
B132: =IF(ISBLANK(dms_E65_Projects_07),"",dms_E65_Projects_07) -> 
B133: =IF(ISBLANK(dms_E65_Projects_08),"",dms_E65_Projects_08) -> 
B134: =IF(ISBLANK(dms_E65_Projects_09),"",dms_E65_Projects_09) -> 
B135: =IF(ISBLANK(dms_E65_Projects_10),"",dms_E65_Projects_10) -> 
B136: =IF(ISBLANK(dms_E65_Projects_11),"",dms_E65_Projects_11) -> 
B137: =IF(ISBLANK(dms_E65_Projects_12),"",dms_E65_Projects_12) -> 
B138: =IF(ISBLANK(dms_E65_Projects_13),"",dms_E65_Projects_13) -> 
B139: =IF(ISBLANK(dms_E65_Projects_14),"",dms_E65_Projects_14) -> 
B140: =IF(ISBLANK(dms_E65_Projects_15),"",dms_E65_Projects_15) -> 
B141: Aggregate of other projects with total expenditure of less than $500,000 | C141: 0 | D141: 0 | E141: 0 | F141: 0
B142: Total | C142: =SUM(C126:C141) -> 0 | D142: =SUM(D126:D141) -> 0 | E142: =SUM(E126:E141) -> 0 | F142: =SUM(F126:F141) -> 0 | G142: =SUM(G126:G141) -> 0

Sheet E10. Overheads
B1: =INDEX(dms_Worksheet_List,MATCH(dms_Model,dms_Model_List)) -> HISTORICAL ANNUAL REPORTING
B2: =dms_TradingName -> AusNet (Gas)
B3: =dms_Header_Span -> 2018 to 2021
B4: E10. OVERHEADS EXPENDITURE
B6: E10.1 - NETWORK
C7: EXPENDITURE
C8: $0's, Nominal
C9: =dms_y1 -> 2018 | D9: =dms_y2 -> 2019 | E9: =dms_y3 -> 2020 | F9: =dms_y4 -> 2021 | G9: =dms_y5 -> 2022
B10: E10.1.1 - OPEX
B11: Reference services | C11: 8791635.175 | D11: 5641579.897 | E11: 5586337.636 | F11: 5227735.084
B12: Non-reference services | C12: 0 | D12: 0 | E12: 0 | F12: 0
B13: Total | C13: =SUM(C11:C12) -> 8791635.175 | D13: =SUM(D11:D12) -> 5641579.897 | E13: =SUM(E11:E12) -> 5586337.636 | F13: =SUM(F11:F12) -> 5227735.084 | G13: =SUM(G11:G12) -> 0
B14: E10.1.2 - CAPEX
B15: Reference services | C15: 5325619.851 | D15: 3441470.56 | E15: 3604907.47 | F15: 3010882.23
B16: Non-reference services | C16: 55976.73 | D16: 30193.77 | E16: 34968.41 | F16: 21992.91
B17: Total | C17: =SUM(C15:C16) -> 5381596.581 | D17: =SUM(D15:D16) -> 3471664.33 | E17: =SUM(E15:E16) -> 3639875.88 | F17: =SUM(F15:F16) -> 3032875.14 | G17: =SUM(G15:G16) -> 0
B21: E10.2 - CORPORATE
C22: EXPENDITURE
C23: $0's, Nominal
C24: =dms_y1 -> 2018 | D24: =dms_y2 -> 2019 | E24: =dms_y3 -> 2020 | F24: =dms_y4 -> 2021 | G24: =dms_y5 -> 2022
B25: E10.2.1 - OPEX
B26: Reference services | C26: 18090140.41 | D26: 13576989.84 | E26: 12757611 | F26: 11281235.84
B27: Non-reference services | C27: 0 | D27: 0 | E27: 0 | F27: 0
B28: Total | C28: =SUM(C26:C27) -> 18090140.41 | D28: =SUM(D26:D27) -> 13576989.84 | E28: =SUM(E26:E27) -> 12757611 | F28: =SUM(F26:F27) -> 11281235.84 | G28: =SUM(G26:G27) -> 0
B29: E10.2.2 - CAPEX
B30: Reference services | C30: 0 | D30: 0 | E30: 0 | F30: 0
B31: Non-reference services | C31: 0 | D31: 0 | E31: 0 | F31: 0
B32: Total | C32: =SUM(C30:C31) -> 0 | D32: =SUM(D30:D31) -> 0 | E32: =SUM(E30:E31) -> 0 | F32: =SUM(F30:F31) -> 0 | G32: =SUM(G30:G31) -> 0

Sheet E12. ICT
B1: =INDEX(dms_Worksheet_List,MATCH(dms_Model,dms_Model_List)) -> HISTORICAL ANNUAL REPORTING
B2: =dms_TradingName -> AusNet (Gas)
B3: =dms_Header_Span -> 2018 to 2021
B4: E12. INFORMATION AND COMMUNICATION TECHNOLOGY
B6: Please list all projects here:
B7: HD-0006772 Enterprise Information Enablement - G
B8: HD-0007612 Critical System Security Uplift - G
B9: HD-0007778 Technology Rationalisation - G
B10: HD-0008311 CLCOE FY19 - G
B11: HD-0008424 FY19 Continuous Improvement Program - G
B12: HD-0008879 Security Operations Centre Uplift - G
B13: HD-0008947 Customer Experience Program - G
B14: HD-0009305 Technology Asset Management (TAM) - G
B15: HD-0009835 FY20 Business Continuous Improvement - G
B16: HD-0009977 Enterprise Cloud Gateway - G
B17: HD-0010076 FY21 Technology Asset Mgt (TAM) - G
B18: HD-0011290 Cloud Migration - G
B19: HD-0011465 IM Found. to enable BCs 535 - G
B20: HD-0011890 TAM FY22-26 - G
B21: HD-0011886 Cyber Security Program - G
B23: E12.1 - CAPEX - BY PROJECT
B24: A. DIRECT INTERNAL LABOUR EXPENDITURE
C25: EXPENDITURE
C26: $0's, Nominal
C27: =dms_y1 -> 2018 | D27: =dms_y2 -> 2019 | E27: =dms_y3 -> 2020 | F27: =dms_y4 -> 2021 | G27: =dms_y5 -> 2022
B28: =IF(ISBLANK(dms_E12_Projects_01),"",dms_E12_Projects_01) -> HD-0006772 Enterprise Information Enablement - G | C28: 315120.91 | D28: 145034.09 | E28: 71.43 | F28: 0
B29: =IF(ISBLANK(dms_E12_Projects_02),"",dms_E12_Projects_02) -> HD-0007612 Critical System Security Uplift - G | C29: 133456.22 | D29: 343790.37 | E29: 306063.46 | F29: 164887.26
B30: =IF(ISBLANK(dms_E12_Projects_03),"",dms_E12_Projects_03) -> HD-0007778 Technology Rationalisation - G | C30: 916174.82 | D30: 887236.8 | E30: 282839.85 | F30: 11703.27
B31: =IF(ISBLANK(dms_E12_Projects_04),"",dms_E12_Projects_04) -> HD-0008311 CLCOE FY19 - G | C31: 347536.11 | D31: 51746.5 | E31: -103.56 | F31: 0
B32: =IF(ISBLANK(dms_E12_Projects_05),"",dms_E12_Projects_05) -> HD-0008424 FY19 Continuous Improvement Program - G | C32: 496895.89 | D32: 263891.61 | E32: 4893.34 | F32: 0
B33: =IF(ISBLANK(dms_E12_Projects_06),"",dms_E12_Projects_06) -> HD-0008879 Security Operations Centre Uplift - G | C33: 0 | D33: 174210.68 | E33: 261865.92 | F33: 90985.73
B34: =IF(ISBLANK(dms_E12_Projects_07),"",dms_E12_Projects_07) -> HD-0008947 Customer Experience Program - G | C34: 0 | D34: 222646.09 | E34: 82737.71 | F34: 0
B35: =IF(ISBLANK(dms_E12_Projects_08),"",dms_E12_Projects_08) -> HD-0009305 Technology Asset Management (TAM) - G | C35: 0 | D35: 612371.68 | E35: 505557.87 | F35: 30310.82
B36: =IF(ISBLANK(dms_E12_Projects_09),"",dms_E12_Projects_09) -> HD-0009835 FY20 Business Continuous Improvement - G | C36: 0 | D36: 315300.13 | E36: 457787.04 | F36: 35113.95
B37: =IF(ISBLANK(dms_E12_Projects_10),"",dms_E12_Projects_10) -> HD-0009977 Enterprise Cloud Gateway - G | C37: 0 | D37: 470.91 | E37: 145386.19 | F37: 95836.69
B38: =IF(ISBLANK(dms_E12_Projects_11),"",dms_E12_Projects_11) -> HD-0010076 FY21 Technology Asset Mgt (TAM) - G | C38: 0 | D38: 0 | E38: 187488.33 | F38: 142793.26
B39: =IF(ISBLANK(dms_E12_Projects_12),"",dms_E12_Projects_12) -> HD-0011290 Cloud Migration - G | C39: 0 | D39: 0 | E39: 266556.46 | F39: 853817.94
B40: =IF(ISBLANK(dms_E12_Projects_13),"",dms_E12_Projects_13) -> HD-0011465 IM Found. to enable BCs 535 - G | C40: 0 | D40: 0 | E40: 6423.67 | F40: 454474.47
B41: =IF(ISBLANK(dms_E12_Projects_14),"",dms_E12_Projects_14) -> HD-0011890 TAM FY22-26 - G | C41: 0 | D41: 0 | E41: 0 | F41: 263334.67
B42: =IF(ISBLANK(dms_E12_Projects_15),"",dms_E12_Projects_15) -> HD-0011886 Cyber Security Program - G | C42: 0 | D42: 0 | E42: 0 | F42: 50447.69
B43: Aggregate of other projects with total expenditure of less than $500,000 | C43: 2383741.61 | D43: 2044929.08 | E43: 899305.19 | F43: 1047156.22
B44: Total | C44: =SUM(C28:C43) -> 4592925.56 | D44: =SUM(D28:D43) -> 5061627.94 | E44: =SUM(E28:E43) -> 3406872.9 | F44: =SUM(F28:F43) -> 3240861.97 | G44: =SUM(G28:G43) -> 0
B46: B. DIRECT CONTRACTOR EXPENDITURE
B47: =IF(ISBLANK(dms_E12_Projects_01),"",dms_E12_Projects_01) -> HD-0006772 Enterprise Information Enablement - G | C47: 38405.01 | D47: -38405.01 | E47: 0 | F47: 0
B48: =IF(ISBLANK(dms_E12_Projects_02),"",dms_E12_Projects_02) -> HD-0007612 Critical System Security Uplift - G | C48: 0 | D48: 0 | E48: 404.61 | F48: 1247.88
B49: =IF(ISBLANK(dms_E12_Projects_03),"",dms_E12_Projects_03) -> HD-0007778 Technology Rationalisation - G | C49: 4611.6 | D49: 0 | E49: 0 | F49: 0
B50: =IF(ISBLANK(dms_E12_Projects_04),"",dms_E12_Projects_04) -> HD-0008311 CLCOE FY19 - G | C50: 0 | D50: 1190.1 | E50: 0 | F50: 0
B51: =IF(ISBLANK(dms_E12_Projects_05),"",dms_E12_Projects_05) -> HD-0008424 FY19 Continuous Improvement Program - G | C51: 0 | D51: 0 | E51: 0 | F51: 0
B52: =IF(ISBLANK(dms_E12_Projects_06),"",dms_E12_Projects_06) -> HD-0008879 Security Operations Centre Uplift - G | C52: 0 | D52: 0 | E52: 0 | F52: -0.4
B53: =IF(ISBLANK(dms_E12_Projects_07),"",dms_E12_Projects_07) -> HD-0008947 Customer Experience Program - G | C53: 0 | D53: 0 | E53: 0 | F53: 0
B54: =IF(ISBLANK(dms_E12_Projects_08),"",dms_E12_Projects_08) -> HD-0009305 Technology Asset Management (TAM) - G | C54: 0 | D54: 0 | E54: 1269.52 | F54: 306.82
B55: =IF(ISBLANK(dms_E12_Projects_09),"",dms_E12_Projects_09) -> HD-0009835 FY20 Business Continuous Improvement - G | C55: 0 | D55: 0 | E55: 0 | F55: 0
B56: =IF(ISBLANK(dms_E12_Projects_10),"",dms_E12_Projects_10) -> HD-0009977 Enterprise Cloud Gateway - G | C56: 0 | D56: 0 | E56: 668.74 | F56: -10.43
B57: =IF(ISBLANK(dms_E12_Projects_11),"",dms_E12_Projects_11) -> HD-0010076 FY21 Technology Asset Mgt (TAM) - G | C57: 0 | D57: 0 | E57: 0 | F57: 1623.07
B58: =IF(ISBLANK(dms_E12_Projects_12),"",dms_E12_Projects_12) -> HD-0011290 Cloud Migration - G | C58: 0 | D58: 0 | E58: 0 | F58: 11.74
B59: =IF(ISBLANK(dms_E12_Projects_13),"",dms_E12_Projects_13) -> HD-0011465 IM Found. to enable BCs 535 - G | C59: 0 | D59: 0 | E59: 0 | F59: 20.66
B60: =IF(ISBLANK(dms_E12_Projects_14),"",dms_E12_Projects_14) -> HD-0011890 TAM FY22-26 - G | C60: 0 | D60: 0 | E60: 0 | F60: 1001.25
B61: =IF(ISBLANK(dms_E12_Projects_15),"",dms_E12_Projects_15) -> HD-0011886 Cyber Security Program - G | C61: 0 | D61: 0 | E61: 0 | F61: 47819.31
B62: Aggregate of other projects with total expenditure of less than $500,000 | C62: 3355.15 | D62: 501.57 | E62: 34343.56 | F62: 7905.86
B63: Total | C63: =SUM(C47:C62) -> 46371.76 | D63: =SUM(D47:D62) -> -36713.34 | E63: =SUM(E47:E62) -> 36686.43 | F63: =SUM(F47:F62) -> 59925.76 | G63: =SUM(G47:G62) -> 0
B65: C. DIRECT MATERIAL EXPENDITURE
B66: =IF(ISBLANK(dms_E12_Projects_01),"",dms_E12_Projects_01) -> HD-0006772 Enterprise Information Enablement - G | C66: 23.96 | D66: 0 | E66: 0 | F66: 0
B67: =IF(ISBLANK(dms_E12_Projects_02),"",dms_E12_Projects_02) -> HD-0007612 Critical System Security Uplift - G | C67: 0 | D67: 0 | E67: 6.77 | F67: 352.8
B68: =IF(ISBLANK(dms_E12_Projects_03),"",dms_E12_Projects_03) -> HD-0007778 Technology Rationalisation - G | C68: 0 | D68: 1755.6 | E68: 0 | F68: 0
B69: =IF(ISBLANK(dms_E12_Projects_04),"",dms_E12_Projects_04) -> HD-0008311 CLCOE FY19 - G | C69: 856.8 | D69: 376.38 | E69: 0 | F69: 0
B70: =IF(ISBLANK(dms_E12_Projects_05),"",dms_E12_Projects_05) -> HD-0008424 FY19 Continuous Improvement Program - G | C70: 0 | D70: 0 | E70: 0 | F70: 0
B71: =IF(ISBLANK(dms_E12_Projects_06),"",dms_E12_Projects_06) -> HD-0008879 Security Operations Centre Uplift - G | C71: 0 | D71: 0 | E71: 0 | F71: 0
B72: =IF(ISBLANK(dms_E12_Projects_07),"",dms_E12_Projects_07) -> HD-0008947 Customer Experience Program - G | C72: 0 | D72: 0 | E72: 0 | F72: 0
B73: =IF(ISBLANK(dms_E12_Projects_08),"",dms_E12_Projects_08) -> HD-0009305 Technology Asset Management (TAM) - G | C73: 0 | D73: 445.2 | E73: 73.23 | F73: 0
B74: =IF(ISBLANK(dms_E12_Projects_09),"",dms_E12_Projects_09) -> HD-0009835 FY20 Business Continuous Improvement - G | C74: 0 | D74: 0 | E74: 0 | F74: 0
B75: =IF(ISBLANK(dms_E12_Projects_10),"",dms_E12_Projects_10) -> HD-0009977 Enterprise Cloud Gateway - G | C75: 0 | D75: 0 | E75: 0 | F75: 0
B76: =IF(ISBLANK(dms_E12_Projects_11),"",dms_E12_Projects_11) -> HD-0010076 FY21 Technology Asset Mgt (TAM) - G | C76: 0 | D76: 0 | E76: 1622.46 | F76: -1622.46
B77: =IF(ISBLANK(dms_E12_Projects_12),"",dms_E12_Projects_12) -> HD-0011290 Cloud Migration - G | C77: 0 | D77: 0 | E77: 0 | F77: 0
B78: =IF(ISBLANK(dms_E12_Projects_13),"",dms_E12_Projects_13) -> HD-0011465 IM Found. to enable BCs 535 - G | C78: 0 | D78: 0 | E78: 0 | F78: 0
B79: =IF(ISBLANK(dms_E12_Projects_14),"",dms_E12_Projects_14) -> HD-0011890 TAM FY22-26 - G | C79: 0 | D79: 0 | E79: 0 | F79: 0
B80: =IF(ISBLANK(dms_E12_Projects_15),"",dms_E12_Projects_15) -> HD-0011886 Cyber Security Program - G | C80: 0 | D80: 0 | E80: 0 | F80: 0
B81: Aggregate of other projects with total expenditure of less than $500,000 | C81: 88.34 | D81: 0 | E81: 140.06 | F81: 0
B82: Total | C82: =SUM(C66:C81) -> 969.1 | D82: =SUM(D66:D81) -> 2577.18 | E82: =SUM(E66:E81) -> 1842.52 | F82: =SUM(F66:F81) -> -1269.66 | G82: =SUM(G66:G81) -> 0
B84: D. OTHER DIRECT EXPENDITURE
B85: =IF(ISBLANK(dms_E12_Projects_01),"",dms_E12_Projects_01) -> HD-0006772 Enterprise Information Enablement - G | C85: 560134.05 | D85: 461934.54 | E85: 3.43 | F85: 0
B86: =IF(ISBLANK(dms_E12_Projects_02),"",dms_E12_Projects_02) -> HD-0007612 Critical System Security Uplift - G | C86: 18565.52 | D86: 62368.65 | E86: 101813.35 | F86: 460318.41
B87: =IF(ISBLANK(dms_E12_Projects_03),"",dms_E12_Projects_03) -> HD-0007778 Technology Rationalisation - G | C87: 1089087.36 | D87: 270013.95 | E87: 59292.56 | F87: 28377.58
B88: =IF(ISBLANK(dms_E12_Projects_04),"",dms_E12_Projects_04) -> HD-0008311 CLCOE FY19 - G | C88: 1332982.83 | D88: -169908.47 | E88: -52.69 | F88: 0
B89: =IF(ISBLANK(dms_E12_Projects_05),"",dms_E12_Projects_05) -> HD-0008424 FY19 Continuous Improvement Program - G | C89: 94857.86 | D89: 63657.03 | E89: -405.43 | F89: 0
B90: =IF(ISBLANK(dms_E12_Projects_06),"",dms_E12_Projects_06) -> HD-0008879 Security Operations Centre Uplift - G | C90: 0 | D90: 10653.96 | E90: 100032.82 | F90: 304.69
B91: =IF(ISBLANK(dms_E12_Projects_07),"",dms_E12_Projects_07) -> HD-0008947 Customer Experience Program - G | C91: 0 | D91: 447838.56 | E91: 122744.47 | F91: -157442.98
B92: =IF(ISBLANK(dms_E12_Projects_08),"",dms_E12_Projects_08) -> HD-0009305 Technology Asset Management (TAM) - G | C92: 0 | D92: 887190.94 | E92: 804610.14 | F92: 4731.57
B93: =IF(ISBLANK(dms_E12_Projects_09),"",dms_E12_Projects_09) -> HD-0009835 FY20 Business Continuous Improvement - G | C93: 0 | D93: 29713.75 | E93: 79622.38 | F93: -8860.67
B94: =IF(ISBLANK(dms_E12_Projects_10),"",dms_E12_Projects_10) -> HD-0009977 Enterprise Cloud Gateway - G | C94: 0 | D94: 1.54 | E94: 499173.97 | F94: 29827.82
B95: =IF(ISBLANK(dms_E12_Projects_11),"",dms_E12_Projects_11) -> HD-0010076 FY21 Technology Asset Mgt (TAM) - G | C95: 0 | D95: 0 | E95: 357971.33 | F95: 364268.21
B96: =IF(ISBLANK(dms_E12_Projects_12),"",dms_E12_Projects_12) -> HD-0011290 Cloud Migration - G | C96: 0 | D96: 0 | E96: 508278.97 | F96: 1082290.4
B97: =IF(ISBLANK(dms_E12_Projects_13),"",dms_E12_Projects_13) -> HD-0011465 IM Found. to enable BCs 535 - G | C97: 0 | D97: 0 | E97: 1443.17 | F97: 478056.51
B98: =IF(ISBLANK(dms_E12_Projects_14),"",dms_E12_Projects_14) -> HD-0011890 TAM FY22-26 - G | C98: 0 | D98: 0 | E98: 0 | F98: 759591.24
B99: =IF(ISBLANK(dms_E12_Projects_15),"",dms_E12_Projects_15) -> HD-0011886 Cyber Security Program - G | C99: 0 | D99: 0 | E99: 0 | F99: 99384.18
B100: Aggregate of other projects with total expenditure of less than $500,000 | C100: 1084823.25 | D100: 538843.71 | E100: 28845.64 | F100: 816765.56
B101: Total | C101: =SUM(C85:C100) -> 4180450.87 | D101: =SUM(D85:D100) -> 2602308.16 | E101: =SUM(E85:E100) -> 2663374.11 | F101: =SUM(F85:F100) -> 3957612.52 | G101: =SUM(G85:G100) -> 0
B103: E. RELATED PARTY MARGIN EXPENDITURE
B104: =IF(ISBLANK(dms_E12_Projects_01),"",dms_E12_Projects_01) -> HD-0006772 Enterprise Information Enablement - G | C104: 0 | D104: 0 | E104: 0 | F104: 0
B105: =IF(ISBLANK(dms_E12_Projects_02),"",dms_E12_Projects_02) -> HD-0007612 Critical System Security Uplift - G | C105: 0 | D105: 0 | E105: 0 | F105: 0
B106: =IF(ISBLANK(dms_E12_Projects_03),"",dms_E12_Projects_03) -> HD-0007778 Technology Rationalisation - G | C106: 0 | D106: 0 | E106: 0 | F106: 0
B107: =IF(ISBLANK(dms_E12_Projects_04),"",dms_E12_Projects_04) -> HD-0008311 CLCOE FY19 - G | C107: 0 | D107: 0 | E107: 0 | F107: 0
B108: =IF(ISBLANK(dms_E12_Projects_05),"",dms_E12_Projects_05) -> HD-0008424 FY19 Continuous Improvement Program - G | C108: 0 | D108: 0 | E108: 0 | F108: 0
B109: =IF(ISBLANK(dms_E12_Projects_06),"",dms_E12_Projects_06) -> HD-0008879 Security Operations Centre Uplift - G | C109: 0 | D109: 0 | E109: 0 | F109: 0
B110: =IF(ISBLANK(dms_E12_Projects_07),"",dms_E12_Projects_07) -> HD-0008947 Customer Experience Program - G | C110: 0 | D110: 0 | E110: 0 | F110: 0
B111: =IF(ISBLANK(dms_E12_Projects_08),"",dms_E12_Projects_08) -> HD-0009305 Technology Asset Management (TAM) - G | C111: 0 | D111: 0 | E111: 0 | F111: 0
B112: =IF(ISBLANK(dms_E12_Projects_09),"",dms_E12_Projects_09) -> HD-0009835 FY20 Business Continuous Improvement - G | C112: 0 | D112: 0 | E112: 0 | F112: 0
B113: =IF(ISBLANK(dms_E12_Projects_10),"",dms_E12_Projects_10) -> HD-0009977 Enterprise Cloud Gateway - G | C113: 0 | D113: 0 | E113: 0 | F113: 0
B114: =IF(ISBLANK(dms_E12_Projects_11),"",dms_E12_Projects_11) -> HD-0010076 FY21 Technology Asset Mgt (TAM) - G | C114: 0 | D114: 0 | E114: 0 | F114: 0
B115: =IF(ISBLANK(dms_E12_Projects_12),"",dms_E12_Projects_12) -> HD-0011290 Cloud Migration - G | C115: 0 | D115: 0 | E115: 0 | F115: 0
B116: =IF(ISBLANK(dms_E12_Projects_13),"",dms_E12_Projects_13) -> HD-0011465 IM Found. to enable BCs 535 - G | C116: 0 | D116: 0 | E116: 0 | F116: 0
B117: =IF(ISBLANK(dms_E12_Projects_14),"",dms_E12_Projects_14) -> HD-0011890 TAM FY22-26 - G | C117: 0 | D117: 0 | E117: 0 | F117: 0
B118: =IF(ISBLANK(dms_E12_Projects_15),"",dms_E12_Projects_15) -> HD-0011886 Cyber Security Program - G | C118: 0 | D118: 0 | E118: 0 | F118: 0
B119: Aggregate of other projects with total expenditure of less than $500,000 | C119: 0 | D119: 0 | E119: 0 | F119: 0
B120: Total | C120: =SUM(C104:C119) -> 0 | D120: =SUM(D104:D119) -> 0 | E120: =SUM(E104:E119) -> 0 | F120: =SUM(F104:F119) -> 0 | G120: =SUM(G104:G119) -> 0
B122: F. CAPITAL CONTRIBUTIONS included in the above
B123: =IF(ISBLANK(dms_E12_Projects_01),"",dms_E12_Projects_01) -> HD-0006772 Enterprise Information Enablement - G | C123: 0 | D123: 0 | E123: 0 | F123: 0
B124: =IF(ISBLANK(dms_E12_Projects_02),"",dms_E12_Projects_02) -> HD-0007612 Critical System Security Uplift - G | C124: 0 | D124: 0 | E124: 0 | F124: 0
B125: =IF(ISBLANK(dms_E12_Projects_03),"",dms_E12_Projects_03) -> HD-0007778 Technology Rationalisation - G | C125: 0 | D125: 0 | E125: 0 | F125: 0
B126: =IF(ISBLANK(dms_E12_Projects_04),"",dms_E12_Projects_04) -> HD-0008311 CLCOE FY19 - G | C126: 0 | D126: 0 | E126: 0 | F126: 0
B127: =IF(ISBLANK(dms_E12_Projects_05),"",dms_E12_Projects_05) -> HD-0008424 FY19 Continuous Improvement Program - G | C127: 0 | D127: 0 | E127: 0 | F127: 0
B128: =IF(ISBLANK(dms_E12_Projects_06),"",dms_E12_Projects_06) -> HD-0008879 Security Operations Centre Uplift - G | C128: 0 | D128: 0 | E128: 0 | F128: 0
B129: =IF(ISBLANK(dms_E12_Projects_07),"",dms_E12_Projects_07) -> HD-0008947 Customer Experience Program - G | C129: 0 | D129: 0 | E129: 0 | F129: 0
B130: =IF(ISBLANK(dms_E12_Projects_08),"",dms_E12_Projects_08) -> HD-0009305 Technology Asset Management (TAM) - G | C130: 0 | D130: 0 | E130: 0 | F130: 0
B131: =IF(ISBLANK(dms_E12_Projects_09),"",dms_E12_Projects_09) -> HD-0009835 FY20 Business Continuous Improvement - G | C131: 0 | D131: 0 | E131: 0 | F131: 0
B132: =IF(ISBLANK(dms_E12_Projects_10),"",dms_E12_Projects_10) -> HD-0009977 Enterprise Cloud Gateway - G | C132: 0 | D132: 0 | E132: 0 | F132: 0
B133: =IF(ISBLANK(dms_E12_Projects_11),"",dms_E12_Projects_11) -> HD-0010076 FY21 Technology Asset Mgt (TAM) - G | C133: 0 | D133: 0 | E133: 0 | F133: 0
B134: =IF(ISBLANK(dms_E12_Projects_12),"",dms_E12_Projects_12) -> HD-0011290 Cloud Migration - G | C134: 0 | D134: 0 | E134: 0 | F134: 0
B135: =IF(ISBLANK(dms_E12_Projects_13),"",dms_E12_Projects_13) -> HD-0011465 IM Found. to enable BCs 535 - G | C135: 0 | D135: 0 | E135: 0 | F135: 0
B136: =IF(ISBLANK(dms_E12_Projects_14),"",dms_E12_Projects_14) -> HD-0011890 TAM FY22-26 - G | C136: 0 | D136: 0 | E136: 0 | F136: 0
B137: =IF(ISBLANK(dms_E12_Projects_15),"",dms_E12_Projects_15) -> HD-0011886 Cyber Security Program - G | C137: 0 | D137: 0 | E137: 0 | F137: 0
B138: Aggregate of other projects with total expenditure of less than $500,000 | C138: 0 | D138: 0 | E138: 0 | F138: 0
B139: Total | C139: =SUM(C123:C138) -> 0 | D139: =SUM(D123:D138) -> 0 | E139: =SUM(E123:E138) -> 0 | F139: =SUM(F123:F138) -> 0 | G139: =SUM(G123:G138) -> 0

Sheet E13. Other capex
B1: =INDEX(dms_Worksheet_List,MATCH(dms_Model,dms_Model_List)) -> HISTORICAL ANNUAL REPORTING
B2: =dms_TradingName -> AusNet (Gas)
B3: =dms_Header_Span -> 2018 to 2021
B4: E13. OTHER CAPITAL EXPENDITURE
B6: Please list all projects here:
B7: GB-0006048 Shipper: Major Alterations
B8: GB-0010747 Shipper: Major Alterations FY21-
B9: GD-0001457 Corio City Gate Heater
B10: GD-0001566 City Gate Installation (Mt Cottrell)
B11: GD-0001810 Bendigo City Gate Heater
B12: GD-0001831 Ballarat City Gate Heater
B13: GD-0001916 Corio City Gate Regulator Upgrade
B14: GD-0002794 Allansford City Gate Heater Replacement
B15: GD-0002894 Kyneton City Gate Heater Replacement
B16: GD-0004199 REGIONAL RAIL Work Package E and F (Werribee to Deer Park)
B17: GD-0004201 Development of Winchelsea
B18: GD-0004202 Huntly New Towns Gas Development
B19: GD-0004203 Avoca New Towns Gas Development
B21: GD-0004205 Regional Rail Link Work Package C
B22: GD-0004218 REES ROAD MELTON SOUTH - TOOLERN WATERS
B23: GD-0007880 Wyndham Vale&Bacchus Marsh CG Heaters
B24: GD-0009561 Regulator Replacement Program - FY20
B25: HN-0009371 Leases Gas Regulated
B26: 74230687 GEELONG RING ROAD STAGE 4B
B29: GD-0012515 Regulator Replacement Program - FY21
B30: GD-0012245 Regulator Replacement Program - FY23
B48: E13.1 - CAPEX - BY PROJECT
C49: EXPENDITURE
C50: $0's, Nominal
C51: =dms_y1 -> 2018 | D51: =dms_y2 -> 2019 | E51: =dms_y3 -> 2020 | F51: =dms_y4 -> 2021 | G51: =dms_y5 -> 2022
B52: A. DIRECT INTERNAL LABOUR EXPENDITURE
B53: =IF(ISBLANK(dms_E13_Projects_01),"",dms_E13_Projects_01) -> GB-0006048 Shipper: Major Alterations | C53: 42378.11 | D53: 62328.8 | E53: 64333.15 | F53: 6308.6
B54: =IF(ISBLANK(dms_E13_Projects_02),"",dms_E13_Projects_02) -> GB-0010747 Shipper: Major Alterations FY21- | C54: 0 | D54: 0 | E54: 22535.77 | F54: 65159.48
B55: =IF(ISBLANK(dms_E13_Projects_03),"",dms_E13_Projects_03) -> GD-0001457 Corio City Gate Heater | C55: 0 | D55: 0 | E55: 0 | F55: 0
B56: =IF(ISBLANK(dms_E13_Projects_04),"",dms_E13_Projects_04) -> GD-0001566 City Gate Installation (Mt Cottrell) | C56: 0 | D56: 0 | E56: 0 | F56: 0
B57: =IF(ISBLANK(dms_E13_Projects_05),"",dms_E13_Projects_05) -> GD-0001810 Bendigo City Gate Heater | C57: 0 | D57: 0 | E57: 0 | F57: 0
B58: =IF(ISBLANK(dms_E13_Projects_06),"",dms_E13_Projects_06) -> GD-0001831 Ballarat City Gate Heater | C58: 0 | D58: 0 | E58: 0 | F58: 0
B59: =IF(ISBLANK(dms_E13_Projects_07),"",dms_E13_Projects_07) -> GD-0001916 Corio City Gate Regulator Upgrade | C59: 1650.5 | D59: 0 | E59: 0 | F59: 0
B60: =IF(ISBLANK(dms_E13_Projects_08),"",dms_E13_Projects_08) -> GD-0002794 Allansford City Gate Heater Replacement | C60: 0 | D60: 0 | E60: 0 | F60: 0
B61: =IF(ISBLANK(dms_E13_Projects_09),"",dms_E13_Projects_09) -> GD-0002894 Kyneton City Gate Heater Replacement | C61: 0 | D61: 0 | E61: 0 | F61: 0
B62: =IF(ISBLANK(dms_E13_Projects_10),"",dms_E13_Projects_10) -> GD-0004199 REGIONAL RAIL Work Package E and F (Werribee to Deer Park) | C62: 0 | D62: 0 | E62: 0 | F62: 0
B63: =IF(ISBLANK(dms_E13_Projects_11),"",dms_E13_Projects_11) -> GD-0004201 Development of Winchelsea | C63: 1177.9 | D63: 0 | E63: 0 | F63: 0
B64: =IF(ISBLANK(dms_E13_Projects_12),"",dms_E13_Projects_12) -> GD-0004202 Huntly New Towns Gas Development | C64: 0 | D64: 0 | E64: 0 | F64: 0
B65: =IF(ISBLANK(dms_E13_Projects_13),"",dms_E13_Projects_13) -> GD-0004203 Avoca New Towns Gas Development | C65: 2469 | D65: 0 | E65: 0 | F65: 0
B66: =IF(ISBLANK(dms_E13_Projects_14),"",dms_E13_Projects_14) -> 
B67: =IF(ISBLANK(dms_E13_Projects_15),"",dms_E13_Projects_15) -> GD-0004205 Regional Rail Link Work Package C | C67: 0 | D67: 0 | E67: 0 | F67: 0
B68: =IF(ISBLANK(dms_E13_Projects_16),"",dms_E13_Projects_16) -> GD-0004218 REES ROAD MELTON SOUTH - TOOLERN WATERS | C68: 0 | D68: 0 | E68: 0 | F68: 0
B69: =IF(ISBLANK(dms_E13_Projects_17),"",dms_E13_Projects_17) -> GD-0007880 Wyndham Vale&Bacchus Marsh CG Heaters | C69: 2888.43 | D69: 55456.4 | E69: 63386.23 | F69: 26576.36
B70: =IF(ISBLANK(dms_E13_Projects_18),"",dms_E13_Projects_18) -> GD-0009561 Regulator Replacement Program - FY20 | C70: 0 | D70: 0 | E70: 31726.92 | F70: 10774.2
B71: =IF(ISBLANK(dms_E13_Projects_19),"",dms_E13_Projects_19) -> HN-0009371 Leases Gas Regulated | C71: 0 | D71: 0 | E71: 0 | F71: 0
B72: =IF(ISBLANK(dms_E13_Projects_20),"",dms_E13_Projects_20) -> 74230687 GEELONG RING ROAD STAGE 4B | C72: 0 | D72: 0 | E72: 0 | F72: 0
B73: =IF(ISBLANK(dms_E13_Projects_21),"",dms_E13_Projects_21) -> 
B74: =IF(ISBLANK(dms_E13_Projects_22),"",dms_E13_Projects_22) -> 
B75: =IF(ISBLANK(dms_E13_Projects_23),"",dms_E13_Projects_23) -> GD-0012515 Regulator Replacement Program - FY21 | C75: 0 | D75: 0 | E75: 0 | F75: 62094.31
B76: =IF(ISBLANK(dms_E13_Projects_24),"",dms_E13_Projects_24) -> GD-0012245 Regulator Replacement Program - FY23 | C76: 0 | D76: 0 | E76: 0 | F76: 0
B77: =IF(ISBLANK(dms_E13_Projects_25),"",dms_E13_Projects_25) -> 
B78: =IF(ISBLANK(dms_E13_Projects_26),"",dms_E13_Projects_26) -> 
B79: =IF(ISBLANK(dms_E13_Projects_27),"",dms_E13_Projects_27) -> 
B80: =IF(ISBLANK(dms_E13_Projects_28),"",dms_E13_Projects_28) -> 
B81: =IF(ISBLANK(dms_E13_Projects_29),"",dms_E13_Projects_29) -> 
B82: =IF(ISBLANK(dms_E13_Projects_30),"",dms_E13_Projects_30) -> 
B83: =IF(ISBLANK(dms_E13_Projects_31),"",dms_E13_Projects_31) -> 
B84: =IF(ISBLANK(dms_E13_Projects_32),"",dms_E13_Projects_32) -> 
B85: =IF(ISBLANK(dms_E13_Projects_33),"",dms_E13_Projects_33) -> 
B86: =IF(ISBLANK(dms_E13_Projects_34),"",dms_E13_Projects_34) -> 
B87: =IF(ISBLANK(dms_E13_Projects_35),"",dms_E13_Projects_35) -> 
B88: =IF(ISBLANK(dms_E13_Projects_36),"",dms_E13_Projects_36) -> 
B89: =IF(ISBLANK(dms_E13_Projects_37),"",dms_E13_Projects_37) -> 
B90: =IF(ISBLANK(dms_E13_Projects_38),"",dms_E13_Projects_38) -> 
B91: =IF(ISBLANK(dms_E13_Projects_39),"",dms_E13_Projects_39) -> 
B92: =IF(ISBLANK(dms_E13_Projects_40),"",dms_E13_Projects_40) -> 
B93: Aggregate of other projects with total expenditure of less than $500,000 | C93: 118941.34 | D93: 111151.18 | E93: 73539.95 | F93: -3213.71
B94: Total | G94: =SUM(G53:G93) -> 0
B96: B. DIRECT CONTRACTOR EXPENDITURE
B97: =IF(ISBLANK(dms_E13_Projects_01),"",dms_E13_Projects_01) -> GB-0006048 Shipper: Major Alterations | C97: 2566921.54 | D97: 1379903.59 | E97: 2471132.48 | F97: 1295723.93
B98: =IF(ISBLANK(dms_E13_Projects_02),"",dms_E13_Projects_02) -> GB-0010747 Shipper: Major Alterations FY21- | C98: 0 | D98: 0 | E98: 599312.59 | F98: 3667333.65
B99: =IF(ISBLANK(dms_E13_Projects_03),"",dms_E13_Projects_03) -> GD-0001457 Corio City Gate Heater | C99: 0 | D99: 0 | E99: 0 | F99: 0
B100: =IF(ISBLANK(dms_E13_Projects_04),"",dms_E13_Projects_04) -> GD-0001566 City Gate Installation (Mt Cottrell) | C100: 0 | D100: 0 | E100: 0 | F100: 0
B101: =IF(ISBLANK(dms_E13_Projects_05),"",dms_E13_Projects_05) -> GD-0001810 Bendigo City Gate Heater | C101: 0 | D101: 0 | E101: 0 | F101: 0
B102: =IF(ISBLANK(dms_E13_Projects_06),"",dms_E13_Projects_06) -> GD-0001831 Ballarat City Gate Heater | C102: 0 | D102: 0 | E102: 0 | F102: 0
B103: =IF(ISBLANK(dms_E13_Projects_07),"",dms_E13_Projects_07) -> GD-0001916 Corio City Gate Regulator Upgrade | C103: 34587.52 | D103: 0 | E103: 0 | F103: 0
B104: =IF(ISBLANK(dms_E13_Projects_08),"",dms_E13_Projects_08) -> GD-0002794 Allansford City Gate Heater Replacement | C104: 0 | D104: 0 | E104: 0 | F104: 0
B105: =IF(ISBLANK(dms_E13_Projects_09),"",dms_E13_Projects_09) -> GD-0002894 Kyneton City Gate Heater Replacement | C105: 0 | D105: 0 | E105: 0 | F105: 0
B106: =IF(ISBLANK(dms_E13_Projects_10),"",dms_E13_Projects_10) -> GD-0004199 REGIONAL RAIL Work Package E and F (Werribee to Deer Park) | C106: 0 | D106: 0 | E106: 0 | F106: 0
B107: =IF(ISBLANK(dms_E13_Projects_11),"",dms_E13_Projects_11) -> GD-0004201 Development of Winchelsea | C107: 0 | D107: 0 | E107: 0 | F107: 0
B108: =IF(ISBLANK(dms_E13_Projects_12),"",dms_E13_Projects_12) -> GD-0004202 Huntly New Towns Gas Development | C108: 0 | D108: 0 | E108: 0 | F108: 0
B109: =IF(ISBLANK(dms_E13_Projects_13),"",dms_E13_Projects_13) -> GD-0004203 Avoca New Towns Gas Development | C109: 21277 | D109: 0 | E109: 0 | F109: 0
B110: =IF(ISBLANK(dms_E13_Projects_14),"",dms_E13_Projects_14) -> 
B111: =IF(ISBLANK(dms_E13_Projects_15),"",dms_E13_Projects_15) -> GD-0004205 Regional Rail Link Work Package C | C111: 0 | D111: 0 | E111: 0 | F111: 0
B112: =IF(ISBLANK(dms_E13_Projects_16),"",dms_E13_Projects_16) -> GD-0004218 REES ROAD MELTON SOUTH - TOOLERN WATERS | C112: 0 | D112: 0 | E112: 0 | F112: 0
B113: =IF(ISBLANK(dms_E13_Projects_17),"",dms_E13_Projects_17) -> GD-0007880 Wyndham Vale&Bacchus Marsh CG Heaters | C113: 376951 | D113: 340500 | E113: 86089.76 | F113: 0
B114: =IF(ISBLANK(dms_E13_Projects_18),"",dms_E13_Projects_18) -> GD-0009561 Regulator Replacement Program - FY20 | C114: 0 | D114: 0 | E114: 626800.3 | F114: 61844.41
B115: =IF(ISBLANK(dms_E13_Projects_19),"",dms_E13_Projects_19) -> HN-0009371 Leases Gas Regulated | C115: 0 | D115: 0 | E115: 0 | F115: 0
B116: =IF(ISBLANK(dms_E13_Projects_20),"",dms_E13_Projects_20) -> 74230687 GEELONG RING ROAD STAGE 4B | C116: 0 | D116: 0 | E116: 0 | F116: 0
B117: =IF(ISBLANK(dms_E13_Projects_21),"",dms_E13_Projects_21) -> 
B118: =IF(ISBLANK(dms_E13_Projects_22),"",dms_E13_Projects_22) -> 
B119: =IF(ISBLANK(dms_E13_Projects_23),"",dms_E13_Projects_23) -> GD-0012515 Regulator Replacement Program - FY21 | C119: 0 | D119: 0 | E119: 0 | F119: 0
B120: =IF(ISBLANK(dms_E13_Projects_24),"",dms_E13_Projects_24) -> GD-0012245 Regulator Replacement Program - FY23 | C120: 0 | D120: 0 | E120: 0 | F120: 0
B121: =IF(ISBLANK(dms_E13_Projects_25),"",dms_E13_Projects_25) -> 
B122: =IF(ISBLANK(dms_E13_Projects_26),"",dms_E13_Projects_26) -> 
B123: =IF(ISBLANK(dms_E13_Projects_27),"",dms_E13_Projects_27) -> 
B124: =IF(ISBLANK(dms_E13_Projects_28),"",dms_E13_Projects_28) -> 
B125: =IF(ISBLANK(dms_E13_Projects_29),"",dms_E13_Projects_29) -> 
B126: =IF(ISBLANK(dms_E13_Projects_30),"",dms_E13_Projects_30) -> 
B127: =IF(ISBLANK(dms_E13_Projects_31),"",dms_E13_Projects_31) -> 
B128: =IF(ISBLANK(dms_E13_Projects_32),"",dms_E13_Projects_32) -> 
B129: =IF(ISBLANK(dms_E13_Projects_33),"",dms_E13_Projects_33) -> 
B130: =IF(ISBLANK(dms_E13_Projects_34),"",dms_E13_Projects_34) -> 
B131: =IF(ISBLANK(dms_E13_Projects_35),"",dms_E13_Projects_35) -> 
B132: =IF(ISBLANK(dms_E13_Projects_36),"",dms_E13_Projects_36) -> 
B133: =IF(ISBLANK(dms_E13_Projects_37),"",dms_E13_Projects_37) -> 
B134: =IF(ISBLANK(dms_E13_Projects_38),"",dms_E13_Projects_38) -> 
B135: =IF(ISBLANK(dms_E13_Projects_39),"",dms_E13_Projects_39) -> 
B136: =IF(ISBLANK(dms_E13_Projects_40),"",dms_E13_Projects_40) -> 
B137: Aggregate of other projects with total expenditure of less than $500,000 | C137: 564181.48 | D137: 251114.61 | E137: 339429.71 | F137: 99682.2
B138: Total
B140: C. DIRECT MATERIAL EXPENDITURE
B141: =IF(ISBLANK(dms_E13_Projects_01),"",dms_E13_Projects_01) -> GB-0006048 Shipper: Major Alterations | C141: 0 | D141: 0 | E141: 0 | F141: 0
B142: =IF(ISBLANK(dms_E13_Projects_02),"",dms_E13_Projects_02) -> GB-0010747 Shipper: Major Alterations FY21- | C142: 0 | D142: 0 | E142: 0 | F142: 0
B143: =IF(ISBLANK(dms_E13_Projects_03),"",dms_E13_Projects_03) -> GD-0001457 Corio City Gate Heater | C143: 0 | D143: 0 | E143: 0 | F143: 0
B144: =IF(ISBLANK(dms_E13_Projects_04),"",dms_E13_Projects_04) -> GD-0001566 City Gate Installation (Mt Cottrell) | C144: 0 | D144: 0 | E144: 0 | F144: 0
B145: =IF(ISBLANK(dms_E13_Projects_05),"",dms_E13_Projects_05) -> GD-0001810 Bendigo City Gate Heater | C145: 0 | D145: 0 | E145: 0 | F145: 0
B146: =IF(ISBLANK(dms_E13_Projects_06),"",dms_E13_Projects_06) -> GD-0001831 Ballarat City Gate Heater | C146: 0 | D146: 0 | E146: 0 | F146: 0
B147: =IF(ISBLANK(dms_E13_Projects_07),"",dms_E13_Projects_07) -> GD-0001916 Corio City Gate Regulator Upgrade | C147: 0 | D147: 0 | E147: 0 | F147: 0
B148: =IF(ISBLANK(dms_E13_Projects_08),"",dms_E13_Projects_08) -> GD-0002794 Allansford City Gate Heater Replacement | C148: 0 | D148: 0 | E148: 0 | F148: 0
B149: =IF(ISBLANK(dms_E13_Projects_09),"",dms_E13_Projects_09) -> GD-0002894 Kyneton City Gate Heater Replacement | C149: 0 | D149: 0 | E149: 0 | F149: 0
B150: =IF(ISBLANK(dms_E13_Projects_10),"",dms_E13_Projects_10) -> GD-0004199 REGIONAL RAIL Work Package E and F (Werribee to Deer Park) | C150: 0 | D150: 0 | E150: 0 | F150: 0
B151: =IF(ISBLANK(dms_E13_Projects_11),"",dms_E13_Projects_11) -> GD-0004201 Development of Winchelsea | C151: 0 | D151: 0 | E151: 0 | F151: 0
B152: =IF(ISBLANK(dms_E13_Projects_12),"",dms_E13_Projects_12) -> GD-0004202 Huntly New Towns Gas Development | C152: 0 | D152: 0 | E152: 0 | F152: 0
B153: =IF(ISBLANK(dms_E13_Projects_13),"",dms_E13_Projects_13) -> GD-0004203 Avoca New Towns Gas Development | C153: 0 | D153: 0 | E153: 0 | F153: 0
B154: =IF(ISBLANK(dms_E13_Projects_14),"",dms_E13_Projects_14) -> 
B155: =IF(ISBLANK(dms_E13_Projects_15),"",dms_E13_Projects_15) -> GD-0004205 Regional Rail Link Work Package C | C155: 0 | D155: 0 | E155: 0 | F155: 0
B156: =IF(ISBLANK(dms_E13_Projects_16),"",dms_E13_Projects_16) -> GD-0004218 REES ROAD MELTON SOUTH - TOOLERN WATERS | C156: 0 | D156: 0 | E156: 0 | F156: 0
B157: =IF(ISBLANK(dms_E13_Projects_17),"",dms_E13_Projects_17) -> GD-0007880 Wyndham Vale&Bacchus Marsh CG Heaters | C157: 0 | D157: 0 | E157: 0 | F157: 0
B158: =IF(ISBLANK(dms_E13_Projects_18),"",dms_E13_Projects_18) -> GD-0009561 Regulator Replacement Program - FY20 | C158: 0 | D158: 0 | E158: 0 | F158: 0
B159: =IF(ISBLANK(dms_E13_Projects_19),"",dms_E13_Projects_19) -> HN-0009371 Leases Gas Regulated | C159: 0 | D159: 0 | E159: 0 | F159: 0
B160: =IF(ISBLANK(dms_E13_Projects_20),"",dms_E13_Projects_20) -> 74230687 GEELONG RING ROAD STAGE 4B | C160: 0 | D160: 0 | E160: 0 | F160: 0
B161: =IF(ISBLANK(dms_E13_Projects_21),"",dms_E13_Projects_21) -> 
B162: =IF(ISBLANK(dms_E13_Projects_22),"",dms_E13_Projects_22) -> 
B163: =IF(ISBLANK(dms_E13_Projects_23),"",dms_E13_Projects_23) -> GD-0012515 Regulator Replacement Program - FY21 | C163: 0 | D163: 0 | E163: 0 | F163: 0
B164: =IF(ISBLANK(dms_E13_Projects_24),"",dms_E13_Projects_24) -> GD-0012245 Regulator Replacement Program - FY23 | C164: 0 | D164: 0 | E164: 0 | F164: 0
B165: =IF(ISBLANK(dms_E13_Projects_25),"",dms_E13_Projects_25) -> 
B166: =IF(ISBLANK(dms_E13_Projects_26),"",dms_E13_Projects_26) -> 
B167: =IF(ISBLANK(dms_E13_Projects_27),"",dms_E13_Projects_27) -> 
B168: =IF(ISBLANK(dms_E13_Projects_28),"",dms_E13_Projects_28) -> 
B169: =IF(ISBLANK(dms_E13_Projects_29),"",dms_E13_Projects_29) -> 
B170: =IF(ISBLANK(dms_E13_Projects_30),"",dms_E13_Projects_30) -> 
B171: =IF(ISBLANK(dms_E13_Projects_31),"",dms_E13_Projects_31) -> 
B172: =IF(ISBLANK(dms_E13_Projects_32),"",dms_E13_Projects_32) -> 
B173: =IF(ISBLANK(dms_E13_Projects_33),"",dms_E13_Projects_33) -> 
B174: =IF(ISBLANK(dms_E13_Projects_34),"",dms_E13_Projects_34) -> 
B175: =IF(ISBLANK(dms_E13_Projects_35),"",dms_E13_Projects_35) -> 
B176: =IF(ISBLANK(dms_E13_Projects_36),"",dms_E13_Projects_36) -> 
B177: =IF(ISBLANK(dms_E13_Projects_37),"",dms_E13_Projects_37) -> 
B178: =IF(ISBLANK(dms_E13_Projects_38),"",dms_E13_Projects_38) -> 
B179: =IF(ISBLANK(dms_E13_Projects_39),"",dms_E13_Projects_39) -> 
B180: =IF(ISBLANK(dms_E13_Projects_40),"",dms_E13_Projects_40) -> 
B181: Aggregate of other projects with total expenditure of less than $500,000 | C181: 40715.37 | D181: 182084.62 | E181: 73146.83 | F181: 200033.54
B182: Total
B184: D. OTHER DIRECT EXPENDITURE
B185: =IF(ISBLANK(dms_E13_Projects_01),"",dms_E13_Projects_01) -> GB-0006048 Shipper: Major Alterations | C185: 146949.08 | D185: 46157.21 | E185: 95938.56 | F185: 29315.27
B186: =IF(ISBLANK(dms_E13_Projects_02),"",dms_E13_Projects_02) -> GB-0010747 Shipper: Major Alterations FY21- | C186: 0 | D186: 0 | E186: 30131.69 | F186: 75619.26
B187: =IF(ISBLANK(dms_E13_Projects_03),"",dms_E13_Projects_03) -> GD-0001457 Corio City Gate Heater | C187: 0 | D187: 0 | E187: 0 | F187: 0
B188: =IF(ISBLANK(dms_E13_Projects_04),"",dms_E13_Projects_04) -> GD-0001566 City Gate Installation (Mt Cottrell) | C188: 0 | D188: 0 | E188: 0 | F188: 0
B189: =IF(ISBLANK(dms_E13_Projects_05),"",dms_E13_Projects_05) -> GD-0001810 Bendigo City Gate Heater | C189: 0 | D189: 0 | E189: 0 | F189: 0
B190: =IF(ISBLANK(dms_E13_Projects_06),"",dms_E13_Projects_06) -> GD-0001831 Ballarat City Gate Heater | C190: 0 | D190: 0 | E190: 0 | F190: 0
B191: =IF(ISBLANK(dms_E13_Projects_07),"",dms_E13_Projects_07) -> GD-0001916 Corio City Gate Regulator Upgrade | C191: 1931.99 | D191: 0 | E191: 0 | F191: 0
B192: =IF(ISBLANK(dms_E13_Projects_08),"",dms_E13_Projects_08) -> GD-0002794 Allansford City Gate Heater Replacement | C192: 0 | D192: 0 | E192: 0 | F192: 0
B193: =IF(ISBLANK(dms_E13_Projects_09),"",dms_E13_Projects_09) -> GD-0002894 Kyneton City Gate Heater Replacement | C193: 0 | D193: 0 | E193: 0 | F193: 0
B194: =IF(ISBLANK(dms_E13_Projects_10),"",dms_E13_Projects_10) -> GD-0004199 REGIONAL RAIL Work Package E and F (Werribee to Deer Park) | C194: 0 | D194: 0 | E194: 0 | F194: 0
B195: =IF(ISBLANK(dms_E13_Projects_11),"",dms_E13_Projects_11) -> GD-0004201 Development of Winchelsea | C195: 2245.76 | D195: 0 | E195: 0 | F195: 0
B196: =IF(ISBLANK(dms_E13_Projects_12),"",dms_E13_Projects_12) -> GD-0004202 Huntly New Towns Gas Development | C196: 0 | D196: 0 | E196: 0 | F196: 0
B197: =IF(ISBLANK(dms_E13_Projects_13),"",dms_E13_Projects_13) -> GD-0004203 Avoca New Towns Gas Development | C197: 1409.34 | D197: 1501.55 | E197: 0 | F197: 0
B198: =IF(ISBLANK(dms_E13_Projects_14),"",dms_E13_Projects_14) -> 
B199: =IF(ISBLANK(dms_E13_Projects_15),"",dms_E13_Projects_15) -> GD-0004205 Regional Rail Link Work Package C | C199: 0 | D199: 0 | E199: 0 | F199: 0
B200: =IF(ISBLANK(dms_E13_Projects_16),"",dms_E13_Projects_16) -> GD-0004218 REES ROAD MELTON SOUTH - TOOLERN WATERS | C200: 0 | D200: 0 | E200: 0 | F200: 0
B201: =IF(ISBLANK(dms_E13_Projects_17),"",dms_E13_Projects_17) -> GD-0007880 Wyndham Vale&Bacchus Marsh CG Heaters | C201: 13866.35 | D201: 13357.82 | E201: 56987.31 | F201: 4849.66
B202: =IF(ISBLANK(dms_E13_Projects_18),"",dms_E13_Projects_18) -> GD-0009561 Regulator Replacement Program - FY20 | C202: 0 | D202: 0 | E202: 22247.6 | F202: 1844.52
B203: =IF(ISBLANK(dms_E13_Projects_19),"",dms_E13_Projects_19) -> HN-0009371 Leases Gas Regulated | C203: 0 | D203: 8601645.335 | E203: 2579030.981 | F203: -1571654.528
B204: =IF(ISBLANK(dms_E13_Projects_20),"",dms_E13_Projects_20) -> 74230687 GEELONG RING ROAD STAGE 4B | C204: 0 | D204: 0 | E204: 0 | F204: 0
B205: =IF(ISBLANK(dms_E13_Projects_21),"",dms_E13_Projects_21) -> 
B206: =IF(ISBLANK(dms_E13_Projects_22),"",dms_E13_Projects_22) -> 
B207: =IF(ISBLANK(dms_E13_Projects_23),"",dms_E13_Projects_23) -> GD-0012515 Regulator Replacement Program - FY21 | C207: 0 | D207: 0 | E207: 0 | F207: 1.24
B208: =IF(ISBLANK(dms_E13_Projects_24),"",dms_E13_Projects_24) -> GD-0012245 Regulator Replacement Program - FY23 | C208: 0 | D208: 0 | E208: 0 | F208: 0
B209: =IF(ISBLANK(dms_E13_Projects_25),"",dms_E13_Projects_25) -> 
B210: =IF(ISBLANK(dms_E13_Projects_26),"",dms_E13_Projects_26) -> 
B211: =IF(ISBLANK(dms_E13_Projects_27),"",dms_E13_Projects_27) -> 
B212: =IF(ISBLANK(dms_E13_Projects_28),"",dms_E13_Projects_28) -> 
B213: =IF(ISBLANK(dms_E13_Projects_29),"",dms_E13_Projects_29) -> 
B214: =IF(ISBLANK(dms_E13_Projects_30),"",dms_E13_Projects_30) -> 
B215: =IF(ISBLANK(dms_E13_Projects_31),"",dms_E13_Projects_31) -> 
B216: =IF(ISBLANK(dms_E13_Projects_32),"",dms_E13_Projects_32) -> 
B217: =IF(ISBLANK(dms_E13_Projects_33),"",dms_E13_Projects_33) -> 
B218: =IF(ISBLANK(dms_E13_Projects_34),"",dms_E13_Projects_34) -> 
B219: =IF(ISBLANK(dms_E13_Projects_35),"",dms_E13_Projects_35) -> 
B220: =IF(ISBLANK(dms_E13_Projects_36),"",dms_E13_Projects_36) -> 
B221: =IF(ISBLANK(dms_E13_Projects_37),"",dms_E13_Projects_37) -> 
B222: =IF(ISBLANK(dms_E13_Projects_38),"",dms_E13_Projects_38) -> 
B223: =IF(ISBLANK(dms_E13_Projects_39),"",dms_E13_Projects_39) -> 
B224: =IF(ISBLANK(dms_E13_Projects_40),"",dms_E13_Projects_40) -> 
... 88 more rows

Sheet Additional disclosures
A1: E2. MAINS REPLACEMENT - Additional list of Projects >$500,000, as template E2 does not have sufficient rows
A2: Please list all projects here: | B2: =+'E4. Meter replacement'!C10 -> 2018 | C2: =+'E4. Meter replacement'!D10 -> 2019 | D2: =+'E4. Meter replacement'!E10 -> 2020 | E2: =+'E4. Meter replacement'!F10 -> 2021 | F2: Comments
A3: GC-0002158 Central Minor Main Repl | B3: 0 | C3: 0 | D3: 0 | E3: 0
A4: GC-0002160 Central Minor Service Repl | B4: 0 | C4: 0 | D4: 0 | E4: 0
A5: GD-0001197 74205820 - Essex Street WEST FOOTSCRAY - | B5: 0 | C5: 0 | D5: 0 | E5: 0
A6: GD-0001511 74330129 - Vernon Street - South Kingsville | B6: 0 | C6: 0 | D6: 0 | E6: 0
A7: GD-0001513 74330136 - Macdonald Avenue - Altona (Ma | B7: 0 | C7: 0 | D7: 0 | E7: 0
A8: GD-0001595 Eldridge Street, Footscray 3011 - Mains Renewal | B8: 0 | C8: 0 | D8: 0 | E8: 0
A9: GD-0001636 74341503 - Ballarat Road Braybrook | B9: 0 | C9: 0 | D9: 0 | E9: 0
A10: GD-0001637 74341504 - Warwick Road Sunshine | B10: 0 | C10: 0 | D10: 0 | E10: 0
A11: GD-0001661 74342482 - The Esplanade Maribyrnong | B11: 0 | C11: 0 | D11: 0 | E11: 0
A12: GD-0002011 74367865 - Woodland St ESSENDON 3040 - L | B12: 5630.17 | C12: 0 | D12: 0 | E12: 0 | F12: Amounts & Volumes not reported in the E2 Mains Repex template - immaterial
A13: GD-0002153 74368616 - Fisher Street Belmont | B13: 0 | C13: 0 | D13: 0 | E13: 0
A14: GD-0002155 Edgecomb Street Hamlyn Heights 3215 - Mains Renewal | B14: 0 | C14: 0 | D14: 0 | E14: 0
A15: GD-0002382 74387636 - Balmoral Street ESSENDON | B15: 0 | C15: 0 | D15: 0 | E15: 0
A16: GD-0002383 74387637 - Buffalo Avenue CORIO | B16: 0 | C16: 0 | D16: 0 | E16: 0
A17: GD-0002578 74386121 - Jedda Street BELL POST HILL | B17: 0 | C17: 0 | D17: 0 | E17: 0
A18: GD-0002591 74394886 - York Street PASCOE VALE SOUTH | B18: 0 | C18: 0 | D18: 0 | E18: 0
A19: GD-0002592 74394887 - Roseberry Street ASCOT VALE 3 | B19: 0 | C19: 0 | D19: 0 | E19: 0
A20: GD-0002670 74387202 - Walsh Grove NORTH GEELONG | B20: 0 | C20: 0 | D20: 0 | E20: 0
A21: GD-0002676 74387521 - Mill Avenue YARRAVILLE 3013 - | B21: 0 | C21: 0 | D21: 0 | E21: 0
A22: GD-0002701 74396403 - Saunders Street COBURG 3058 - | B22: 0 | C22: 0 | D22: 0 | E22: 0
A23: GD-0002732 74397182 - Barkly Street WEST FOOTSCRAY | B23: 0 | C23: 0 | D23: 0 | E23: 0
A24: GD-0004065 74341504 - Warwick Road Sunshine | B24: 0 | C24: 0 | D24: 0 | E24: 0
A25: GD-0004075 74435018 - Cowper Street FOOTSCRAY - LP | B25: 0 | C25: 0 | D25: 0 | E25: 0
A26: GD-0005625 Ballarat Road Stage 2 MP renewal | B26: 0 | C26: 0 | D26: 0 | E26: 0
A27: GD-0005981 Hopkins Street, Corio - LP Replacement | B27: 0 | C27: 0 | D27: 0 | E27: 0
A28: GD-0005998 Royal Crescent, Hamlyn Heights - LP Repl | B28: 0 | C28: 0 | D28: 0 | E28: 0
A29: GD-0006045 Moonee Street, Ascot Vale LP renewal | B29: 0 | C29: 0 | D29: 0 | E29: 0
A30: GD-0006099 Ardmillan Rd, Moonee Ponds - LP renewal | B30: 0 | C30: 0 | D30: 0 | E30: 0
A31: GD-0006101 Droop Street, Foostcray - LP Renewal | B31: 0 | C31: 0 | D31: 0 | E31: 0
A32: GD-0006115 Shackell Street, Kingsville - LP Renewal | B32: 0 | C32: 0 | D32: 0 | E32: 0
A33: GD-0006120 McCurdy Road, Herne Hill - LP Renewal | B33: 0 | C33: 0 | D33: 0 | E33: 0
A34: GD-0006125 Shaftsbury Street, Coburg - LP Renewal | B34: 10129.73 | C34: 0 | D34: 0 | E34: 0 | F34: Amounts & Volumes not reported in the E2 Mains Repex template - immaterial
A35: 74318279 Hargraves Street CASTLEMAINE - Mains Renewal | B35: 0 | C35: 0 | D35: 0 | E35: 0
A36: 74318280 Douglas Parade - Williamstown (Mains Renewal) | B36: 0 | C36: 0 | D36: 0 | E36: 0
A37: 74318282 Drew Street - Yarraville (Mains Renewal) | B37: 0 | C37: 0 | D37: 0 | E37: 0
A38: 74318284 Wattletree Road - Drumcondra (Mains Renewal) | B38: 0 | C38: 0 | D38: 0 | E38: 0
A39: 74318285 Fairy Street - Bell Post Hill (Mains Renewal) | B39: 0 | C39: 0 | D39: 0 | E39: 0
A40: 74330134 Maddox Road - Newport (Mains Renewal) | B40: 0 | C40: 0 | D40: 0 | E40: 0
A41: 74338602 Bellnore Drive Norlane 3214 - Mains Renewal | B41: 0 | C41: 0 | D41: 0 | E41: 0
A42: 74338620 View Street, Essendon 3040 - Mains Renewal | B42: 0 | C42: 0 | D42: 0 | E42: 0
A43: 74341506 Dinnell Street, Ardeer 3022 - MP Mains Renewal | B43: 0 | C43: 0 | D43: 0 | E43: 0
A44: 74342603 Landells Road, Pascoe Vale 3044 - LP Mains Renewal | B44: 0 | C44: 0 | D44: 0 | E44: 0
A45: 74367861 Robertson Street Kensington 3031 - LP Mains Renewal | B45: 0 | C45: 0 | D45: 0 | E45: 0
A46: 74369780 Kanooka Drive, Corio 3214 - LP Mains Renewal | B46: 0 | C46: 0 | D46: 0 | E46: 0
A47: 74374814 Eglinton St MOONEE PONDS 3039 - MISC Mains Renewal | B47: 0 | C47: 0 | D47: 0 | E47: 0
A48: 74330142 Mascoma Street, Strathmore 3041 - Mains Renewal | B48: 0 | C48: 0 | D48: 0 | E48: 0
A49: 74338604 Alexandra Street, Pascoe Vale 3044 - Mains Renewal | B49: 0 | C49: 0 | D49: 0 | E49: 0
A50: 74338611 Lucknow Street, Ascot Vale 3032 - Mains Renewal | B50: 0 | C50: 0 | D50: 0 | E50: 0
A51: GD-0009530 Epsom Road, Ascot Vale | B51: 0 | C51: 0 | D51: 0 | E51: 0 | F51: Costs incurred in the next access arrangement period
A52: GD-0011647 Otway Street-Portland | B52: 0 | C52: 0 | D52: 0 | E52: 0 | F52: Costs incurred in the next access arrangement period
A53: GD-0009528 Sturt Street, Ballarat LPMR | B53: 0 | C53: 0 | D53: 0 | E53: 0 | F53: Costs incurred in the next access arrangement period
A54: GD-0008653 Moore Street, Colac - LP Renewal | B54: 0 | C54: 0 | D54: 0 | E54: 0 | F54: Costs incurred in the next access arrangement period
A55: GD-0011802 Ligar Street, Stawell LP Replacement | B55: 0 | C55: 0 | D55: 0 | E55: 0 | F55: Costs incurred in the next access arrangement period
A56: GD-0011776 Bennett Rd Horsham LP Replacement | B56: 0 | C56: 0 | D56: 0 | E56: 0 | F56: Costs incurred in the next access arrangement period
A58: E12. INFORMATION AND COMMUNICATION TECHNOLOGY - Additional list of Projects >$500,000, as template E12 does not have sufficient rows
A59: Please list all projects here: | B59: 2018 | C59: 2019 | D59: 2020 | E59: 2021 | F59: Comments
A60: DD-0001022 CIS | B60: 0 | C60: 0 | D60: 0 | E60: 0 | F60: Costs incurred in the previous access arrangement period
A61: DD-0001087 151A - Storage Hardware Refresh and Capacity - Backup and Recovery Upgrade (D) | B61: 0 | C61: 0 | D61: 0 | E61: 0 | F61: Costs incurred in the previous access arrangement period
A62: DD-0002113 CDBS0182 - Program WorkOut | B62: 0 | C62: 0 | D62: 0 | E62: 0 | F62: Costs incurred in the previous access arrangement period
A63: DD-0002113 ERP/EAM Implementation/Program Workout | B63: 0 | C63: 0 | D63: 0 | E63: 0 | F63: Costs incurred in the previous access arrangement period
A64: DD-0002120 Enterprise Content Management (ECM Phase 2) | B64: 0 | C64: 0 | D64: 0 | E64: 0 | F64: Costs incurred in the previous access arrangement period
A65: DD-0002123 Storage Hardware Refresh & Capacity | B65: 0 | C65: 0 | D65: 0 | E65: 0 | F65: Costs incurred in the previous access arrangement period
A66: HD-0005409 CDBS0182 - Program WorkOut | B66: 0 | C66: 0 | D66: 0 | E66: 0 | F66: Costs incurred in the previous access arrangement period
A67: HD-0005722 CLCOE FY16 17 - Gas | B67: 0 | C67: 0 | D67: 0 | E67: 0 | F67: Costs incurred in the previous access arrangement period
A68: HD-0006404 FY17 Workout CI - G | B68: 0 | C68: 0 | D68: 0 | E68: 0 | F68: Costs incurred in the previous access arrangement period
A69: HD-0006701 CLCOE FY17 - G | B69: 0 | C69: 0 | D69: 0 | E69: 0 | F69: Costs incurred in the previous access arrangement period
A70: HD-0006851 FY17 Storage, Server & DC Refresh - G | B70: 0 | C70: 0 | D70: 0 | E70: 0 | F70: Costs incurred in the previous access arrangement period
A71: HD-0007456 Budget Only - G | B71: 0 | C71: 0 | D71: 0 | E71: 0 | F71: Costs incurred in the next access arrangement period
A72: HD-0007597 CLCOE FY18 - G | B72: 698184.99 | C72: -2158.3 | D72: 0 | E72: 0 | F72: Costs incurred in the current access arrangement period and is part of the Aggregate of other projects with total expenditure of less than $500,000 row
A73: HD-0007632 Refresh of CAD & Drawing Management - G | B73: 228726.54 | C73: 299474.3 | D73: 57304.66 | E73: 0 | F73: Costs incurred in the current access arrangement period and is part of the Aggregate of other projects with total expenditure of less than $500,000 row
A74: HD-0007775 Digital Workplace - G | B74: 404945.13 | C74: 341643.35 | D74: 26387.98 | E74: 0 | F74: Costs incurred in the current access arrangement period and is part of the Aggregate of other projects with total expenditure of less than $500,000 row
A75: HD-0007816 Customer Delivery Program - G | B75: 404640.01 | C75: 100528.18 | D75: 0 | E75: 0 | F75: Costs incurred in the current access arrangement period and is part of the Aggregate of other projects with total expenditure of less than $500,000 row
A76: HD-0007821 SAP CI FY18 -G | B76: 255820.55 | C76: 0 | D76: 0 | E76: 0 | F76: Costs incurred in the current access arrangement period and is part of the Aggregate of other projects with total expenditure of less than $500,000 row
A77: HD-0009503 Customer Initiated NewLoad Connections G | B77: 0 | C77: 455005.17 | D77: 57215.49 | E77: 0 | F77: Costs incurred in the current access arrangement period and is part of the Aggregate of other projects with total expenditure of less than $500,000 row
A78: HD-0012514 Core Network - G | E78: 14691 | F78: Costs incurred in the current access arrangement period and is part of the Aggregate of other projects with total expenditure of less than $500,000 row
